Ref No,Fund Type,Dept,Cost Centre Description    ,Description    ,Creditor Name    ,GL Code Net Amount,Payment date        
1,Revenue,CCHD,Supported Living - PS,Private & Voluntary Home Care,3 Trees Community Support Ltd,712.85, 04-May-2011
2,Revenue,CCHD,Purchase of Non-Res Care - KD,Private & Voluntary Day Care,3 Trees Community Support Ltd,1621.96, 04-May-2011
3,Revenue,CCHD,Purchase of Non-Res Care - KD,Private & Voluntary Day Care,3 Trees Community Support Ltd,5669.92, 04-May-2011
4,Revenue,CCHD,PWLD Home Care - Under 65 - KD,Private & Voluntary Home Care,3 Trees Community Support Ltd,527.46, 24-May-2011
5,Revenue,CCHD,Supported Living (S28a),Private & Voluntary Home Care,3 Trees Community Support Ltd,6085.56, 24-May-2011
6,Revenue,CCHD,Home Care Purch North,Other Small Contracts,3 Trees Community Support Ltd,500.64, 23-May-2011
7,Revenue,CCHD,PD Direct Payments North,Grants to Voluntary Bodies,A4E Management Limited,22857.93, 05-May-2011
8,Revenue,CCHD,Elderly Purchasing - South,Nursing Homes,Aabletone Nursing Home,1152.05, 17-May-2011
9,Revenue,CCHD,Minor Adaptations Service,Prop.Serv. General Repairs,Abacus Healthcare Services Limited,806.85, 19-May-2011
10,Revenue,CCHD,Under 65s PWLD - KD,Residential Homes,Abbeymead Lodge,6770.72, 17-May-2011
11,Revenue,CCHD,Hydrotherapy,Programmed General Maintenance,ABC Blinds (South West) Limited,519.34, 20-May-2011
12,Revenue,CCHD,Elderly Purchasing - South,Residential Homes,Ablecare Homes,935, 17-May-2011
13,Revenue,CCHD,Southmead Hospital Purchasing,Residential Homes,Ablecare Homes,1418.08, 17-May-2011
14,Revenue,CCHD,Elderly Mental Health,Residential Homes,Ablecare Homes,1389, 17-May-2011
15,Revenue,CCHD,Elderly Purchasing - North,Residential Homes,Ablecare Homes,871.04, 17-May-2011
16,Revenue,CCHD,Frenchay Hospital Purchasing,Residential Homes,Ablecare Homes,1283.64, 17-May-2011
17,Revenue,CCHD,Elderly Purchasing - North,Residential Homes,Ablecare Homes,1246.84, 17-May-2011
18,Revenue,CCHD,Elderly Purchasing - South,Residential Homes,Ablecare Homes,993.74, 17-May-2011
19,Revenue,CCHD,Frenchay Hospital Purchasing,Residential Homes,Ablecare Homes,1232.16, 17-May-2011
20,Revenue,CCHD,Elderly Mental Health,Residential Homes,Ablecare Homes,1267.32, 17-May-2011
21,Revenue,CCHD,Elderly Mental Health,Residential Homes,Ablecare Homes,1180.8, 17-May-2011
22,Revenue,CCHD,Elderly Purchasing - South,Residential Homes,Ablecare Homes,1263.6, 17-May-2011
23,Revenue,CCHD,Elderly Purchasing - North,Residential Homes,Ablecare Homes,6024.82, 17-May-2011
24,Revenue,CCHD,South Glos Users in South Glos Homes,Nursing Homes,Acacia Care Limited,2111.88, 18-May-2011
25,Revenue,CCHD,Day Care - South,Private & Voluntary Day Care,Action for Blind People,4366.2, 19-May-2011
26,Revenue,CCHD,Day Care - North,Private & Voluntary Day Care,Age UK South Gloucestershire,1311.36, 31-May-2011
27,Revenue,CCHD,Home Care Purch North,Other Small Contracts,Agincare UK Limited,1549.94, 19-May-2011
28,Revenue,CCHD,Home Care Purch North,Other Small Contracts,Agincare UK Limited,1549.94, 06-May-2011
29,Revenue,CCHD,Home Care Purch North,Other Small Contracts,Agincare UK Limited,799.96, 09-May-2011
30,Revenue,CCHD,Home Care Purch North,Other Small Contracts,Agincare UK Limited,799.96, 09-May-2011
31,Revenue,CCHD,Home Care Purch North,Other Small Contracts,Agincare UK Limited,799.96, 09-May-2011
32,Revenue,CCHD,Home Care Purch North,Other Small Contracts,Agincare UK Limited,799.96, 09-May-2011
33,Revenue,CCHD,Contracts & Commissioning Team,Other Small Contracts,Agincare UK Limited,3500, 06-May-2011
34,Revenue,CCHD,Contracts & Commissioning Team,Other Small Contracts,Agincare UK Limited,3500, 13-May-2011
35,Revenue,CCHD,Contracts & Commissioning Team,Other Small Contracts,Agincare UK Limited,3500, 20-May-2011
36,Revenue,CCHD,Contracts & Commissioning Team,Other Small Contracts,Agincare UK Limited,3500, 27-May-2011
37,Revenue,CCHD,Property Debtors,Fees & Charges Income - General,Alan Taylor,536.18, 18-May-2011
38,Revenue,CCHD,S117 Placements PCT,Residential Homes,Alexandra House,6697.76, 17-May-2011
39,Revenue,CCHD,Under 65s PWLD - KD,Residential Homes,Alexandra House,6332.24, 17-May-2011
40,Revenue,CCHD,Southmead Hospital Team,Agency Staff (Operational)/PCT Pay,Allied Health Professionals Ltd,1200, 17-May-2011
41,Revenue,CCHD,Southmead Hospital Team,Agency Staff (Operational)/PCT Pay,Allied Health Professionals Ltd,1200, 26-May-2011
42,Revenue,CCHD,Southmead Hospital Team,Agency Staff (Operational)/PCT Pay,Allied Health Professionals Ltd,1072, 17-May-2011
43,Revenue,CCHD,Southmead Hospital Team,Agency Staff (Operational)/PCT Pay,Allied Health Professionals Ltd,920, 23-May-2011
44,Revenue,CCHD,Elderly MH non-res purchasing,Private & Voluntary Day Care,Alzheimers Society Bristol Branch,520.32, 09-May-2011
45,Revenue,CCHD,Elderly MH non-res purchasing,Private & Voluntary Day Care,Alzheimers Society Bristol Branch,845.52, 09-May-2011
46,Revenue,CCHD,Elderly MH non-res purchasing,Private & Voluntary Day Care,Alzheimers Society Bristol Branch,910.56, 04-May-2011
47,Revenue,CCHD,Elderly MH non-res purchasing,Private & Voluntary Day Care,Alzheimers Society Bristol Branch,910.56, 09-May-2011
48,Revenue,CCHD,Elderly MH non-res purchasing,Private & Voluntary Day Care,Alzheimers Society Bristol Branch,650.4, 09-May-2011
49,Revenue,CCHD,Elderly MH non-res purchasing,Private & Voluntary Day Care,Alzheimers Society Bristol Branch,672.8, 17-May-2011
50,Revenue,CCHD,Elderly MH non-res purchasing,Private & Voluntary Day Care,Alzheimers Society Bristol Branch,740.08, 17-May-2011
51,Revenue,CCHD,Elderly MH non-res purchasing,Private & Voluntary Day Care,Alzheimers Society Bristol Branch,672.8, 17-May-2011
52,Revenue,CCHD,Elderly MH non-res purchasing,Private & Voluntary Day Care,Alzheimers Society Bristol Branch,538.24, 17-May-2011
53,Revenue,CCHD,Frenchay Hospital Purchasing,Residential Homes,Anbridge Care Home,750.48, 17-May-2011
54,Revenue,CCHD,Under 65s PWLD - KD,Residential Homes,Ark Care Homes Ltd,10353.32, 17-May-2011
55,Revenue,CCHD,Bed and Breakfast,Bed & Breakfast,Ashley Guest House Ltd,1008, 20-May-2011
56,Revenue,CCHD,Bed and Breakfast,Bed & Breakfast,Ashley Guest House Ltd,576, 09-May-2011
57,Revenue,CCHD,Bed and Breakfast,Bed & Breakfast,Ashley Guest House Ltd,744, 09-May-2011
58,Revenue,CCHD,Bed and Breakfast,Bed & Breakfast,Ashley Guest House Ltd,1104, 24-May-2011
59,Revenue,CCHD,Bed and Breakfast,Bed & Breakfast,Ashley Guest House Ltd,696, 09-May-2011
60,Revenue,CCHD,Bed and Breakfast,Bed & Breakfast,Ashley Guest House Ltd,984, 13-May-2011
61,Revenue,CCHD,Bed and Breakfast,Bed & Breakfast,Ashley Guest House Ltd,1210, 12-May-2011
62,Revenue,CCHD,S28A - Over 65,Residential Homes,Aspects &  Milestones Trust,4011.76, 17-May-2011
63,Revenue,CCHD,Elderly Purchasing - South,Residential Homes,Aspects &  Milestones Trust,1397.24, 17-May-2011
64,Revenue,CCHD,Elderly Mental Health,Residential Homes,Aspects &  Milestones Trust,1229, 17-May-2011
65,Revenue,CCHD,Section 117 Placements,Residential Homes,Aspects &  Milestones Trust,1304, 17-May-2011
66,Revenue,CCHD,Elderly Mental Health,Nursing Homes,Aspects &  Milestones Trust,797.08, 17-May-2011
67,Revenue,CCHD,Section 117 Placements,Nursing Homes,Aspects &  Milestones Trust,1911.96, 17-May-2011
68,Revenue,CCHD,Under 65s PWLD - PS,Residential Homes,Aspects &  Milestones Trust,5611.48, 17-May-2011
69,Revenue,CCHD,Under 65s PWLD - KD,Nursing Homes,Aspects &  Milestones Trust,2703.44, 17-May-2011
70,Revenue,CCHD,Section 117 Placements,Nursing Homes,Aspects &  Milestones Trust,1912, 17-May-2011
71,Revenue,CCHD,Elderly Mental Health,Nursing Homes,Aspects &  Milestones Trust,1453, 17-May-2011
72,Revenue,CCHD,Elderly PWLD - PS,Residential Homes,Aspects &  Milestones Trust,3304.92, 17-May-2011
73,Revenue,CCHD,Elderly PWLD - PS,Residential Homes,Aspects &  Milestones Trust,4279.88, 17-May-2011
74,Revenue,CCHD,S28A - Under 65,Nursing Homes,Aspects &  Milestones Trust,5712.32, 17-May-2011
75,Revenue,CCHD,S28A - Under 65,Residential Homes,Aspects &  Milestones Trust,5541.28, 17-May-2011
76,Revenue,CCHD,Under 65s PWLD - KH,Residential Homes,Aspects &  Milestones Trust,3650.92, 17-May-2011
77,Revenue,CCHD,S28A - Under 65,Residential Homes,Aspects &  Milestones Trust,5240.64, 17-May-2011
78,Revenue,CCHD,Under 65s PWLD - KD,Residential Homes,Aspects &  Milestones Trust,5924.68, 17-May-2011
79,Revenue,CCHD,Under 65s PWLD - KH,Residential Homes,Aspects &  Milestones Trust,3772.59, 17-May-2011
80,Revenue,CCHD,S28A - Under 65,Nursing Homes,Aspects &  Milestones Trust,8022.76, 17-May-2011
81,Revenue,CCHD,MH Purchasing - Younger,Residential Homes,Aspects &  Milestones Trust,1009, 17-May-2011
82,Revenue,CCHD,Elderly PWLD - PS,Residential Homes,Aspects &  Milestones Trust,5221, 17-May-2011
83,Revenue,CCHD,Elderly PWLD - PS,Residential Homes,Aspects &  Milestones Trust,3817.28, 17-May-2011
84,Revenue,CCHD,Elderly PWLD - KH,Residential Homes,Aspects &  Milestones Trust,4891.88, 17-May-2011
85,Revenue,CCHD,S28A - Under 65,Nursing Homes,Aspects &  Milestones Trust,5445.96, 17-May-2011
86,Revenue,CCHD,S28A - Under 65,Residential Homes,Aspects &  Milestones Trust,7319.88, 17-May-2011
87,Revenue,CCHD,S28A - Over 65,Residential Homes,Aspects &  Milestones Trust,3543.56, 17-May-2011
88,Revenue,CCHD,S28A - Under 65,Nursing Homes,Aspects &  Milestones Trust,6122.48, 17-May-2011
89,Revenue,CCHD,Section 117 Placements MH Younger,Residential Homes,Aspects &  Milestones Trust,1304, 17-May-2011
90,Revenue,CCHD,Under 65s PWLD - PS,Residential Homes,Aspects &  Milestones Trust,3630.6, 17-May-2011
91,Revenue,CCHD,S28A - Under 65,Residential Homes,Aspects &  Milestones Trust,7319.88, 17-May-2011
92,Revenue,CCHD,S28A - Under 65,Residential Homes,Aspects &  Milestones Trust,5031.48, 17-May-2011
93,Revenue,CCHD,S28A - Over 65,Residential Homes,Aspects &  Milestones Trust,4892.16, 17-May-2011
94,Revenue,CCHD,S28A - Over 65,Residential Homes,Aspects &  Milestones Trust,4149.64, 17-May-2011
95,Revenue,CCHD,S28A - Under 65,Residential Homes,Aspects &  Milestones Trust,7319.88, 17-May-2011
96,Revenue,CCHD,S28A - Over 65,Residential Homes,Aspects &  Milestones Trust,4383.16, 17-May-2011
97,Revenue,CCHD,S28A - Under 65,Residential Homes,Aspects &  Milestones Trust,7319.88, 17-May-2011
98,Revenue,CCHD,S28A - Over 65,Residential Homes,Aspects &  Milestones Trust,3695.56, 17-May-2011
99,Revenue,CCHD,S28A - Under 65,Residential Homes,Aspects &  Milestones Trust,5983.24, 17-May-2011
100,Revenue,CCHD,S28A - Under 65,Residential Homes,Aspects &  Milestones Trust,6523.48, 17-May-2011
101,Revenue,CCHD,S28A - Under 65,Residential Homes,Aspects &  Milestones Trust,3981.76, 17-May-2011
102,Revenue,CCHD,S28A - Over 65,Residential Homes,Aspects &  Milestones Trust,5876.92, 17-May-2011
103,Revenue,CCHD,S28A - Over 65,Residential Homes,Aspects &  Milestones Trust,3324.01, 17-May-2011
104,Revenue,CCHD,S28A - Over 65,Residential Homes,Aspects &  Milestones Trust,4969.93, 17-May-2011
105,Revenue,CCHD,S28A - Over 65,Residential Homes,Aspects &  Milestones Trust,5136.16, 17-May-2011
106,Revenue,CCHD,S28A - Over 65,Residential Homes,Aspects &  Milestones Trust,4780.12, 17-May-2011
107,Revenue,CCHD,S28A - Over 65,Residential Homes,Aspects &  Milestones Trust,3233.56, 17-May-2011
108,Revenue,CCHD,S28A - Under 65,Nursing Homes,Aspects &  Milestones Trust,5073.6, 17-May-2011
109,Revenue,CCHD,S28A - Over 65,Residential Homes,Aspects &  Milestones Trust,4312.84, 17-May-2011
110,Revenue,CCHD,S28A - Over 65,Residential Homes,Aspects &  Milestones Trust,3585.48, 17-May-2011
111,Revenue,CCHD,S28A - Under 65,Residential Homes,Aspects &  Milestones Trust,7319.88, 17-May-2011
112,Revenue,CCHD,Under 65s PWLD - PS,Residential Homes,Aspects &  Milestones Trust,4322.72, 17-May-2011
113,Revenue,CCHD,S28A - Under 65,Nursing Homes,Aspects &  Milestones Trust,6203.68, 17-May-2011
114,Revenue,CCHD,S28A - Over 65,Residential Homes,Aspects &  Milestones Trust,3610.56, 17-May-2011
115,Revenue,CCHD,S28A - Over 65,Residential Homes,Aspects &  Milestones Trust,3191.84, 17-May-2011
116,Revenue,CCHD,S28A - Over 65,Residential Homes,Aspects &  Milestones Trust,3417.96, 17-May-2011
117,Revenue,CCHD,S28A - Over 65,Residential Homes,Aspects &  Milestones Trust,4881.36, 17-May-2011
118,Revenue,CCHD,S28A - Over 65,Residential Homes,Aspects &  Milestones Trust,3220.17, 17-May-2011
119,Revenue,CCHD,Elderly Mental Health,Residential Homes,Aspects &  Milestones Trust,845.36, 17-May-2011
120,Revenue,CCHD,S28A - Under 65,Residential Homes,Aspects &  Milestones Trust,4961.24, 17-May-2011
121,Revenue,CCHD,Elderly PWLD - KD,Residential Homes,Aspects &  Milestones Trust,2858, 17-May-2011
122,Revenue,CCHD,Elderly PWLD - KH,Residential Homes,Aspects &  Milestones Trust,5609.8, 17-May-2011
123,Revenue,CCHD,Elderly PWLD - KD,Residential Homes,Aspects &  Milestones Trust,5705.36, 17-May-2011
124,Revenue,CCHD,Elderly PWLD - KD,Residential Homes,Aspects &  Milestones Trust,4581.48, 17-May-2011
125,Revenue,CCHD,Under 65s PWLD - PS,Residential Homes,Aspects &  Milestones Trust,3988.4, 17-May-2011
126,Revenue,CCHD,S28A - Under 65,Residential Homes,Aspects &  Milestones Trust,5976.44, 17-May-2011
127,Revenue,CCHD,S28A - Over 65,Residential Homes,Aspects &  Milestones Trust,3294.24, 17-May-2011
128,Revenue,CCHD,Section 117 Placements MH Younger,Residential Homes,Aspects &  Milestones Trust,1688, 17-May-2011
129,Revenue,CCHD,MH Purchasing - Younger,Residential Homes,Aspects &  Milestones Trust,1009, 17-May-2011
130,Revenue,CCHD,S28A - Over 65,Residential Homes,Aspects &  Milestones Trust,3533, 17-May-2011
131,Revenue,CCHD,S28A - Under 65,Residential Homes,Aspects &  Milestones Trust,3684.08, 17-May-2011
132,Revenue,CCHD,S28A - Under 65,Residential Homes,Aspects &  Milestones Trust,5233.64, 17-May-2011
133,Revenue,CCHD,S28A - Under 65,Residential Homes,Aspects &  Milestones Trust,5925.96, 17-May-2011
134,Revenue,CCHD,S28A - Over 65,Residential Homes,Aspects &  Milestones Trust,5792.84, 17-May-2011
135,Revenue,CCHD,S28A - Under 65,Residential Homes,Aspects &  Milestones Trust,7154.49, 17-May-2011
136,Revenue,CCHD,S28A - Over 65,Residential Homes,Aspects &  Milestones Trust,4881.36, 17-May-2011
137,Revenue,CCHD,S28A - Over 65,Residential Homes,Aspects &  Milestones Trust,4923.12, 17-May-2011
138,Revenue,CCHD,S28A - Over 65,Residential Homes,Aspects &  Milestones Trust,5799.8, 17-May-2011
139,Revenue,CCHD,S28A - Under 65,Residential Homes,Aspects &  Milestones Trust,8012.36, 17-May-2011
140,Revenue,CCHD,S28A - Over 65,Residential Homes,Aspects &  Milestones Trust,5069.64, 17-May-2011
141,Revenue,CCHD,S28A - Under 65,Residential Homes,Aspects &  Milestones Trust,4903.76, 17-May-2011
142,Revenue,CCHD,S28A - Over 65,Nursing Homes,Aspects &  Milestones Trust,4903.76, 17-May-2011
143,Revenue,CCHD,S28A - Over 65,Residential Homes,Aspects &  Milestones Trust,5377.28, 17-May-2011
144,Revenue,CCHD,S28A - Over 65,Residential Homes,Aspects &  Milestones Trust,5377.28, 17-May-2011
145,Revenue,CCHD,S28A - Under 65,Residential Homes,Aspects &  Milestones Trust,4576.24, 17-May-2011
146,Revenue,CCHD,S28A - Over 65,Residential Homes,Aspects &  Milestones Trust,5377.28, 17-May-2011
147,Revenue,CCHD,S28A - Over 65,Residential Homes,Aspects &  Milestones Trust,5812.44, 17-May-2011
148,Revenue,CCHD,S28A - Over 65,Residential Homes,Aspects &  Milestones Trust,5136.2, 17-May-2011
149,Revenue,CCHD,S28A - Under 65,Residential Homes,Aspects &  Milestones Trust,4902.68, 17-May-2011
150,Revenue,CCHD,S28A - Under 65,Residential Homes,Aspects &  Milestones Trust,7593.6, 17-May-2011
151,Revenue,CCHD,S28A - Over 65,Residential Homes,Aspects &  Milestones Trust,5812.44, 17-May-2011
152,Revenue,CCHD,S28A - Under 65,Residential Homes,Aspects &  Milestones Trust,3345.32, 17-May-2011
153,Revenue,CCHD,S28A - Over 65,Residential Homes,Aspects &  Milestones Trust,3386.84, 17-May-2011
154,Revenue,CCHD,S28A - Over 65,Residential Homes,Aspects &  Milestones Trust,5485.57, 17-May-2011
155,Revenue,CCHD,S28A - Over 65,Residential Homes,Aspects &  Milestones Trust,3298.33, 17-May-2011
156,Revenue,CCHD,Under 65s PWLD - KH,Residential Homes,Aspects &  Milestones Trust,7561.2, 17-May-2011
157,Revenue,CCHD,Section 117 Placements,Residential Homes,Aspects &  Milestones Trust,1913.04, 17-May-2011
158,Revenue,CCHD,Elderly Mental Health,Nursing Homes,Aspects &  Milestones Trust,1344.96, 17-May-2011
159,Revenue,CCHD,Under 65s PWLD - KD,Residential Homes,Aspects &  Milestones Trust,7185.92, 17-May-2011
160,Revenue,CCHD,MH Purchasing - Younger,Nursing Homes,Aspects &  Milestones Trust,927.6, 17-May-2011
161,Revenue,CCHD,MH Purchasing - Younger,Nursing Homes,Aspects &  Milestones Trust,1097, 17-May-2011
162,Revenue,CCHD,MH Purchasing - Younger,Residential Homes,Aspects &  Milestones Trust,1001.2, 17-May-2011
163,Revenue,CCHD,Elderly PWLD - PS,Residential Homes,Aspects &  Milestones Trust,3515.84, 17-May-2011
164,Revenue,CCHD,Section 117 Placements MH Younger,Nursing Homes,Aspects &  Milestones Trust,3132, 17-May-2011
165,Revenue,CCHD,Section 117 Placements MH Younger,Nursing Homes,Aspects &  Milestones Trust,1392, 17-May-2011
166,Revenue,CCHD,S28A - Under 65,Residential Homes,Aspects &  Milestones Trust,5002.04, 17-May-2011
167,Revenue,CCHD,S28A - Under 65,Residential Homes,Aspects &  Milestones Trust,5283.24, 17-May-2011
168,Revenue,CCHD,S28A - Over 65,Residential Homes,Aspects &  Milestones Trust,3996.88, 17-May-2011
169,Revenue,CCHD,S28A - Over 65,Residential Homes,Aspects &  Milestones Trust,4786.4, 17-May-2011
170,Revenue,CCHD,Under 65s PWLD - KH,Residential Homes,Aspects &  Milestones Trust,4105, 17-May-2011
171,Revenue,CCHD,S28A - Over 65,Residential Homes,Aspects &  Milestones Trust,4234.64, 17-May-2011
172,Revenue,CCHD,S28A - Over 65,Residential Homes,Aspects &  Milestones Trust,3929, 17-May-2011
173,Revenue,CCHD,S28A - Over 65,Residential Homes,Aspects &  Milestones Trust,5792.84, 17-May-2011
174,Revenue,CCHD,S28A - Over 65,Residential Homes,Aspects &  Milestones Trust,4641.36, 17-May-2011
175,Revenue,CCHD,S28A - Over 65,Residential Homes,Aspects &  Milestones Trust,4105.72, 17-May-2011
176,Revenue,CCHD,S28A - Over 65,Residential Homes,Aspects &  Milestones Trust,4328.04, 17-May-2011
177,Revenue,CCHD,S28A - Over 65,Residential Homes,Aspects &  Milestones Trust,5332.16, 17-May-2011
178,Revenue,CCHD,S28A - Over 65,Residential Homes,Aspects &  Milestones Trust,4928.68, 17-May-2011
179,Revenue,CCHD,Elderly Mental Health,Residential Homes,Aspects &  Milestones Trust,1185.68, 17-May-2011
180,Revenue,CCHD,S28A - Over 65,Residential Homes,Aspects &  Milestones Trust,4922.96, 17-May-2011
181,Revenue,CCHD,S28A - Under 65,Residential Homes,Aspects &  Milestones Trust,5606.64, 17-May-2011
182,Revenue,CCHD,Section 117 Placements,Nursing Homes,Aspects &  Milestones Trust,1912, 17-May-2011
183,Revenue,CCHD,Elderly Mental Health,Nursing Homes,Aspects &  Milestones Trust,1425, 17-May-2011
184,Revenue,CCHD,Section 117 Placements,Nursing Homes,Aspects &  Milestones Trust,1912, 17-May-2011
185,Revenue,CCHD,Section 117 Placements,Residential Homes,Aspects &  Milestones Trust,1304, 17-May-2011
186,Revenue,CCHD,Under 65s PWLD - KD,Residential Homes,Aspects & Milestones Trust,8720.64, 17-May-2011
187,Revenue,CCHD,Under 65s PWLD - KD,Residential Homes,Aspects & Milestones Trust,10800.04, 17-May-2011
188,Revenue,CCHD,Supporting People Programme,Grants to Voluntary Bodies,Aspects and Milestones Trust,1426.32, 18-May-2011
189,Revenue,CCHD,Supporting People Programme,Grants to Voluntary Bodies,Aspects and Milestones Trust,1426.32, 18-May-2011
190,Revenue,CCHD,Supporting People Programme,Grants to Voluntary Bodies,Aspects and Milestones Trust,1737.24, 18-May-2011
191,Revenue,CCHD,Supporting People Programme,Grants to Voluntary Bodies,Aspects and Milestones Trust,1737.24, 18-May-2011
192,Revenue,CCHD,Supporting People Programme,Grants to Voluntary Bodies,Aspects and Milestones Trust,2165.04, 18-May-2011
193,Revenue,CCHD,Supporting People Programme,Grants to Voluntary Bodies,Aspects and Milestones Trust,2165.04, 18-May-2011
194,Revenue,CCHD,Supporting People Programme,Grants to Voluntary Bodies,Aspects and Milestones Trust,2783.52, 18-May-2011
195,Revenue,CCHD,Supporting People Programme,Grants to Voluntary Bodies,Aspects and Milestones Trust,2783.52, 18-May-2011
196,Revenue,CCHD,Supporting People Programme,Grants to Voluntary Bodies,Aspects and Milestones Trust,2844.96, 18-May-2011
197,Revenue,CCHD,Supporting People Programme,Grants to Voluntary Bodies,Aspects and Milestones Trust,2844.96, 18-May-2011
198,Revenue,CCHD,Supporting People Programme,Grants to Voluntary Bodies,Aspects and Milestones Trust,14116.42, 18-May-2011
199,Revenue,CCHD,Supporting People Programme,Grants to Voluntary Bodies,Aspects and Milestones Trust,14116.42, 18-May-2011
200,Revenue,CCHD,Supporting People Programme,Grants to Voluntary Bodies,Aspects and Milestones Trust,1222.56, 18-May-2011
201,Revenue,CCHD,Supporting People Programme,Grants to Voluntary Bodies,Aspects and Milestones Trust,1489.06, 18-May-2011
202,Revenue,CCHD,Supporting People Programme,Grants to Voluntary Bodies,Aspects and Milestones Trust,2385.87, 18-May-2011
203,Revenue,CCHD,Supporting People Programme,Grants to Voluntary Bodies,Aspects and Milestones Trust,2438.54, 18-May-2011
204,Revenue,CCHD,Elderly MH non-res purchasing,Private & Voluntary Day Care,Aspects and Milestones Trust,622.62, 26-May-2011
205,Revenue,CCHD,Elderly MH non-res purchasing,Private & Voluntary Day Care,Aspects and Milestones Trust,721.96, 25-May-2011
206,Revenue,CCHD,Elderly MH non-res purchasing,Private & Voluntary Day Care,Aspects and Milestones Trust,961.48, 25-May-2011
207,Revenue,CCHD,Elderly MH non-res purchasing,Private & Voluntary Day Care,Aspects and Milestones Trust,957.6, 17-May-2011
208,Revenue,CCHD,Elderly MH non-res purchasing,Private & Voluntary Day Care,Aspects and Milestones Trust,766.08, 17-May-2011
209,Revenue,CCHD,Elderly MH non-res purchasing,Private & Voluntary Day Care,Aspects and Milestones Trust,510.72, 17-May-2011
210,Revenue,CCHD,Elderly MH non-res purchasing,Private & Voluntary Day Care,Aspects and Milestones Trust,1021.44, 17-May-2011
211,Revenue,CCHD,Elderly MH non-res purchasing,Private & Voluntary Day Care,Aspects and Milestones Trust,510.72, 17-May-2011
212,Revenue,CCHD,Elderly MH non-res purchasing,Private & Voluntary Day Care,Aspects and Milestones Trust,605.21, 17-May-2011
213,Revenue,CCHD,Elderly MH non-res purchasing,Private & Voluntary Day Care,Aspects and Milestones Trust,514.08, 17-May-2011
214,Revenue,CCHD,Elderly MH non-res purchasing,Private & Voluntary Day Care,Aspects and Milestones Trust,720.29, 17-May-2011
215,Revenue,CCHD,Elderly MH non-res purchasing,Private & Voluntary Day Care,Aspects and Milestones Trust,639.21, 17-May-2011
216,Revenue,CCHD,Elderly MH non-res purchasing,Private & Voluntary Day Care,Aspects and Milestones Trust,500.88, 17-May-2011
217,Revenue,CCHD,Elderly MH non-res purchasing,Private & Voluntary Day Care,Aspects and Milestones Trust,1021.44, 17-May-2011
218,Revenue,CCHD,Elderly MH non-res purchasing,Private & Voluntary Day Care,Aspects and Milestones Trust,510.72, 17-May-2011
219,Revenue,CCHD,Elderly MH non-res purchasing,Private & Voluntary Day Care,Aspects and Milestones Trust,587.73, 17-May-2011
220,Revenue,CCHD,Elderly MH non-res purchasing,Private & Voluntary Day Care,Aspects and Milestones Trust,574.56, 17-May-2011
221,Revenue,CCHD,Supported Living - PS,Private & Voluntary Home Care,Aspects and Milestones Trust,628.64, 19-May-2011
222,Revenue,CCHD,Supported Living - PS,Private & Voluntary Home Care,Aspects and Milestones Trust,1677.31, 17-May-2011
223,Revenue,CCHD,Supported Living - PS,Private & Voluntary Home Care,Aspects and Milestones Trust,925.9, 25-May-2011
224,Revenue,CCHD,Under 65s PWLD - KH,Residential Homes,Autism Specialised Care Homes,5425.76, 17-May-2011
225,Revenue,CCHD,Training - Adult Services,Training Expenses,Avenues Cafe,999, 11-May-2011
226,Revenue,CCHD,Purchase of Non-Res Care - KD,Private & Voluntary Day Care,Avon Autistic Foundation Limited,3290.64, 09-May-2011
227,Revenue,CCHD,Day Care - South,Private & Voluntary Day Care,Banff Securities Ltd,506.4, 04-May-2011
228,Revenue,CCHD,Getting a Life Project,Other Supplies & Services,Barbara Paul T/A Speedwell Quilts,829.64, 10-May-2011
229,Revenue,CCHD,Learning Difficulties Development Fund,Other Supplies & Services,Bawa Healthcare & Leisure,981.25, 17-May-2011
230,Revenue,CCHD,Elderly Mental Health,Residential Homes,Beaufort House,1362.8, 17-May-2011
231,Revenue,CCHD,Frenchay Hospital Purchasing,Residential Homes,Beaufort House,670.32, 17-May-2011
232,Revenue,CCHD,Elderly Mental Health,Residential Homes,Beaufort House,1414.6, 17-May-2011
233,Revenue,CCHD,Frenchay Hospital Purchasing,Residential Homes,Beaufort House,1258.76, 17-May-2011
234,Revenue,CCHD,Elderly Mental Health,Residential Homes,Beaufort House,1316.2, 17-May-2011
235,Revenue,CCHD,Frenchay Hospital Purchasing,Residential Homes,Beaufort House,1741, 17-May-2011
236,Revenue,CCHD,Frenchay Hospital Purchasing,Residential Homes,Beaufort House,1100, 17-May-2011
237,Revenue,CCHD,Frenchay Hospital Purchasing,Residential Homes,Beaufort House,1263.8, 17-May-2011
238,Revenue,CCHD,Elderly Mental Health,Residential Homes,Beaufort House,1309.32, 17-May-2011
239,Revenue,CCHD,Elderly Mental Health,Residential Homes,Beaufort House,1307.68, 17-May-2011
240,Revenue,CCHD,Elderly Purchasing - North,Residential Homes,Beaufort House,1670.64, 17-May-2011
241,Revenue,CCHD,Elderly Mental Health,Residential Homes,Beaufort House,1328.16, 17-May-2011
242,Revenue,CCHD,Southmead Hospital Purchasing,Residential Homes,Beaufort House,1741, 17-May-2011
243,Revenue,CCHD,Elderly Mental Health,Residential Homes,Beaufort House,1032.16, 17-May-2011
244,Revenue,CCHD,Elderly Mental Health,Residential Homes,Beaufort House,1654.92, 17-May-2011
245,Revenue,CCHD,Elderly PWLD - KH,Residential Homes,Bedrock Lodge,2821.28, 17-May-2011
246,Revenue,CCHD,Section 117 Placements MH Younger,Residential Homes,Bedrock Lodge,1790.12, 17-May-2011
247,Revenue,CCHD,Elderly Purchasing - North,Nursing Homes,Beech House,1043.76, 17-May-2011
248,Revenue,CCHD,South Glos Users in South Glos Homes,Nursing Homes,Beech House,1055.95, 17-May-2011
249,Revenue,CCHD,Frenchay Hospital Purchasing,Nursing Homes,Beech House,1565.08, 17-May-2011
250,Revenue,CCHD,Southmead Hospital Purchasing,Nursing Homes,Beech House,1432.36, 17-May-2011
251,Revenue,CCHD,Elderly Purchasing - North,Nursing Homes,Beech House,1489.84, 17-May-2011
252,Revenue,CCHD,Elderly Purchasing - North,Nursing Homes,Beech House,1922.32, 17-May-2011
253,Revenue,CCHD,Elderly Purchasing - North,Nursing Homes,Beech House,1081.32, 17-May-2011
254,Revenue,CCHD,Elderly Purchasing - North,Nursing Homes,Beech House,1403.2, 17-May-2011
255,Revenue,CCHD,Southmead Hospital Purchasing,Nursing Homes,Beech House,1593.2, 17-May-2011
256,Revenue,CCHD,Elderly Purchasing - North,Nursing Homes,Beech House,1190.56, 17-May-2011
257,Revenue,CCHD,Elderly Purchasing - South,Residential Homes,Bethany Christian Home,614.5, 17-May-2011
258,Revenue,CCHD,Training - Adult Services,Training Expenses,Bob Dawson,735, 11-May-2011
259,Revenue,CCHD,Eclipse Park Office,Property Insurance,Boscobel Property Holdings,896.97, 24-May-2011
260,Revenue,CCHD,Home Care Purch South,Other Small Contracts,Bradley House Home Care Services,90.51, 18-May-2011
261,Revenue,CCHD,Home Care Purch North,Other Small Contracts,Bradley House Home Care Services,2693.75, 18-May-2011
262,Revenue,CCHD,Day Care - South,Private & Voluntary Day Care,Bradley House Home Care Services,60.34, 18-May-2011
263,Revenue,CCHD,Day Care - North,Private & Voluntary Day Care,Bradley House Home Care Services,163.78, 18-May-2011
264,Revenue,CCHD,Elderly MH Home Care,Other Small Contracts,Bradley House Home Care Services,189.64, 18-May-2011
265,Revenue,CCHD,Home Care Purch South,Other Small Contracts,Bradley House Home Care Services,90.51, 23-May-2011
266,Revenue,CCHD,Home Care Purch North,Other Small Contracts,Bradley House Home Care Services,2555.83, 23-May-2011
267,Revenue,CCHD,Day Care - South,Private & Voluntary Day Care,Bradley House Home Care Services,60.34, 23-May-2011
268,Revenue,CCHD,Day Care - North,Private & Voluntary Day Care,Bradley House Home Care Services,245.67, 23-May-2011
269,Revenue,CCHD,Elderly MH Home Care,Other Small Contracts,Bradley House Home Care Services,193.95, 23-May-2011
270,Revenue,CCHD,Home Care Purch South,Other Small Contracts,Bradley House Home Care Services,64.65, 18-May-2011
271,Revenue,CCHD,Home Care Purch North,Other Small Contracts,Bradley House Home Care Services,2560.14, 18-May-2011
272,Revenue,CCHD,Day Care - South,Private & Voluntary Day Care,Bradley House Home Care Services,56.03, 18-May-2011
273,Revenue,CCHD,Day Care - North,Private & Voluntary Day Care,Bradley House Home Care Services,271.53, 18-May-2011
274,Revenue,CCHD,Elderly MH Home Care,Other Small Contracts,Bradley House Home Care Services,189.64, 18-May-2011
275,Revenue,CCHD,Woodleaze,"Provisions (Food, etc)",Brake Bros,549.42, 13-May-2011
276,Revenue,CCHD,Woodleaze,"Provisions (Food, etc)",Brake Bros,698.9, 13-May-2011
277,Revenue,CCHD,Woodleaze,"Provisions (Food, etc)",Brake Bros,689.41, 11-May-2011
278,Revenue,CCHD,Alexandra Way,"Provisions (Food, etc)",Brake Bros,545.27, 09-May-2011
279,Revenue,CCHD,Elderly Purchasing - North,Residential Homes,Bridge House Care Home,1232.6, 17-May-2011
280,Revenue,CCHD,Elderly Purchasing - North,Residential Homes,Bridge House Care Home,1054.4, 17-May-2011
281,Revenue,CCHD,Elderly Purchasing - North,Residential Homes,Bridge House Care Home,1091.96, 17-May-2011
282,Revenue,CCHD,Elderly Mental Health,Residential Homes,Brightbow,2487.2, 17-May-2011
283,Revenue,CCHD,MH Purchasing - Younger,Residential Homes,Brightbow,856.6, 17-May-2011
284,Revenue,CCHD,Private Sector Housing,Training Expenses,Bristol City Council,1170.71, 09-May-2011
285,Revenue,CCHD,Community Support-Fiveways,Other Supplies & Services,Bristol Glazing Limited,1698.89, 06-May-2011
286,Revenue,CCHD,Community Support-Fiveways,Other Supplies & Services,Bristol Glazing Limited,745.88, 06-May-2011
287,Revenue,CCHD,Bed and Breakfast,Bed & Breakfast,Bristol Housing & Support Limited,870, 18-May-2011
288,Revenue,CCHD,Supporting People Programme,Grants to Voluntary Bodies,Bromford Housing Group,14293.2, 23-May-2011
289,Revenue,CCHD,Elderly Purchasing - South,Nursing Homes,Brunel Care,1066.35, 17-May-2011
290,Revenue,CCHD,Southmead Hospital Purchasing,Residential Homes,Brunel Care,1237.12, 17-May-2011
291,Revenue,CCHD,Southmead Hospital Purchasing,Residential Homes,Brunel Care,1300.32, 17-May-2011
292,Revenue,CCHD,Elderly Purchasing - South,Nursing Homes,Brunelcare,6017.38, 20-May-2011
293,Revenue,CCHD,Elderly Purchasing - North,Nursing Homes,Brunelcare,3187.68, 20-May-2011
294,Revenue,CCHD,Frenchay Hospital Purchasing,Nursing Homes,Brunelcare,3738.74, 20-May-2011
295,Revenue,CCHD,Southmead Hospital Purchasing,Nursing Homes,Brunelcare,1593.82, 20-May-2011
296,Revenue,CCHD,South Glos Users in South Glos Homes,Nursing Homes,Brunelcare,8183.54, 20-May-2011
297,Revenue,CCHD,Elderly Mental Health,Nursing Homes,Brunelcare,13669.68, 20-May-2011
298,Revenue,CCHD,Section 117 Placements,Nursing Homes,Brunelcare,6687.68, 20-May-2011
299,Revenue,CCHD,Elderly Purchasing - South,Nursing Homes,Brunelcare,6799.62, 27-May-2011
300,Revenue,CCHD,Elderly Purchasing - North,Nursing Homes,Brunelcare,3059.45, 27-May-2011
301,Revenue,CCHD,Frenchay Hospital Purchasing,Nursing Homes,Brunelcare,3512.49, 27-May-2011
302,Revenue,CCHD,Southmead Hospital Purchasing,Nursing Homes,Brunelcare,4830.94, 27-May-2011
303,Revenue,CCHD,South Glos Users in South Glos Homes,Nursing Homes,Brunelcare,9410.32, 27-May-2011
304,Revenue,CCHD,Elderly Mental Health,Nursing Homes,Brunelcare,13634, 27-May-2011
305,Revenue,CCHD,Section 117 Placements,Nursing Homes,Brunelcare,4243.52, 27-May-2011
306,Revenue,CCHD,Elderly MH non-res purchasing,Private & Voluntary Day Care,Brunelcare,712.4, 19-May-2011
307,Revenue,CCHD,Contracts & Commissioning Team,Other Small Contracts,Brunelcare,13500, 06-May-2011
308,Revenue,CCHD,Contracts & Commissioning Team,Other Small Contracts,Brunelcare,13500, 13-May-2011
309,Revenue,CCHD,Contracts & Commissioning Team,Other Small Contracts,Brunelcare,13500, 20-May-2011
310,Revenue,CCHD,Contracts & Commissioning Team,Other Small Contracts,Brunelcare,13500, 27-May-2011
311,Revenue,CCHD,Information Systems - Software,Computer Equipment - Purchase,BT Global Services Solutions,759.31, 17-May-2011
312,Revenue,CCHD,Private Sector Housing,Prop.Serv. General Repairs,Building Research Establishment Limited,7012.5, 06-May-2011
313,Revenue,CCHD,Woodleaze,Cleaning & Domestic Supplies,Bunzl Cleaning & Hygiene Supplies,819.73, 18-May-2011
314,Revenue,CCHD,Purchasing Phys Dis - North,Nursing Homes,Bupa Care Services  Bridge House,5700.16, 17-May-2011
315,Revenue,CCHD,South Glos Users in all other LA Homes,Nursing Homes,Bupa Care Services  Bridge House,598.4, 17-May-2011
316,Revenue,CCHD,Frenchay Hospital Purchasing,Nursing Homes,Bupa Care Services  Bridge House,1211.28, 17-May-2011
317,Revenue,CCHD,Charlton,Prop.Serv. General Repairs,C B Decorators,640, 10-May-2011
318,Revenue,CCHD,Supported Living - KD,Private & Voluntary Home Care,Camphill Communities Thornbury Limited,1907.92, 04-May-2011
319,Revenue,CCHD,Supported Living - KD,Private & Voluntary Respite Care,Camphill Communities Thornbury Limited,1640.56, 04-May-2011
320,Revenue,CCHD,Supported Living - KD,Private & Voluntary Home Care,Camphill Communities Thornbury Limited,1754, 09-May-2011
321,Revenue,CCHD,Under 65s PWLD - KD,Residential Homes,Camphill Devon Community,3143.88, 17-May-2011
322,Revenue,CCHD,Under 65s PWLD - KD,Residential Homes,Camphill Devon Community,2208.44, 17-May-2011
323,Revenue,CCHD,Home Care Purch South,Other Small Contracts,Care 1st Homecare,2348.2, 18-May-2011
324,Revenue,CCHD,Home Care Purch North,Other Small Contracts,Care 1st Homecare,3589.96, 18-May-2011
325,Revenue,CCHD,Day Care - South,Private & Voluntary Day Care,Care 1st Homecare,168.4, 18-May-2011
326,Revenue,CCHD,Day Care - North,Private & Voluntary Day Care,Care 1st Homecare,793.76, 18-May-2011
327,Revenue,CCHD,Elderly MH Home Care,Other Small Contracts,Care 1st Homecare,147.26, 18-May-2011
328,Revenue,CCHD,Elderly MH non-res purchasing,Private & Voluntary Day Care,Care 1st Homecare,82.08, 18-May-2011
329,Revenue,CCHD,PWLD Home Care - Under 65 - PS,Private & Voluntary Home Care,Care 1st Homecare,31.84, 18-May-2011
330,Revenue,CCHD,PWLD Home Care - Under 65 - KD,Private & Voluntary Home Care,Care 1st Homecare,15.92, 18-May-2011
331,Revenue,CCHD,PWLD Home Care - Under 65 - KH,Private & Voluntary Home Care,Care 1st Homecare,167.16, 18-May-2011
332,Revenue,CCHD,Home Care Purch South,Other Small Contracts,Care 1st Homecare,2515.36, 25-May-2011
333,Revenue,CCHD,Home Care Purch North,Other Small Contracts,Care 1st Homecare,3414.84, 25-May-2011
334,Revenue,CCHD,Day Care - South,Private & Voluntary Day Care,Care 1st Homecare,175.12, 25-May-2011
335,Revenue,CCHD,Day Care - North,Private & Voluntary Day Care,Care 1st Homecare,740.28, 25-May-2011
336,Revenue,CCHD,Elderly MH Home Care,Other Small Contracts,Care 1st Homecare,163.18, 25-May-2011
337,Revenue,CCHD,Elderly MH non-res purchasing,Private & Voluntary Day Care,Care 1st Homecare,88.8, 25-May-2011
338,Revenue,CCHD,PWLD Home Care - Under 65 - PS,Private & Voluntary Home Care,Care 1st Homecare,31.84, 25-May-2011
339,Revenue,CCHD,PWLD Home Care - Under 65 - KD,Private & Voluntary Home Care,Care 1st Homecare,19.9, 25-May-2011
340,Revenue,CCHD,PWLD Home Care - Under 65 - KH,Private & Voluntary Home Care,Care 1st Homecare,167.16, 25-May-2011
341,Revenue,CCHD,Home Care Purch South,Other Small Contracts,Care 1st Homecare,2411.88, 23-May-2011
342,Revenue,CCHD,Home Care Purch North,Other Small Contracts,Care 1st Homecare,3538.22, 23-May-2011
343,Revenue,CCHD,Day Care - South,Private & Voluntary Day Care,Care 1st Homecare,168.4, 23-May-2011
344,Revenue,CCHD,Day Care - North,Private & Voluntary Day Care,Care 1st Homecare,768.14, 23-May-2011
345,Revenue,CCHD,Elderly MH Home Care,Other Small Contracts,Care 1st Homecare,127.36, 23-May-2011
346,Revenue,CCHD,Elderly MH non-res purchasing,Private & Voluntary Day Care,Care 1st Homecare,82.08, 23-May-2011
347,Revenue,CCHD,PWLD Home Care - Under 65 - PS,Private & Voluntary Home Care,Care 1st Homecare,31.84, 23-May-2011
348,Revenue,CCHD,PWLD Home Care - Under 65 - KD,Private & Voluntary Home Care,Care 1st Homecare,15.92, 23-May-2011
349,Revenue,CCHD,PWLD Home Care - Under 65 - KH,Private & Voluntary Home Care,Care 1st Homecare,31.84, 23-May-2011
350,Revenue,CCHD,Home Care Purch South,Other Small Contracts,Care 1st Homecare,2622.82, 23-May-2011
351,Revenue,CCHD,Home Care Purch North,Other Small Contracts,Care 1st Homecare,3462.6, 23-May-2011
352,Revenue,CCHD,Day Care - South,Private & Voluntary Day Care,Care 1st Homecare,168.4, 23-May-2011
353,Revenue,CCHD,Day Care - North,Private & Voluntary Day Care,Care 1st Homecare,756.2, 23-May-2011
354,Revenue,CCHD,Elderly MH Home Care,Other Small Contracts,Care 1st Homecare,127.36, 23-May-2011
355,Revenue,CCHD,Elderly MH non-res purchasing,Private & Voluntary Day Care,Care 1st Homecare,85.5, 23-May-2011
356,Revenue,CCHD,PWLD Home Care - Under 65 - PS,Private & Voluntary Home Care,Care 1st Homecare,31.84, 23-May-2011
357,Revenue,CCHD,PWLD Home Care - Under 65 - KD,Private & Voluntary Home Care,Care 1st Homecare,15.92, 23-May-2011
358,Revenue,CCHD,PWLD Home Care - Under 65 - KH,Private & Voluntary Home Care,Care 1st Homecare,167.16, 23-May-2011
359,Revenue,CCHD,Home Care Purch South,Other Small Contracts,Care 1st Homecare,2594.96, 25-May-2011
360,Revenue,CCHD,Home Care Purch North,Other Small Contracts,Care 1st Homecare,3315.34, 25-May-2011
361,Revenue,CCHD,Day Care - South,Private & Voluntary Day Care,Care 1st Homecare,216.16, 25-May-2011
362,Revenue,CCHD,Day Care - North,Private & Voluntary Day Care,Care 1st Homecare,604.96, 25-May-2011
363,Revenue,CCHD,Elderly MH Home Care,Other Small Contracts,Care 1st Homecare,147.26, 25-May-2011
364,Revenue,CCHD,Elderly MH non-res purchasing,Private & Voluntary Day Care,Care 1st Homecare,82.08, 25-May-2011
365,Revenue,CCHD,PWLD Home Care - Under 65 - PS,Private & Voluntary Home Care,Care 1st Homecare,31.84, 25-May-2011
366,Revenue,CCHD,PWLD Home Care - Under 65 - KD,Private & Voluntary Home Care,Care 1st Homecare,15.92, 25-May-2011
367,Revenue,CCHD,PWLD Home Care - Under 65 - KH,Private & Voluntary Home Care,Care 1st Homecare,167.16, 25-May-2011
368,Revenue,CCHD,Purchase of Non-Res Care - KD,Private & Voluntary Day Care,Care Horizons Limited,1033.62, 23-May-2011
369,Revenue,CCHD,Supported Living - KD,Private & Voluntary Home Care,Care Horizons Limited,732.99, 23-May-2011
370,Revenue,CCHD,Purchase of Non-Res Care - KD,Private & Voluntary Day Care,Care Horizons Limited,1113.6, 23-May-2011
371,Revenue,CCHD,Day Care - North,Private & Voluntary Day Care,Care Horizons Limited,576.61, 18-May-2011
372,Revenue,CCHD,Day Care - South,Private & Voluntary Day Care,Care Horizons Limited,772.14, 26-May-2011
373,Revenue,CCHD,Supported Living - KD,Private & Voluntary Home Care,Care Horizons Limited,5678.23, 19-May-2011
374,Revenue,CCHD,Purchase of Non-Res Care - KD,Private & Voluntary Day Care,Care Horizons Limited,1066.45, 20-May-2011
375,Revenue,CCHD,Purchase of Non-Res Care - KD,Private & Voluntary Day Care,Care Horizons Limited,1781.7, 19-May-2011
376,Revenue,CCHD,Purchase of Non-Res Care - KD,Private & Voluntary Day Care,Care Horizons Limited,1377.93, 23-May-2011
377,Revenue,CCHD,Purchase of Non-Res Care - KD,Private & Voluntary Day Care,Care Horizons Limited,1292.67, 19-May-2011
378,Revenue,CCHD,Purchase of Non-Res Care - KD,Private & Voluntary Day Care,Care Horizons Limited,1491.46, 20-May-2011
379,Revenue,CCHD,Purchase of Non-Res Care - PS,Private & Voluntary Day Care,Care Horizons Limited,1249.55, 09-May-2011
380,Revenue,CCHD,Supported Living - KD,Private & Voluntary Home Care,Care Horizons Limited,5234.74, 23-May-2011
381,Revenue,CCHD,Purchase of Non-Res Care - KD,Private & Voluntary Day Care,Care Horizons Limited,857.48, 23-May-2011
382,Revenue,CCHD,Purchase of Non-Res Care - KD,Private & Voluntary Day Care,Care Horizons Limited,1544.8, 23-May-2011
383,Revenue,CCHD,Contracts & Commissioning Team,Other Small Contracts,Care UK Homecare,20000, 06-May-2011
384,Revenue,CCHD,Contracts & Commissioning Team,Other Small Contracts,Care UK Homecare,20000, 13-May-2011
385,Revenue,CCHD,Contracts & Commissioning Team,Other Small Contracts,Care UK Homecare,20000, 20-May-2011
386,Revenue,CCHD,Contracts & Commissioning Team,Other Small Contracts,Care UK Homecare,20000, 27-May-2011
387,Revenue,CCHD,Contracts & Commissioning Team,Other Small Contracts,Carewatch (Bristol),2500, 06-May-2011
388,Revenue,CCHD,Contracts & Commissioning Team,Other Small Contracts,Carewatch (Bristol),2500, 13-May-2011
389,Revenue,CCHD,Contracts & Commissioning Team,Other Small Contracts,Carewatch (Bristol),2500, 20-May-2011
390,Revenue,CCHD,Contracts & Commissioning Team,Other Small Contracts,Carewatch (Bristol),2500, 27-May-2011
391,Revenue,CCHD,Under 65s PWLD - PS,Nursing Homes,Carriage Court,5748.28, 17-May-2011
392,Revenue,CCHD,Home Care Purch South,Other Small Contracts,Cash Friday at Lloyds TSB,1254, 09-May-2011
393,Revenue,CCHD,Home Care Purch North,Other Small Contracts,Cash Friday at Lloyds TSB,2671.02, 09-May-2011
394,Revenue,CCHD,Day Care - South,Private & Voluntary Day Care,Cash Friday at Lloyds TSB,33.44, 09-May-2011
395,Revenue,CCHD,Day Care - North,Private & Voluntary Day Care,Cash Friday at Lloyds TSB,108.68, 09-May-2011
396,Revenue,CCHD,Elderly MH Home Care,Other Small Contracts,Cash Friday at Lloyds TSB,121.22, 09-May-2011
397,Revenue,CCHD,Home Care Purch South,Other Small Contracts,Cash Friday at Lloyds TSB,1028.28, 23-May-2011
398,Revenue,CCHD,Home Care Purch North,Other Small Contracts,Cash Friday at Lloyds TSB,2520.54, 23-May-2011
399,Revenue,CCHD,Day Care - South,Private & Voluntary Day Care,Cash Friday at Lloyds TSB,33.44, 23-May-2011
400,Revenue,CCHD,Day Care - North,Private & Voluntary Day Care,Cash Friday at Lloyds TSB,112.86, 23-May-2011
401,Revenue,CCHD,Elderly MH Home Care,Other Small Contracts,Cash Friday at Lloyds TSB,117.04, 23-May-2011
402,Revenue,CCHD,Home Care Purch South,Other Small Contracts,Cash Friday at Lloyds TSB,1279.08, 19-May-2011
403,Revenue,CCHD,Home Care Purch North,Other Small Contracts,Cash Friday at Lloyds TSB,2524.72, 19-May-2011
404,Revenue,CCHD,Day Care - South,Private & Voluntary Day Care,Cash Friday at Lloyds TSB,33.44, 19-May-2011
405,Revenue,CCHD,Day Care - North,Private & Voluntary Day Care,Cash Friday at Lloyds TSB,100.32, 19-May-2011
406,Revenue,CCHD,Elderly MH Home Care,Other Small Contracts,Cash Friday at Lloyds TSB,121.22, 19-May-2011
407,Revenue,CCHD,Home Care Purch South,Other Small Contracts,Cash Friday at Lloyds TSB,1249.82, 24-May-2011
408,Revenue,CCHD,Home Care Purch North,Other Small Contracts,Cash Friday at Lloyds TSB,2466.2, 24-May-2011
409,Revenue,CCHD,Day Care - South,Private & Voluntary Day Care,Cash Friday at Lloyds TSB,33.44, 24-May-2011
410,Revenue,CCHD,Day Care - North,Private & Voluntary Day Care,Cash Friday at Lloyds TSB,100.32, 24-May-2011
411,Revenue,CCHD,Elderly MH Home Care,Other Small Contracts,Cash Friday at Lloyds TSB,125.4, 24-May-2011
412,Revenue,CCHD,Home Care Purch South,Other Small Contracts,Cash Friday at Lloyds TSB,873.62, 19-May-2011
413,Revenue,CCHD,Home Care Purch North,Other Small Contracts,Cash Friday at Lloyds TSB,2357.52, 19-May-2011
414,Revenue,CCHD,Day Care - South,Private & Voluntary Day Care,Cash Friday at Lloyds TSB,33.44, 19-May-2011
415,Revenue,CCHD,Day Care - North,Private & Voluntary Day Care,Cash Friday at Lloyds TSB,100.32, 19-May-2011
416,Revenue,CCHD,Elderly MH Home Care,Other Small Contracts,Cash Friday at Lloyds TSB,129.58, 19-May-2011
417,Revenue,CCHD,Home Care Purch South,Other Small Contracts,Cash Friday at Lloyds TSB,1078.44, 23-May-2011
418,Revenue,CCHD,Home Care Purch North,Other Small Contracts,Cash Friday at Lloyds TSB,2294.82, 23-May-2011
419,Revenue,CCHD,Day Care - South,Private & Voluntary Day Care,Cash Friday at Lloyds TSB,33.44, 23-May-2011
420,Revenue,CCHD,Day Care - North,Private & Voluntary Day Care,Cash Friday at Lloyds TSB,96.14, 23-May-2011
421,Revenue,CCHD,Elderly MH Home Care,Other Small Contracts,Cash Friday at Lloyds TSB,129.58, 23-May-2011
422,Revenue,CCHD,Home Care Purch South,Other Small Contracts,Cash Friday at Lloyds TSB,718.96, 31-May-2011
423,Revenue,CCHD,Home Care Purch North,Other Small Contracts,Cash Friday at Lloyds TSB,2399.32, 31-May-2011
424,Revenue,CCHD,Day Care - South,Private & Voluntary Day Care,Cash Friday at Lloyds TSB,33.44, 31-May-2011
425,Revenue,CCHD,Day Care - North,Private & Voluntary Day Care,Cash Friday at Lloyds TSB,83.6, 31-May-2011
426,Revenue,CCHD,Elderly MH Home Care,Other Small Contracts,Cash Friday at Lloyds TSB,121.22, 31-May-2011
427,Revenue,CCHD,Home Care Purch South,Other Small Contracts,Cash Friday at Lloyds TSB,1279.08, 18-May-2011
428,Revenue,CCHD,Home Care Purch North,Other Small Contracts,Cash Friday at Lloyds TSB,2712.82, 18-May-2011
429,Revenue,CCHD,Day Care - South,Private & Voluntary Day Care,Cash Friday at Lloyds TSB,29.26, 18-May-2011
430,Revenue,CCHD,Day Care - North,Private & Voluntary Day Care,Cash Friday at Lloyds TSB,100.32, 18-May-2011
431,Revenue,CCHD,Elderly MH Home Care,Other Small Contracts,Cash Friday at Lloyds TSB,121.22, 18-May-2011
432,Revenue,CCHD,Frenchay Hospital Purchasing,Nursing Homes,Cedar Care Homes Ltd,1051.8, 17-May-2011
433,Revenue,CCHD,Elderly Purchasing - South,Residential Homes,Cepen Lodge Care Home,2120, 17-May-2011
434,Revenue,CCHD,Elderly Purchasing - South,Residential Homes,Cepen Lodge Care Home,2120, 17-May-2011
435,Revenue,CCHD,Elderly Mental Health,Residential Homes,Chatsworth House,1300.56, 17-May-2011
436,Revenue,CCHD,Southmead Hospital Purchasing,Residential Homes,Chatsworth House,1032.12, 17-May-2011
437,Revenue,CCHD,S28A - Under 65,Residential Homes,Chescombe Lodge,8352.24, 17-May-2011
438,Revenue,CCHD,Homelessness Grant,Computer Services,Civica UK Limited,900, 03-May-2011
439,Revenue,CCHD,Homelessness Grant,Computer Services,Civica UK Limited,900, 18-May-2011
440,Revenue,CCHD,Homelessness Grant,Computer Services,Civica UK Limited,900, 31-May-2011
441,Revenue,CCHD,Elderly Purchasing - North,Residential Homes,Cleeve Lodge,1596.44, 17-May-2011
442,Revenue,CCHD,Southmead Hospital Purchasing,Residential Homes,Cleeve Lodge,1065.6, 17-May-2011
443,Revenue,CCHD,Southmead Hospital Purchasing,Residential Homes,Cleeve Lodge,1322.88, 17-May-2011
444,Revenue,CCHD,Elderly Purchasing - South,Residential Homes,Cleeve Lodge,667.92, 17-May-2011
445,Revenue,CCHD,Elderly Purchasing - North,Residential Homes,Cleeve Lodge,2572.01, 17-May-2011
446,Revenue,CCHD,Elderly Purchasing - North,Residential Homes,Cleeve Lodge,1639.24, 17-May-2011
447,Revenue,CCHD,Frenchay Hospital Purchasing,Residential Homes,Cleeve Lodge,1831.76, 17-May-2011
448,Revenue,CCHD,Elderly Purchasing - South,Residential Homes,Cleeve Lodge,1290.08, 17-May-2011
449,Revenue,CCHD,Elderly Purchasing - South,Residential Homes,Cleeve Lodge,1326.68, 17-May-2011
450,Revenue,CCHD,Elderly Purchasing - North,Residential Homes,Cleeve Lodge,1474.32, 17-May-2011
451,Revenue,CCHD,Elderly Purchasing - North,Residential Homes,Cleeve Lodge,1647.6, 17-May-2011
452,Revenue,CCHD,Elderly Purchasing - North,Residential Homes,Cleeve Lodge,3293.16, 17-May-2011
453,Revenue,CCHD,Elderly Purchasing - North,Residential Homes,Cleeve Lodge,1752.2, 17-May-2011
454,Revenue,CCHD,Elderly Purchasing - South,Residential Homes,Collingwood Residential Home,1066.44, 17-May-2011
455,Revenue,CCHD,Elderly Purchasing - South,Residential Homes,Collingwood Residential Home,1297.84, 17-May-2011
456,Revenue,CCHD,Frenchay Hospital Purchasing,Residential Homes,Collingwood Residential Home,1214.6, 17-May-2011
457,Revenue,CCHD,Elderly Mental Health,Residential Homes,Collingwood Residential Home,1286.88, 17-May-2011
458,Revenue,CCHD,Southmead Hospital Purchasing,Residential Homes,Collingwood Residential Home,1218.52, 17-May-2011
459,Revenue,CCHD,Elderly Purchasing - South,Residential Homes,Collingwood Residential Home,1256.96, 17-May-2011
460,Revenue,CCHD,Elderly Purchasing - North,Residential Homes,Collingwood Residential Home,1110, 17-May-2011
461,Revenue,CCHD,Elderly Purchasing - South,Residential Homes,Collingwood Residential Home,1176.32, 17-May-2011
462,Revenue,CCHD,Elderly Purchasing - South,Residential Homes,Collingwood Residential Home,1383.88, 17-May-2011
463,Revenue,CCHD,S28A - Under 65,Residential Homes,Compass Care,9441.64, 17-May-2011
464,Revenue,CCHD,Bed and Breakfast,Bed & Breakfast,Connolly & Callaghan Limited,465, 09-May-2011
465,Revenue,CCHD,Bed and Breakfast,Bed & Breakfast,Connolly & Callaghan Limited,511, 03-May-2011
466,Revenue,CCHD,Bed and Breakfast,Bed & Breakfast,Connolly & Callaghan Limited,651, 03-May-2011
467,Revenue,CCHD,Bed and Breakfast,Bed & Breakfast,Connolly & Callaghan Limited,465, 03-May-2011
468,Revenue,CCHD,Bed and Breakfast,Bed & Breakfast,Connolly & Callaghan Limited,581, 03-May-2011
469,Revenue,CCHD,Bed and Breakfast,Bed & Breakfast,Connolly & Callaghan Limited,441, 03-May-2011
470,Revenue,CCHD,Bed and Breakfast,Bed & Breakfast,Connolly & Callaghan Limited,511, 16-May-2011
471,Revenue,CCHD,Bed and Breakfast,Bed & Breakfast,Connolly & Callaghan Limited,651, 16-May-2011
472,Revenue,CCHD,Bed and Breakfast,Bed & Breakfast,Connolly & Callaghan Limited,431, 16-May-2011
473,Revenue,CCHD,Bed and Breakfast,Bed & Breakfast,Connolly & Callaghan Limited,581, 16-May-2011
474,Revenue,CCHD,Bed and Breakfast,Bed & Breakfast,Connolly & Callaghan Limited,511, 16-May-2011
475,Revenue,CCHD,Bed and Breakfast,Bed & Breakfast,Connolly & Callaghan Limited,651, 16-May-2011
476,Revenue,CCHD,Bed and Breakfast,Bed & Breakfast,Connolly & Callaghan Limited,431, 16-May-2011
477,Revenue,CCHD,Bed and Breakfast,Bed & Breakfast,Connolly & Callaghan Limited,581, 16-May-2011
478,Revenue,CCHD,Bed and Breakfast,Bed & Breakfast,Connolly & Callaghan Limited,511, 19-May-2011
479,Revenue,CCHD,Bed and Breakfast,Bed & Breakfast,Connolly & Callaghan Limited,651, 19-May-2011
480,Revenue,CCHD,Bed and Breakfast,Bed & Breakfast,Connolly & Callaghan Limited,441, 19-May-2011
481,Revenue,CCHD,Bed and Breakfast,Bed & Breakfast,Connolly & Callaghan Limited,581, 19-May-2011
482,Revenue,CCHD,Bed and Breakfast,Bed & Breakfast,Connolly & Callaghan Limited,511, 19-May-2011
483,Revenue,CCHD,Bed and Breakfast,Bed & Breakfast,Connolly & Callaghan Limited,511, 31-May-2011
484,Revenue,CCHD,Bed and Breakfast,Bed & Breakfast,Connolly & Callaghan Limited,441, 31-May-2011
485,Revenue,CCHD,Bed and Breakfast,Bed & Breakfast,Connolly & Callaghan Limited,581, 31-May-2011
486,Revenue,CCHD,Bed and Breakfast,Bed & Breakfast,Connolly & Callaghan Limited,511, 31-May-2011
487,Revenue,CCHD,Under 65s PWLD - PS,Residential Homes,Consensus Support Services Ltd,9189.2, 04-May-2011
488,Revenue,CCHD,Wapley Court,Gas,Corona Energy Retail 3 Limited,760.42, 11-May-2011
489,Revenue,CCHD,Kingswood District Office,Gas,Corona Energy Retail 3 Limited,499.9, 11-May-2011
490,Revenue,CCHD,Blackhorse RAC,Gas,Corona Energy Retail 3 Limited,1124.81, 11-May-2011
491,Revenue,CCHD,Downend Day Centre,Gas,Corona Energy Retail 3 Limited,2387.68, 11-May-2011
492,Revenue,CCHD,Newton House,Gas,Corona Energy Retail 3 Limited,1823.41, 11-May-2011
493,Revenue,CCHD,Kerr House,Gas,Corona Energy Retail 3 Limited,1449.01, 11-May-2011
494,Revenue,CCHD,Woodleaze,Gas,Corona Energy Retail 3 Limited,1591.34, 11-May-2011
495,Revenue,CCHD,Alexandra Way,Gas,Corona Energy Retail 3 Limited,1846.96, 11-May-2011
496,Revenue,CCHD,Charlton,Gas,Corona Energy Retail 3 Limited,1426.5, 11-May-2011
497,Revenue,CCHD,Blackhorse RAC,Gas,Corona Energy Retail 3 Limited,519.22, 31-May-2011
498,Revenue,CCHD,Downend Day Centre,Gas,Corona Energy Retail 3 Limited,1672.33, 31-May-2011
499,Revenue,CCHD,Newton House,Gas,Corona Energy Retail 3 Limited,1188.71, 31-May-2011
500,Revenue,CCHD,Kerr House,Gas,Corona Energy Retail 3 Limited,896.45, 31-May-2011
501,Revenue,CCHD,Woodleaze,Gas,Corona Energy Retail 3 Limited,760.61, 31-May-2011
502,Revenue,CCHD,Alexandra Way,Gas,Corona Energy Retail 3 Limited,1205.27, 31-May-2011
503,Revenue,CCHD,Charlton,Gas,Corona Energy Retail 3 Limited,676.78, 31-May-2011
504,Revenue,CCHD,Detained,Nursing Homes,Craegmoor Facilities Company Ltd,13573.66, 12-May-2011
505,Revenue,CCHD,Detained,Nursing Homes,Craegmoor Facilities Company Ltd,13135.8, 26-May-2011
506,Revenue,CCHD,Elderly PWLD - KH,Residential Homes,Craegmoor Healthcare,4785.48, 17-May-2011
507,Revenue,CCHD,Under 65s PWLD - KH,Residential Homes,Craegmoor Healthcare,4006.72, 17-May-2011
508,Revenue,CCHD,Under 65s PWLD - KH,Residential Homes,Craegmoor Healthcare,4825.08, 17-May-2011
509,Revenue,CCHD,Under 65s PWLD - KH,Residential Homes,Craegmoor Healthcare,13468.64, 17-May-2011
510,Revenue,CCHD,Under 65s PWLD - PS,Residential Homes,Craegmoor Healthcare,5420.4, 17-May-2011
511,Revenue,CCHD,Under 65s PWLD - KD,Residential Homes,Craegmoor Healthcare,2720.8, 17-May-2011
512,Revenue,CCHD,S28A - Under 65,Residential Homes,Craegmoor Healthcare,4506.8, 17-May-2011
513,Revenue,CCHD,S28A - Under 65,Residential Homes,Craegmoor Healthcare,9544.01, 17-May-2011
514,Revenue,CCHD,S28A - Over 65,Residential Homes,Craegmoor Healthcare,5163.72, 17-May-2011
515,Revenue,CCHD,Under 65s PWLD - KH,Residential Homes,Craegmoor Healthcare,7036.88, 17-May-2011
516,Revenue,CCHD,Under 65s PWLD - KD,Residential Homes,Craegmoor Healthcare,2149.28, 17-May-2011
517,Revenue,CCHD,Under 65s PWLD - KH,Residential Homes,Craegmoor Healthcare,4801.96, 17-May-2011
518,Revenue,CCHD,S28A - Under 65,Residential Homes,Craegmoor Healthcare,5705, 17-May-2011
519,Revenue,CCHD,S28A - Under 65,Residential Homes,Cream Ii Ltd,7725.68, 17-May-2011
520,Revenue,CCHD,S28A - Under 65,Residential Homes,Creedy Court,8934.84, 17-May-2011
521,Revenue,CCHD,S28A - Over 65,Residential Homes,Creedy Court,7434.12, 17-May-2011
522,Revenue,CCHD,Under 65s PWLD - PS,Residential Homes,Cromwell House,7799.19, 17-May-2011
523,Revenue,CCHD,Under 65s PWLD - PS,Residential Homes,Daneswood,10598.4, 17-May-2011
524,Revenue,CCHD,Under 65s PWLD - KD,Residential Homes,Daneswood,8751.95, 17-May-2011
525,Revenue,CCHD,Learning Difficulties PSL,Rent,Individual,1800, 20-May-2011
526,Revenue,CCHD,S28a Day Care,Private & Voluntary Day Care,DCF Premier Workshops Trust,1538.86, 09-May-2011
527,Revenue,CCHD,Day Care - North,Private & Voluntary Day Care,Deafblind UK,1261.26, 16-May-2011
528,Revenue,CCHD,Day Care - South,Private & Voluntary Day Care,Deafblind UK,920.4, 04-May-2011
529,Revenue,CCHD,Day Care - South,Private & Voluntary Day Care,Deafblind UK,1998, 04-May-2011
530,Revenue,CCHD,Day Care - South,Private & Voluntary Day Care,Dhek Bhal,1482, 23-May-2011
531,Revenue,CCHD,Under 65s PWLD - KH,Residential Homes,Dimensions(Uk) Ltd,4696, 17-May-2011
532,Revenue,CCHD,Under 65s PWLD - PS,Residential Homes,Dimensions(Uk) Ltd,1708.92, 17-May-2011
533,Revenue,CCHD,Home Care Purch South,Other Small Contracts,DoCare Ltd,1966.95, 20-May-2011
534,Revenue,CCHD,Home Care Purch North,Other Small Contracts,DoCare Ltd,3324.75, 20-May-2011
535,Revenue,CCHD,Day Care - South,Private & Voluntary Day Care,DoCare Ltd,120.9, 20-May-2011
536,Revenue,CCHD,Day Care - North,Private & Voluntary Day Care,DoCare Ltd,483.6, 20-May-2011
537,Revenue,CCHD,Elderly MH Home Care,Other Small Contracts,DoCare Ltd,381.3, 20-May-2011
538,Revenue,CCHD,Elderly MH non-res purchasing,Private & Voluntary Day Care,DoCare Ltd,51.15, 20-May-2011
539,Revenue,CCHD,Home Care Purch South,Other Small Contracts,DoCare Ltd,1999.5, 20-May-2011
540,Revenue,CCHD,Home Care Purch North,Other Small Contracts,DoCare Ltd,3296.85, 20-May-2011
541,Revenue,CCHD,Day Care - South,Private & Voluntary Day Care,DoCare Ltd,111.6, 20-May-2011
542,Revenue,CCHD,Day Care - North,Private & Voluntary Day Care,DoCare Ltd,483.6, 20-May-2011
543,Revenue,CCHD,Elderly MH Home Care,Other Small Contracts,DoCare Ltd,381.3, 20-May-2011
544,Revenue,CCHD,Elderly MH non-res purchasing,Private & Voluntary Day Care,DoCare Ltd,55.8, 20-May-2011
545,Revenue,CCHD,Getting a Life Project,Other Supplies & Services,Dr Carol Robinson,1100, 31-May-2011
546,Revenue,CCHD,Brokerage and Information Service,Grants to Voluntary Bodies,Drugs & Homeless Initiative,9210.09, 27-May-2011
547,Revenue,CCHD,Supporting People Programme,Grants to Voluntary Bodies,Drugs & Homeless Initiative,28862, 23-May-2011
548,Revenue,CCHD,Elderly Purchasing - South,Nursing Homes,Dunkirk Memorial House,1163.84, 17-May-2011
549,Revenue,CCHD,MH Purchasing - Younger,Residential Homes,Dunraven House,1783.8, 17-May-2011
550,Revenue,CCHD,Bed and Breakfast,Bed & Breakfast,E J Bartlett,637, 09-May-2011
551,Revenue,CCHD,Bed and Breakfast,Bed & Breakfast,E J Bartlett,455, 03-May-2011
552,Revenue,CCHD,Bed and Breakfast,Bed & Breakfast,E J Bartlett,546, 16-May-2011
553,Revenue,CCHD,Bed and Breakfast,Bed & Breakfast,E J Bartlett,637, 11-May-2011
554,Revenue,CCHD,Bed and Breakfast,Bed & Breakfast,E J Bartlett,455, 11-May-2011
555,Revenue,CCHD,Bed and Breakfast,Bed & Breakfast,E J Bartlett,637, 11-May-2011
556,Revenue,CCHD,Bed and Breakfast,Bed & Breakfast,E J Bartlett,637, 16-May-2011
557,Revenue,CCHD,Bed and Breakfast,Bed & Breakfast,E J Bartlett,637, 16-May-2011
558,Revenue,CCHD,Bed and Breakfast,Bed & Breakfast,E J Bartlett,455, 16-May-2011
559,Revenue,CCHD,Bed and Breakfast,Bed & Breakfast,E J Bartlett,637, 16-May-2011
560,Revenue,CCHD,Bed and Breakfast,Bed & Breakfast,E J Bartlett,637, 19-May-2011
561,Revenue,CCHD,Bed and Breakfast,Bed & Breakfast,E J Bartlett,637, 19-May-2011
562,Revenue,CCHD,Bed and Breakfast,Bed & Breakfast,E J Bartlett,455, 19-May-2011
563,Revenue,CCHD,Bed and Breakfast,Bed & Breakfast,E J Bartlett,637, 19-May-2011
564,Revenue,CCHD,Bed and Breakfast,Bed & Breakfast,E J Bartlett,637, 31-May-2011
565,Revenue,CCHD,Bed and Breakfast,Bed & Breakfast,E J Bartlett,637, 31-May-2011
566,Revenue,CCHD,Bed and Breakfast,Bed & Breakfast,E J Bartlett,455, 31-May-2011
567,Revenue,CCHD,Bed and Breakfast,Bed & Breakfast,E J Bartlett,637, 31-May-2011
568,Revenue,CCHD,Under 65s PWLD - KH,Residential Homes,East Court,2136.36, 17-May-2011
569,Revenue,CCHD,Charlton,Electricity,EDF Energy 1 Limited,1028.52, 13-May-2011
570,Revenue,CCHD,Kerr House,Electricity,EDF Energy 1 Limited,902.4, 13-May-2011
571,Revenue,CCHD,Wapley Court,Electricity,EDF Energy 1 Limited,1026.29, 13-May-2011
572,Revenue,CCHD,Woodleaze,Electricity,EDF Energy 1 Limited,934.08, 13-May-2011
573,Revenue,CCHD,Newton House,Electricity,EDF Energy 1 Limited,894.72, 16-May-2011
574,Revenue,CCHD,Downend Day Centre,Electricity,EDF Energy 1 Limited,804.26, 13-May-2011
575,Revenue,CCHD,Alexandra Way,Electricity,EDF Energy 1 Limited,1198.85, 13-May-2011
576,Revenue,CCHD,Section 117 Placements,Residential Homes,Edgecumbe Lodge,1879.56, 17-May-2011
577,Revenue,CCHD,Frenchay Hospital Purchasing,Residential Homes,Edgecumbe Lodge,2698.44, 17-May-2011
578,Revenue,CCHD,Elderly Purchasing - South,Residential Homes,Edgecumbe Lodge,1216.68, 17-May-2011
579,Revenue,CCHD,Frenchay Hospital Purchasing,Residential Homes,Edgecumbe Lodge,1049.87, 17-May-2011
580,Revenue,CCHD,Elderly Mental Health,Residential Homes,Edgecumbe Lodge,1146.36, 17-May-2011
581,Revenue,CCHD,Elderly Mental Health,Residential Homes,Edgecumbe Lodge,1152.04, 17-May-2011
582,Revenue,CCHD,Elderly PWLD - PS,Residential Homes,Edgemont House Ltd,1316.96, 17-May-2011
583,Revenue,CCHD,Frenchay Hospital Purchasing,Residential Homes,Edgemont House Ltd,1240.12, 17-May-2011
584,Revenue,CCHD,Frenchay Hospital Purchasing,Residential Homes,Edgemont House Ltd,1245.28, 17-May-2011
585,Revenue,CCHD,Elderly Purchasing - South,Residential Homes,Edgemont House Ltd,1062.52, 17-May-2011
586,Revenue,CCHD,Elderly Purchasing - South,Residential Homes,Edgemont House Ltd,1262.6, 17-May-2011
587,Revenue,CCHD,Elderly Purchasing - South,Residential Homes,Edgemont House Ltd,1387.68, 17-May-2011
588,Revenue,CCHD,Elderly Purchasing - South,Residential Homes,Edgemont House Ltd,896.88, 17-May-2011
589,Revenue,CCHD,Elderly Mental Health,Nursing Homes,Edgemont View Nursing Home,600.36, 17-May-2011
590,Revenue,CCHD,Elderly Purchasing - South,Nursing Homes,Edgemont View Nursing Home,1405, 17-May-2011
591,Revenue,CCHD,Frenchay Hospital Purchasing,Nursing Homes,Edgemont View Nursing Home,1335.8, 17-May-2011
592,Revenue,CCHD,Elderly Purchasing - North,Nursing Homes,Edgemont View Nursing Home,1440.84, 17-May-2011
593,Revenue,CCHD,Elderly Purchasing - South,Nursing Homes,Edgemont View Nursing Home,1247.8, 17-May-2011
594,Revenue,CCHD,Elderly Purchasing - South,Nursing Homes,Edgemont View Nursing Home,1586.2, 17-May-2011
595,Revenue,CCHD,Frenchay Hospital Purchasing,Nursing Homes,Edgemont View Nursing Home,636.04, 17-May-2011
596,Revenue,CCHD,Frenchay Hospital Purchasing,Nursing Homes,Edgemont View Nursing Home,1253.16, 17-May-2011
597,Revenue,CCHD,Supporting People Programme,Grants to Voluntary Bodies,Elim Housing Association Ltd,4434.56, 10-May-2011
598,Revenue,CCHD,Supporting People Programme,Grants to Voluntary Bodies,Elim Housing Association Ltd,4434.56, 10-May-2011
599,Revenue,CCHD,Supporting People Programme,Grants to Voluntary Bodies,Elim Housing Association Ltd,3801.05, 10-May-2011
600,Revenue,CCHD,Information Systems Team,Other Supplies & Services,Emersons Green Village Hall,933.75, 25-May-2011
601,Revenue,CCHD,Younger MH non-res purchasing,Private & Voluntary Day Care,Enham,638.72, 16-May-2011
602,Revenue,CCHD,Detained,Nursing Homes,Erminecare Limited,13392, 09-May-2011
603,Revenue,CCHD,Southmead Hospital Purchasing,Residential Homes,Fairview Court,1661.48, 17-May-2011
604,Revenue,CCHD,Elderly Mental Health,Nursing Homes,Fairview Court,983.52, 17-May-2011
605,Revenue,CCHD,Elderly Mental Health,Residential Homes,Fairview Court,1389, 17-May-2011
606,Revenue,CCHD,Frenchay Hospital Purchasing,Residential Homes,Fairview Court,1507.64, 17-May-2011
607,Revenue,CCHD,Elderly Mental Health,Residential Homes,Fairview Court,1878.8, 17-May-2011
608,Revenue,CCHD,Elderly Purchasing - South,Nursing Homes,Fairview Court,2839.25, 17-May-2011
609,Revenue,CCHD,Elderly Mental Health,Nursing Homes,Fairview Court,733.51, 17-May-2011
610,Revenue,CCHD,Southmead Hospital Purchasing,Nursing Homes,Fairview Court Care Home,1162.2, 18-May-2011
611,Revenue,CCHD,South Glos Users in South Glos Homes,Nursing Homes,Fairview Court Care Home,2174, 18-May-2011
612,Revenue,CCHD,Purchasing Phys Dis - North,Nursing Homes,Fairview Court Care Home,1525.36, 18-May-2011
613,Revenue,CCHD,Elderly Mental Health,Nursing Homes,Fairview Court Care Home,4424.04, 18-May-2011
614,Revenue,CCHD,Southmead Hospital Purchasing,Nursing Homes,Fairview Court Care Home,1286.72, 18-May-2011
615,Revenue,CCHD,South Glos Users in South Glos Homes,Nursing Homes,Fairview Court Care Home,2406.92, 18-May-2011
616,Revenue,CCHD,Purchasing Phys Dis - North,Nursing Homes,Fairview Court Care Home,1688.79, 18-May-2011
617,Revenue,CCHD,Elderly Mental Health,Nursing Homes,Fairview Court Care Home,4898.06, 18-May-2011
618,Revenue,CCHD,Southmead Hospital Purchasing,Nursing Homes,Fairview Court Care Home,1406.35, 18-May-2011
619,Revenue,CCHD,South Glos Users in South Glos Homes,Nursing Homes,Fairview Court Care Home,2329.29, 18-May-2011
620,Revenue,CCHD,Purchasing Phys Dis - North,Nursing Homes,Fairview Court Care Home,1802.36, 18-May-2011
621,Revenue,CCHD,Elderly Mental Health,Nursing Homes,Fairview Court Care Home,7388.94, 18-May-2011
622,Revenue,CCHD,Elderly Purchasing - North,Residential Homes,Faith House,892.2, 17-May-2011
623,Revenue,CCHD,Frenchay Hospital Purchasing,Residential Homes,Faith House,1302.84, 17-May-2011
624,Revenue,CCHD,Frenchay Hospital Purchasing,Residential Homes,Field House Care Home,935.1, 17-May-2011
625,Revenue,CCHD,Under 65s PWLD - KD,Residential Homes,Forge House,3623.16, 17-May-2011
626,Revenue,CCHD,Southmead Hospital Purchasing,Residential Homes,Four Seasons Health Care,1136.2, 17-May-2011
627,Revenue,CCHD,Frenchay Hospital Purchasing,Residential Homes,Four Seasons Health Care,907.04, 17-May-2011
628,Revenue,CCHD,Frenchay Hospital Purchasing,Nursing Homes,Four Seasons Health Care,1349, 17-May-2011
629,Revenue,CCHD,Frenchay Hospital Purchasing,Nursing Homes,Four Seasons Health Care,674.5, 17-May-2011
630,Revenue,CCHD,Elderly Purchasing - South,Residential Homes,Four Seasons Health Care,1183.72, 17-May-2011
631,Revenue,CCHD,Frenchay Hospital Purchasing,Nursing Homes,Four Seasons Health Care,1366.8, 17-May-2011
632,Revenue,CCHD,Elderly Purchasing - South,Nursing Homes,Four Seasons Health Care,1349, 17-May-2011
633,Revenue,CCHD,Southmead Hospital Purchasing,Nursing Homes,Four Seasons Health Care,1252.65, 17-May-2011
634,Revenue,CCHD,Southmead Hospital Purchasing,Nursing Homes,Four Seasons Health Care,1011.75, 17-May-2011
635,Revenue,CCHD,Frenchay Hospital Purchasing,Nursing Homes,Four Seasons Health Care,987.24, 17-May-2011
636,Revenue,CCHD,Elderly Purchasing - South,Nursing Homes,Four Seasons Health Care,835.52, 17-May-2011
637,Revenue,CCHD,Southmead Hospital Purchasing,Residential Homes,Four Seasons Health Care,1349, 17-May-2011
638,Revenue,CCHD,Elderly Purchasing - North,Nursing Homes,Four Seasons Health Care,1056.6, 17-May-2011
639,Revenue,CCHD,Elderly Purchasing - South,Residential Homes,Four Seasons Health Care,1225.8, 17-May-2011
640,Revenue,CCHD,Southmead Hospital Purchasing,Nursing Homes,Four Seasons Health Care,1349, 17-May-2011
641,Revenue,CCHD,Frenchay Hospital Purchasing,Nursing Homes,Four Seasons Health Care,2733.6, 17-May-2011
642,Revenue,CCHD,Frenchay Hospital Purchasing,Nursing Homes,Four Seasons Health Care,1349, 17-May-2011
643,Revenue,CCHD,Cash for Change Discharges,Nursing Homes,Four Seasons Health Care,1349, 17-May-2011
644,Revenue,CCHD,Elderly Purchasing - South,Nursing Homes,Four Seasons Health Care,1394.8, 17-May-2011
645,Revenue,CCHD,Elderly Purchasing - South,Nursing Homes,Four Seasons Health Care,1349, 17-May-2011
646,Revenue,CCHD,Southmead Hospital Purchasing,Residential Homes,Four Seasons Health Care,580.48, 17-May-2011
647,Revenue,CCHD,Frenchay Hospital Purchasing,Nursing Homes,Four Seasons Health Care,1349, 17-May-2011
648,Revenue,CCHD,Frenchay Hospital Purchasing,Nursing Homes,Four Seasons Health Care,1139, 17-May-2011
649,Revenue,CCHD,Elderly Purchasing - South,Nursing Homes,Four Seasons Health Care,1046.64, 17-May-2011
650,Revenue,CCHD,Southmead Hospital Purchasing,Nursing Homes,Four Seasons Health Care,1253.28, 17-May-2011
651,Revenue,CCHD,Elderly Purchasing - South,Nursing Homes,Four Seasons Health Care,1349, 17-May-2011
652,Revenue,CCHD,Elderly Purchasing - South,Nursing Homes,Four Seasons Health Care,1310.12, 17-May-2011
653,Revenue,CCHD,Frenchay Hospital Purchasing,Nursing Homes,Four Seasons Health Care,1342.84, 17-May-2011
654,Revenue,CCHD,Elderly Purchasing - South,Residential Homes,Four Seasons Health Care,974.6, 17-May-2011
655,Revenue,CCHD,Elderly Purchasing - North,Nursing Homes,Four Seasons Health Care,1313, 17-May-2011
656,Revenue,CCHD,Frenchay Hospital Purchasing,Nursing Homes,Four Seasons Health Care,1070.36, 17-May-2011
657,Revenue,CCHD,Elderly Mental Health,Residential Homes,Four Seasons Health Care,1056.64, 17-May-2011
658,Revenue,CCHD,Frenchay Hospital Purchasing,Residential Homes,Four Seasons Health Care,1086.84, 17-May-2011
659,Revenue,CCHD,Elderly Purchasing - South,Nursing Homes,Four Seasons Health Care,1308.56, 17-May-2011
660,Revenue,CCHD,Elderly Mental Health,Nursing Homes,Four Seasons Health Care,1302.2, 17-May-2011
661,Revenue,CCHD,Elderly Purchasing - South,Nursing Homes,Four Seasons Health Care,1359.48, 17-May-2011
662,Revenue,CCHD,Frenchay Hospital Purchasing,Nursing Homes,Four Seasons Health Care,1374.8, 17-May-2011
663,Revenue,CCHD,Elderly Mental Health,Nursing Homes,Four Seasons Health Care,1199.32, 17-May-2011
664,Revenue,CCHD,Southmead Hospital Purchasing,Nursing Homes,Four Seasons Health Care,1012.52, 17-May-2011
665,Revenue,CCHD,Elderly Purchasing - North,Nursing Homes,Four Seasons Health Care,1000, 17-May-2011
666,Revenue,CCHD,Frenchay Hospital Purchasing,Nursing Homes,Four Seasons Health Care,1517, 17-May-2011
667,Revenue,CCHD,Frenchay Hospital Purchasing,Nursing Homes,Four Seasons Health Care,1283.16, 17-May-2011
668,Revenue,CCHD,Frenchay Hospital Purchasing,Nursing Homes,Four Seasons Health Care,1045.22, 17-May-2011
669,Revenue,CCHD,Southmead Hospital Purchasing,Residential Homes,Four Seasons Health Care,1232, 17-May-2011
670,Revenue,CCHD,Frenchay Hospital Purchasing,Nursing Homes,Four Seasons Health Care,1269.03, 17-May-2011
671,Revenue,CCHD,Elderly Purchasing - North,Residential Homes,Four Seasons Health Care,861.28, 17-May-2011
672,Revenue,CCHD,Elderly Mental Health,Nursing Homes,Four Seasons Health Care,10003.38, 17-May-2011
673,Revenue,CCHD,Elderly Purchasing - South,Nursing Homes,Four Seasons Health Care,1229.2, 17-May-2011
674,Revenue,CCHD,Elderly Mental Health,Nursing Homes,Four Seasons Health Care,1313, 17-May-2011
675,Revenue,CCHD,Frenchay Hospital Purchasing,Nursing Homes,Four Seasons Health Care,1268.08, 17-May-2011
676,Revenue,CCHD,Elderly Purchasing - South,Nursing Homes,Four Seasons Health Care,1349, 17-May-2011
677,Revenue,CCHD,Elderly Purchasing - South,Nursing Homes,Four Seasons Health Care,1459.32, 17-May-2011
678,Revenue,CCHD,Southmead Hospital Purchasing,Nursing Homes,Four Seasons Health Care,1349, 17-May-2011
679,Revenue,CCHD,Elderly Purchasing - South,Nursing Homes,Four Seasons Health Care,1349, 17-May-2011
680,Revenue,CCHD,Elderly Purchasing - South,Nursing Homes,Four Seasons Health Care,1808, 17-May-2011
681,Revenue,CCHD,Southmead Hospital Purchasing,Nursing Homes,Four Seasons Health Care,809.64, 17-May-2011
682,Revenue,CCHD,Elderly Mental Health,Nursing Homes,Four Seasons Health Care,1431.72, 17-May-2011
683,Revenue,CCHD,Elderly Purchasing - North,Nursing Homes,Four Seasons Health Care,1349, 17-May-2011
684,Revenue,CCHD,Elderly Purchasing - North,Nursing Homes,Four Seasons Health Care,1103.48, 17-May-2011
685,Revenue,CCHD,Southmead Hospital Purchasing,Nursing Homes,Four Seasons Health Care,1304.16, 17-May-2011
686,Revenue,CCHD,Southmead Hospital Purchasing,Nursing Homes,Four Seasons Health Care,1336.4, 17-May-2011
687,Revenue,CCHD,Frenchay Hospital Purchasing,Nursing Homes,Four Seasons Health Care,1284.56, 17-May-2011
688,Revenue,CCHD,Elderly Mental Health,Nursing Homes,Four Seasons Health Care,1517, 17-May-2011
689,Revenue,CCHD,Elderly Purchasing - North,Residential Homes,Four Seasons Health Care,729.44, 17-May-2011
690,Revenue,CCHD,Elderly Purchasing - North,Nursing Homes,Four Seasons Health Care,719.68, 17-May-2011
691,Revenue,CCHD,Frenchay Hospital Purchasing,Nursing Homes,Four Seasons Health Care,1323.8, 17-May-2011
692,Revenue,CCHD,Elderly Purchasing - North,Nursing Homes,Four Seasons Health Care,1498.88, 17-May-2011
693,Revenue,CCHD,Elderly Purchasing - South,Residential Homes,Four Seasons Health Care,1229, 17-May-2011
694,Revenue,CCHD,Elderly Purchasing - North,Nursing Homes,Four Seasons Health Care,1402.72, 17-May-2011
695,Revenue,CCHD,Southmead Hospital Purchasing,Residential Homes,Four Seasons Health Care,1647.56, 17-May-2011
696,Revenue,CCHD,Elderly Mental Health,Nursing Homes,Four Seasons Health Care,1402.52, 17-May-2011
697,Revenue,CCHD,Elderly Mental Health,Nursing Homes,Four Seasons Health Care,1404.08, 17-May-2011
698,Revenue,CCHD,Elderly Purchasing - North,Nursing Homes,Four Seasons Health Care,695.26, 17-May-2011
699,Revenue,CCHD,Southmead Hospital Purchasing,Nursing Homes,Four Seasons Health Care,1349, 17-May-2011
700,Revenue,CCHD,Frenchay Hospital Purchasing,Nursing Homes,Four Seasons Health Care,1221.6, 17-May-2011
701,Revenue,CCHD,Elderly Purchasing - North,Nursing Homes,Four Seasons Health Care,921, 17-May-2011
702,Revenue,CCHD,Elderly Purchasing - North,Nursing Homes,Four Seasons Health Care,1458.32, 17-May-2011
703,Revenue,CCHD,Southmead Hospital Purchasing,Nursing Homes,Four Seasons Health Care,620.92, 17-May-2011
704,Revenue,CCHD,Elderly Purchasing - South,Nursing Homes,Four Seasons Health Care,1294.92, 17-May-2011
705,Revenue,CCHD,Frenchay Hospital Purchasing,Nursing Homes,Four Seasons Health Care,1161.72, 17-May-2011
706,Revenue,CCHD,Elderly Mental Health,Residential Homes,Four Seasons Health Care,1202.24, 17-May-2011
707,Revenue,CCHD,Southmead Hospital Purchasing,Nursing Homes,Four Seasons Health Care,1349, 17-May-2011
708,Revenue,CCHD,Southmead Hospital Purchasing,Residential Homes,Four Seasons Health Care,1246.8, 17-May-2011
709,Revenue,CCHD,Elderly Mental Health,Nursing Homes,Four Seasons Health Care,1349, 17-May-2011
710,Revenue,CCHD,Elderly Mental Health,Residential Homes,Four Seasons Health Care,1344.16, 17-May-2011
711,Revenue,CCHD,Elderly Purchasing - North,Nursing Homes,Four Seasons Health Care,1341.32, 17-May-2011
712,Revenue,CCHD,Elderly Mental Health,Nursing Homes,Four Seasons Health Care,1034.84, 17-May-2011
713,Revenue,CCHD,Frenchay Hospital Purchasing,Nursing Homes,Four Seasons Health Care,1349, 17-May-2011
714,Revenue,CCHD,Elderly Mental Health,Residential Homes,Four Seasons Health Care,1139.16, 17-May-2011
715,Revenue,CCHD,Southmead Hospital Purchasing,Nursing Homes,Four Seasons Health Care,833.4, 17-May-2011
716,Revenue,CCHD,Frenchay Hospital Purchasing,Nursing Homes,Four Seasons Health Care,1349, 17-May-2011
717,Revenue,CCHD,Frenchay Hospital Purchasing,Nursing Homes,Four Seasons Health Care,1304.44, 17-May-2011
718,Revenue,CCHD,Elderly Purchasing - South,Nursing Homes,Four Seasons Health Care,1251.72, 17-May-2011
719,Revenue,CCHD,Frenchay Hospital Purchasing,Nursing Homes,Four Seasons Health Care,1121.16, 17-May-2011
720,Revenue,CCHD,Elderly Purchasing - North,Nursing Homes,Four Seasons Health Care,1097.76, 17-May-2011
721,Revenue,CCHD,Southmead Hospital Purchasing,Nursing Homes,Four Seasons Health Care,1349, 17-May-2011
722,Revenue,CCHD,Elderly Mental Health,Nursing Homes,Four Seasons Health Care,1224.72, 17-May-2011
723,Revenue,CCHD,Southmead Hospital Purchasing,Nursing Homes,Four Seasons Health Care,1349, 17-May-2011
724,Revenue,CCHD,Frenchay Hospital Purchasing,Nursing Homes,Four Seasons Health Care,1297.12, 17-May-2011
725,Revenue,CCHD,Frenchay Hospital Purchasing,Nursing Homes,Four Seasons Health Care,803.08, 17-May-2011
726,Revenue,CCHD,Frenchay Hospital Purchasing,Nursing Homes,Four Seasons Health Care,1349, 17-May-2011
727,Revenue,CCHD,Frenchay Hospital Purchasing,Nursing Homes,Four Seasons Health Care,1349, 17-May-2011
728,Revenue,CCHD,Frenchay Hospital Purchasing,Nursing Homes,Four Seasons Health Care,1349, 17-May-2011
729,Revenue,CCHD,Frenchay Hospital Purchasing,Nursing Homes,Four Seasons Health Care,1349, 17-May-2011
730,Revenue,CCHD,Frenchay Hospital Purchasing,Nursing Homes,Four Seasons Health Care,1382.8, 17-May-2011
731,Revenue,CCHD,Elderly Purchasing - South,Nursing Homes,Four Seasons Health Care,1057.92, 17-May-2011
732,Revenue,CCHD,Elderly Purchasing - North,Nursing Homes,Four Seasons Health Care,857.96, 17-May-2011
733,Revenue,CCHD,Southmead Hospital Purchasing,Residential Homes,Four Seasons Health Care,1103.44, 17-May-2011
734,Revenue,CCHD,Southmead Hospital Purchasing,Nursing Homes,Four Seasons Health Care,1131.04, 17-May-2011
735,Revenue,CCHD,Southmead Hospital Purchasing,Nursing Homes,Four Seasons Health Care,1317.56, 17-May-2011
736,Revenue,CCHD,Purchasing Phys Dis - North,Nursing Homes,Four Seasons Health Care,1341.73, 17-May-2011
737,Revenue,CCHD,Elderly Purchasing - South,Nursing Homes,Four Seasons Health Care,1225.28, 17-May-2011
738,Revenue,CCHD,Southmead Hospital Purchasing,Residential Homes,Four Seasons Health Care,1450.89, 17-May-2011
739,Revenue,CCHD,Frenchay Hospital Purchasing,Nursing Homes,Four Seasons Health Care,1808, 17-May-2011
740,Revenue,CCHD,South Glos Users in South Glos Homes,Nursing Homes,Four Seasons Health Care,2189.53, 17-May-2011
741,Revenue,CCHD,Southmead Hospital Purchasing,Nursing Homes,Four Seasons Health Care,1275.28, 17-May-2011
742,Revenue,CCHD,Elderly Mental Health,Residential Homes,Four Seasons Health Care,1375.96, 17-May-2011
743,Revenue,CCHD,Elderly Mental Health,Residential Homes,Four Seasons Health Care,3143.7, 17-May-2011
744,Revenue,CCHD,Elderly Mental Health,Residential Homes,Four Seasons Health Care,1280.12, 17-May-2011
745,Revenue,CCHD,Elderly Purchasing - South,Residential Homes,Four Seasons Health Care,1122.53, 17-May-2011
746,Revenue,CCHD,Southmead Hospital Purchasing,Residential Homes,Four Seasons Health Care,1151.56, 17-May-2011
747,Revenue,CCHD,Elderly PWLD - PS,Residential Homes,Four Seasons Health Care,1229, 17-May-2011
748,Revenue,CCHD,Frenchay Hospital Purchasing,Nursing Homes,Four Seasons Health Care,1349, 17-May-2011
749,Revenue,CCHD,Frenchay Hospital Purchasing,Nursing Homes,Four Seasons Health Care,1808, 17-May-2011
750,Revenue,CCHD,Elderly Purchasing - South,Nursing Homes,Four Seasons Health Care,1283.44, 17-May-2011
751,Revenue,CCHD,Elderly Purchasing - South,Nursing Homes,Four Seasons Health Care,1335.64, 17-May-2011
752,Revenue,CCHD,Elderly Purchasing - South,Residential Homes,Four Seasons Health Care,859.68, 17-May-2011
753,Revenue,CCHD,Elderly Purchasing - South,Residential Homes,Four Seasons Health Care,999.6, 17-May-2011
754,Revenue,CCHD,Frenchay Hospital Purchasing,Nursing Homes,Four Seasons Health Care,1341.12, 17-May-2011
755,Revenue,CCHD,Elderly Purchasing - South,Nursing Homes,Four Seasons Health Care,1225.36, 17-May-2011
756,Revenue,CCHD,Frenchay Hospital Purchasing,Nursing Homes,Four Seasons Health Care,881.92, 17-May-2011
757,Revenue,CCHD,Section 117 Placements,Residential Homes,Four Seasons Health Care,1688, 17-May-2011
758,Revenue,CCHD,Elderly Purchasing - South,Residential Homes,Four Seasons Health Care,846.2, 17-May-2011
759,Revenue,CCHD,Elderly Purchasing - South,Residential Homes,Four Seasons Health Care,1133.92, 17-May-2011
760,Revenue,CCHD,Elderly Purchasing - South,Nursing Homes,Four Seasons Health Care,987.28, 17-May-2011
761,Revenue,CCHD,Frenchay Hospital Purchasing,Residential Homes,Four Seasons Health Care,1227.8, 17-May-2011
762,Revenue,CCHD,Frenchay Hospital Purchasing,Residential Homes,Four Seasons Health Care,1195.84, 17-May-2011
763,Revenue,CCHD,Elderly Purchasing - South,Nursing Homes,Four Seasons Health Care,1349, 17-May-2011
764,Revenue,CCHD,Section 117 Placements,Residential Homes,Four Seasons Health Care,1688, 17-May-2011
765,Revenue,CCHD,Frenchay Hospital Purchasing,Residential Homes,Four Seasons Health Care,1092.96, 17-May-2011
766,Revenue,CCHD,Frenchay Hospital Purchasing,Nursing Homes,Four Seasons Health Care,1216.92, 17-May-2011
767,Revenue,CCHD,Frenchay Hospital Purchasing,Residential Homes,Four Seasons Health Care,1260.64, 17-May-2011
768,Revenue,CCHD,Southmead Hospital Purchasing,Residential Homes,Four Seasons Health Care,1241, 17-May-2011
769,Revenue,CCHD,Frenchay Hospital Purchasing,Nursing Homes,Four Seasons Health Care,1345.8, 17-May-2011
770,Revenue,CCHD,Elderly Mental Health,Residential Homes,Four Seasons Health Care,998.92, 17-May-2011
771,Revenue,CCHD,Elderly Purchasing - South,Nursing Homes,Four Seasons Health Care,674.5, 17-May-2011
772,Revenue,CCHD,Southmead Hospital Purchasing,Nursing Homes,Four Seasons Health Care,739, 17-May-2011
773,Revenue,CCHD,Elderly Mental Health,Nursing Homes,Four Seasons Health Care,1339.16, 17-May-2011
774,Revenue,CCHD,Elderly Purchasing - North,Nursing Homes,Four Seasons Health Care,1285.16, 17-May-2011
775,Revenue,CCHD,Elderly Mental Health,Nursing Homes,Four Seasons Health Care,1349, 17-May-2011
776,Revenue,CCHD,Frenchay Hospital Purchasing,Nursing Homes,Four Seasons Health Care,2001.39, 17-May-2011
777,Revenue,CCHD,Frenchay Hospital Purchasing,Nursing Homes,Four Seasons Health Care,1349, 17-May-2011
778,Revenue,CCHD,Frenchay Hospital Purchasing,Nursing Homes,Four Seasons Health Care,774.32, 17-May-2011
779,Revenue,CCHD,Elderly Purchasing - North,Nursing Homes,Four Seasons Health Care,1349, 17-May-2011
780,Revenue,CCHD,Frenchay Hospital Purchasing,Nursing Homes,Four Seasons Health Care,1027.14, 17-May-2011
781,Revenue,CCHD,Freeways,Residential Homes,Freeways Trust Limited,42298.1, 10-May-2011
782,Revenue,CCHD,Under 65s PWLD - KD,Residential Homes,Freeways Trust Ltd,2757, 17-May-2011
783,Revenue,CCHD,S28A - Under 65,Residential Homes,Freeways Trust Ltd,2825.45, 17-May-2011
784,Revenue,CCHD,Under 65s PWLD - KD,Residential Homes,Freeways Trust Ltd,2206.88, 17-May-2011
785,Revenue,CCHD,Under 65s PWLD - KD,Residential Homes,Freeways Trust Ltd,2217.28, 17-May-2011
786,Revenue,CCHD,Under 65s PWLD - KD,Residential Homes,Freeways Trust Ltd,2633.48, 17-May-2011
787,Revenue,CCHD,Under 65s PWLD - KH,Residential Homes,Freeways Trust Ltd,3216.52, 17-May-2011
788,Revenue,CCHD,Elderly PWLD - KD,Residential Homes,Freeways Trust Ltd,2192.48, 17-May-2011
789,Revenue,CCHD,Under 65s PWLD - KH,Residential Homes,Freeways Trust Ltd,2321.77, 17-May-2011
790,Revenue,CCHD,Under 65s PWLD - PS,Residential Homes,Freeways Trust Ltd,1136.6, 17-May-2011
791,Revenue,CCHD,Under 65s PWLD - KH,Residential Homes,Freeways Trust Ltd,2633.48, 17-May-2011
792,Revenue,CCHD,Frenchay Hospital Purchasing,Nursing Homes,Frenchay Park Nursing Home,1198, 17-May-2011
793,Revenue,CCHD,Cambrian Green Day Service,Electricity,Gazprom Marketing & Trading Retail Ltd,553.73, 11-May-2011
794,Revenue,CCHD,Wapley Court,Prop.Serv. General Repairs,Geoff Lewis Flooring Limited,2000, 25-May-2011
795,Revenue,CCHD,Under 65s PWLD - PS,Residential Homes,Glasallt Fawr,4442.2, 17-May-2011
796,Revenue,CCHD,Elderly Purchasing - North,Nursing Homes,Glebe House Nursing Home,1366.64, 17-May-2011
797,Revenue,CCHD,Elderly Purchasing - South,Residential Homes,Glebe House Nursing Home,2581.5, 17-May-2011
798,Revenue,CCHD,Elderly Purchasing - South,Nursing Homes,Glebe House Nursing Home,2566.93, 17-May-2011
799,Revenue,CCHD,Elderly Purchasing - North,Nursing Homes,Glebe House Nursing Home,1334.8, 17-May-2011
800,Revenue,CCHD,Southmead Hospital Purchasing,Nursing Homes,Glebe House Nursing Home,1644, 17-May-2011
801,Revenue,CCHD,Purchasing Phys Dis - South,Nursing Homes,Glenside Centre For Brain Injury,6955.52, 17-May-2011
802,Revenue,CCHD,Under 65s PWLD - KH,Residential Homes,Gordena Care Home,2040.52, 17-May-2011
803,Revenue,CCHD,Elderly PWLD - KH,Residential Homes,Gordena Care Home,4624.36, 17-May-2011
804,Revenue,CCHD,Elderly PWLD - KH,Residential Homes,Gordena Care Home,2866.12, 17-May-2011
805,Revenue,CCHD,Under 65s PWLD - KH,Residential Homes,Gordena Care Home,2036.68, 17-May-2011
806,Revenue,CCHD,Home Care Purch South,Other Small Contracts,Guardian Homecare (Bristol & Avon) Ltd DO NOT USE,2280.54, 03-May-2011
807,Revenue,CCHD,Home Care Purch North,Other Small Contracts,Guardian Homecare (Bristol & Avon) Ltd DO NOT USE,3148.18, 03-May-2011
808,Revenue,CCHD,Day Care - South,Private & Voluntary Day Care,Guardian Homecare (Bristol & Avon) Ltd DO NOT USE,168.4, 03-May-2011
809,Revenue,CCHD,Day Care - North,Private & Voluntary Day Care,Guardian Homecare (Bristol & Avon) Ltd DO NOT USE,793.76, 03-May-2011
810,Revenue,CCHD,Elderly MH Home Care,Other Small Contracts,Guardian Homecare (Bristol & Avon) Ltd DO NOT USE,135.32, 03-May-2011
811,Revenue,CCHD,Elderly MH non-res purchasing,Private & Voluntary Day Care,Guardian Homecare (Bristol & Avon) Ltd DO NOT USE,82.08, 03-May-2011
812,Revenue,CCHD,PWLD Home Care - Under 65 - PS,Private & Voluntary Home Care,Guardian Homecare (Bristol & Avon) Ltd DO NOT USE,31.84, 03-May-2011
813,Revenue,CCHD,PWLD Home Care - Under 65 - KH,Private & Voluntary Home Care,Guardian Homecare (Bristol & Avon) Ltd DO NOT USE,167.16, 03-May-2011
814,Revenue,CCHD,Elderly Purchasing - South,Residential Homes,Gwendoline House,3724.96, 17-May-2011
815,Revenue,CCHD,Elderly Purchasing - South,Residential Homes,Gwendoline House,1146.28, 17-May-2011
816,Revenue,CCHD,Elderly Purchasing - South,Residential Homes,Gwendoline House,1202.32, 17-May-2011
817,Revenue,CCHD,Elderly Mental Health,Residential Homes,Gwendoline House,1250.8, 17-May-2011
818,Revenue,CCHD,Elderly Purchasing - South,Residential Homes,Gwendoline House,594.53, 17-May-2011
819,Revenue,CCHD,Elderly Purchasing - South,Residential Homes,Gwendoline House,1111.56, 17-May-2011
820,Revenue,CCHD,Elderly Purchasing - South,Residential Homes,Gwendoline House,987.72, 17-May-2011
821,Revenue,CCHD,Elderly Purchasing - South,Residential Homes,Harefield Hall,1471.92, 17-May-2011
822,Revenue,CCHD,Elderly Purchasing - South,Residential Homes,Harefield Hall,1274.56, 17-May-2011
823,Revenue,CCHD,Elderly Mental Health,Residential Homes,Harefield Hall,1109.4, 17-May-2011
824,Revenue,CCHD,Elderly Purchasing - North,Residential Homes,Hawkridge House,720.24, 17-May-2011
825,Revenue,CCHD,Housing Needs,Agency Staff (Admin/Support Staff) Pay,Hays Specialist Recruitment,431.07, 12-May-2011
826,Revenue,CCHD,Housing Needs,Agency Staff (Admin/Support Staff) Pay,Hays Specialist Recruitment,431.07, 12-May-2011
827,Revenue,CCHD,Southmead Hospital Team,Agency Staff (Operational)/PCT Pay,Hays Specialist Recruitment,1122.23, 16-May-2011
828,Revenue,CCHD,Southmead Hospital Team,Agency Staff (Operational)/PCT Pay,Hays Specialist Recruitment,1122.23, 16-May-2011
829,Revenue,CCHD,Southmead Hospital Team,Agency Staff (Operational)/PCT Pay,Hays Specialist Recruitment,1091.9, 16-May-2011
830,Revenue,CCHD,Southmead Hospital Team,Agency Staff (Operational)/PCT Pay,Hays Specialist Recruitment,1122.22, 24-May-2011
831,Revenue,CCHD,Southmead Hospital Team,Agency Staff (Operational)/PCT Pay,Hays Specialist Recruitment,1046.4, 25-May-2011
832,Revenue,CCHD,Under 65s PWLD - KD,Residential Homes,Hazelhurst,3629.4, 17-May-2011
833,Revenue,CCHD,Under 65s PWLD - KD,Residential Homes,Hazelhurst,3838.72, 17-May-2011
834,Revenue,CCHD,Day Care - North,Private & Voluntary Day Care,Headway Bristol,740.88, 16-May-2011
835,Revenue,CCHD,Day Care - South,Private & Voluntary Day Care,Headway Bristol,846.72, 23-May-2011
836,Revenue,CCHD,Day Care - South,Private & Voluntary Day Care,Headway Bristol,1214.6, 23-May-2011
837,Revenue,CCHD,Day Care - North,Private & Voluntary Day Care,Headway Bristol,776.16, 16-May-2011
838,Revenue,CCHD,Day Care - South,Private & Voluntary Day Care,Headway Bristol,882, 19-May-2011
839,Revenue,CCHD,Day Care - South,Private & Voluntary Day Care,Headway Bristol,786.06, 09-May-2011
840,Revenue,CCHD,Day Care - South,Private & Voluntary Day Care,Headway Bristol,846.72, 19-May-2011
841,Revenue,CCHD,Day Care - South,Private & Voluntary Day Care,Headway Bristol,2222.97, 19-May-2011
842,Revenue,CCHD,Day Care - North,Private & Voluntary Day Care,Headway Bristol,1375.92, 16-May-2011
843,Revenue,CCHD,Elderly Mental Health,Residential Homes,Heather House,1229, 17-May-2011
844,Revenue,CCHD,Elderly Mental Health,Residential Homes,Heathwood Rest Home,1561.52, 17-May-2011
845,Revenue,CCHD,Supported Living - KH,Private & Voluntary Home Care,HFT,3660.6, 23-May-2011
846,Revenue,CCHD,Under 65s PWLD - PS,Residential Homes,Hilltop Nursing Home,12415, 17-May-2011
847,Revenue,CCHD,Under 65s PWLD - KH,Residential Homes,Holmleigh Care Homes Ltd,4901.88, 17-May-2011
848,Revenue,CCHD,Frenchay Hospital Purchasing,Nursing Homes,Holmwood House,1296.4, 17-May-2011
849,Revenue,CCHD,Under 65s PWLD - KD,Residential Homes,Home Farm Trust Ltd  5-6 Brook Office Pa,2749.36, 17-May-2011
850,Revenue,CCHD,Under 65s PWLD - KD,Residential Homes,Home Farm Trust Ltd  5-6 Brook Office Pa,2202.08, 17-May-2011
851,Revenue,CCHD,Under 65s PWLD - PS,Residential Homes,Home Farm Trust Ltd  5-6 Brook Office Pa,2409.2, 17-May-2011
852,Revenue,CCHD,Under 65s PWLD - PS,Residential Homes,Home Farm Trust Ltd  5-6 Brook Office Pa,3120.12, 17-May-2011
853,Revenue,CCHD,Under 65s PWLD - KD,Residential Homes,Home Farm Trust Ltd  5-6 Brook Office Pa,3319.88, 17-May-2011
854,Revenue,CCHD,Under 65s PWLD - PS,Residential Homes,Home Farm Trust Ltd  5-6 Brook Office Pa,4428.64, 17-May-2011
855,Revenue,CCHD,Tenancy Start Up Scheme,Other Supplies & Services,Homes for You,1590, 11-May-2011
856,Revenue,CCHD,Elderly Purchasing - North,Nursing Homes,Horfield Care Limited,4109.19, 20-May-2011
857,Revenue,CCHD,Frenchay Hospital Purchasing,Nursing Homes,Horfield Care Limited,5340.28, 20-May-2011
858,Revenue,CCHD,Southmead Hospital Purchasing,Nursing Homes,Horfield Care Limited,992.95, 20-May-2011
859,Revenue,CCHD,Purchasing Phys Dis - North,Nursing Homes,Horfield Care Limited,2956.82, 20-May-2011
860,Revenue,CCHD,S28A - Over 65,Nursing Homes,Horfield Care Limited,2352.43, 20-May-2011
861,Revenue,CCHD,Supporting People Programme,Grants to Voluntary Bodies,Housing 21,828, 20-May-2011
862,Revenue,CCHD,Supporting People Programme,Grants to Voluntary Bodies,Housing 21,828, 20-May-2011
863,Revenue,CCHD,Home Care Purch North,Private & Voluntary Home Care,Housing 21,35220.9, 10-May-2011
864,Revenue,CCHD,Home Care Purch South,Private & Voluntary Home Care,Housing 21,22092.54, 03-May-2011
865,Revenue,CCHD,Getting a Life Project,Other Supplies & Services,Housing Options,11200, 10-May-2011
866,Revenue,CCHD,Under 65s PWLD - KD,Residential Homes,Kelly House,6974.8, 17-May-2011
867,Revenue,CCHD,S28A - Under 65,Residential Homes,Kelly House,6734.68, 17-May-2011
868,Revenue,CCHD,Elderly Mental Health,Residential Homes,Kenver House Residential Home,1496.44, 17-May-2011
869,Revenue,CCHD,Section 117 Placements,Residential Homes,Kenver House Residential Home,1848, 17-May-2011
870,Revenue,CCHD,Frenchay Hospital Purchasing,Residential Homes,Kenver House Residential Home,1389, 17-May-2011
871,Revenue,CCHD,Frenchay Hospital Purchasing,Residential Homes,Kenver House Residential Home,1595.28, 17-May-2011
872,Revenue,CCHD,Frenchay Hospital Purchasing,Residential Homes,Kenver House Residential Home,1079.52, 17-May-2011
873,Revenue,CCHD,Elderly Mental Health,Residential Homes,Kenver House Residential Home,1369.44, 17-May-2011
874,Revenue,CCHD,Elderly Mental Health,Residential Homes,Kenver House Residential Home,1178.52, 17-May-2011
875,Revenue,CCHD,Elderly Mental Health,Residential Homes,Kenver House Residential Home,957.6, 17-May-2011
876,Revenue,CCHD,Frenchay Hospital Purchasing,Residential Homes,Kenver House Residential Home,1426.92, 17-May-2011
877,Revenue,CCHD,Elderly Purchasing - South,Residential Homes,Kenver House Residential Home,2049.46, 17-May-2011
878,Revenue,CCHD,Elderly Purchasing - South,Residential Homes,Kenver House Residential Home,1228.24, 17-May-2011
879,Revenue,CCHD,Elderly Mental Health,Residential Homes,Kenver House Residential Home,1202.36, 17-May-2011
880,Revenue,CCHD,Elderly Mental Health,Residential Homes,Kenver House Residential Home,1387.64, 17-May-2011
881,Revenue,CCHD,Elderly Purchasing - South,Residential Homes,Kenver House Residential Home,1382.24, 17-May-2011
882,Revenue,CCHD,Frenchay Hospital Purchasing,Residential Homes,Kenver House Residential Home,1550.32, 17-May-2011
883,Revenue,CCHD,Elderly Mental Health,Residential Homes,Kenver House Residential Home,1389, 17-May-2011
884,Revenue,CCHD,Elderly Mental Health,Residential Homes,Kenver House Residential Home,1093.04, 17-May-2011
885,Revenue,CCHD,Elderly Mental Health,Residential Homes,Kenver House Residential Home,1004.86, 17-May-2011
886,Revenue,CCHD,Elderly Purchasing - South,Residential Homes,Kenver House Residential Home,1315.04, 17-May-2011
887,Revenue,CCHD,Elderly Mental Health,Residential Homes,Kenver House Residential Home,1469.2, 17-May-2011
888,Revenue,CCHD,Elderly Purchasing - South,Residential Homes,Kenver House Residential Home,1641.62, 17-May-2011
889,Revenue,CCHD,Elderly Purchasing - South,Residential Homes,Kenver House Residential Home,1565.12, 17-May-2011
890,Revenue,CCHD,Elderly Mental Health,Residential Homes,Kenver House Residential Home,1305.6, 17-May-2011
891,Revenue,CCHD,Supporting People Programme,Grants to Voluntary Bodies,Keyring Living Support Networks,2577.6, 20-May-2011
892,Revenue,CCHD,Supporting People Programme,Grants to Voluntary Bodies,Keyring Living Support Networks,2577.6, 20-May-2011
893,Revenue,CCHD,Supporting People Programme,Grants to Voluntary Bodies,Keyring Living Support Networks,2209.37, 20-May-2011
894,Revenue,CCHD,Adult LD - Thornbury PCT,Service Contracts,King Sturge LLP,824.94, 04-May-2011
895,Revenue,CCHD,Frenchay Hospital Purchasing,Residential Homes,Kingswood Care Centre,1135.84, 17-May-2011
896,Revenue,CCHD,Elderly Purchasing - North,Residential Homes,Kingswood Care Centre,1189.24, 17-May-2011
897,Revenue,CCHD,Supporting People Programme,Grants to Voluntary Bodies,Kingswood Young Homeless Project,2502.72, 24-May-2011
898,Revenue,CCHD,Supporting People Programme,Grants to Voluntary Bodies,Kingswood Young Homeless Project,2502.72, 24-May-2011
899,Revenue,CCHD,Supporting People Programme,Grants to Voluntary Bodies,Kingswood Young Homeless Project,893.83, 24-May-2011
900,Revenue,CCHD,Supporting People Programme,Grants to Voluntary Bodies,Kingswood Young Homeless Project,2502.72, 24-May-2011
901,Revenue,CCHD,Under 65s PWLD - KH,Residential Homes,Kisimul Group,11072.27, 17-May-2011
902,Revenue,CCHD,Supporting People Programme,Grants to Voluntary Bodies,Knightstone Housing Association Limited,6717.92, 23-May-2011
903,Revenue,CCHD,Supporting People Programme,Grants to Voluntary Bodies,Knightstone Housing Association Limited,19485.84, 23-May-2011
904,Revenue,CCHD,Supporting People Programme,Grants to Voluntary Bodies,Knightstone Housing Association Limited,6717.92, 23-May-2011
905,Revenue,CCHD,Supporting People Programme,Grants to Voluntary Bodies,Knightstone Housing Association Limited,19485.84, 23-May-2011
906,Revenue,CCHD,Supporting People Programme,Grants to Voluntary Bodies,Knightstone Housing Association Limited,5998.14, 23-May-2011
907,Revenue,CCHD,Supporting People Programme,Grants to Voluntary Bodies,Knightstone Housing Association Limited,17398.07, 23-May-2011
908,Revenue,CCHD,Contracts & Commissioning Team,Other Small Contracts,Kumari Care Limited,7500, 06-May-2011
909,Revenue,CCHD,Contracts & Commissioning Team,Other Small Contracts,Kumari Care Limited,7500, 13-May-2011
910,Revenue,CCHD,Contracts & Commissioning Team,Other Small Contracts,Kumari Care Limited,7500, 20-May-2011
911,Revenue,CCHD,Contracts & Commissioning Team,Other Small Contracts,Kumari Care Limited,7500, 27-May-2011
912,Revenue,CCHD,Home Care Purch North,Other Small Contracts,Kumari Care Limited,809.87, 06-May-2011
913,Revenue,CCHD,Home Care Purch North,Other Small Contracts,Kumari Care Limited,809.87, 06-May-2011
914,Revenue,CCHD,Home Care Purch North,Other Small Contracts,Kumari Care Limited,809.87, 06-May-2011
915,Revenue,CCHD,Home Care Purch North,Other Small Contracts,Kumari Care Limited,809.87, 17-May-2011
916,Revenue,CCHD,Section 117 Placements,Residential Homes,Laurel Court,1688, 13-May-2011
917,Revenue,CCHD,Purchasing Phys Dis - North,Nursing Homes,Leonard Cheshire  National Account Centr,2588.28, 17-May-2011
918,Revenue,CCHD,Purchasing Phys Dis - North,Residential Homes,Leonard Cheshire  National Account Centr,2303.36, 17-May-2011
919,Revenue,CCHD,Under 65s PWLD - KH,Residential Homes,Leonard Cheshire  National Account Centr,2894.92, 17-May-2011
920,Revenue,CCHD,Purchasing Phys Dis - North,Nursing Homes,Leonard Cheshire  National Account Centr,2693.2, 17-May-2011
921,Revenue,CCHD,Under 65s PWLD - KD,Residential Homes,Leonard Cheshire  National Account Centr,5732.24, 17-May-2011
922,Revenue,CCHD,Under 65s PWLD - KD,Residential Homes,Leonard Cheshire  National Account Centr,4299.18, 17-May-2011
923,Revenue,CCHD,Under 65s PWLD - KD,Residential Homes,Leonard Cheshire  National Account Centr,1435.66, 17-May-2011
924,Revenue,CCHD,Under 65s PWLD - KD,Residential Homes,Leonard Cheshire  National Account Centr,5730.72, 17-May-2011
925,Revenue,CCHD,Under 65s PWLD - KD,Residential Homes,Leonard Cheshire  National Account Centr,4298.04, 17-May-2011
926,Revenue,CCHD,Under 65s PWLD - KD,Residential Homes,Leonard Cheshire  National Account Centr,1435.28, 17-May-2011
927,Revenue,CCHD,Elderly Purchasing - South,Residential Homes,Leonard Cheshire  National Account Centr,4353.96, 17-May-2011
928,Revenue,CCHD,Purchasing Phys Dis - North,Nursing Homes,Leonard Cheshire  National Account Centr,2777.24, 17-May-2011
929,Revenue,CCHD,Purchasing Phys Dis - North,Nursing Homes,Leonard Cheshire  National Account Centr,3143.8, 17-May-2011
930,Revenue,CCHD,Purchasing Phys Dis - North,Residential Homes,Leonard Cheshire  National Account Centr,2837.08, 17-May-2011
931,Revenue,CCHD,Purchasing Phys Dis - South,Nursing Homes,Leonard Cheshire  National Account Centr,5956.56, 17-May-2011
932,Revenue,CCHD,Purchasing Phys Dis - North,Nursing Homes,Leonard Cheshire  National Account Centr,5378.48, 17-May-2011
933,Revenue,CCHD,Southmead Hospital Purchasing,Nursing Homes,Leonard Cheshire  National Account Centr,5850.76, 17-May-2011
934,Revenue,CCHD,South Glos Users in all other LA Homes,Nursing Homes,Leonard Cheshire  National Account Centr,1219.45, 17-May-2011
935,Revenue,CCHD,Purchasing Phys Dis - North,Nursing Homes,Leonard Cheshire  National Account Centr,3235.6, 17-May-2011
936,Revenue,CCHD,Frenchay Hospital Purchasing,Residential Homes,Leonard Cheshire  National Account Centr,3687.8, 17-May-2011
937,Revenue,CCHD,Elderly Purchasing - North,Nursing Homes,Leonard Cheshire  National Account Centr,4408.84, 17-May-2011
938,Revenue,CCHD,S28A - Over 65,Residential Homes,Leonard Cheshire  National Account Centr,2841.44, 17-May-2011
939,Revenue,CCHD,Supported Living - KH,Private & Voluntary Home Care,Lifeways Community Care (Gloucester) Ltd,11373, 06-May-2011
940,Revenue,CCHD,Supported Living - KH,Private & Voluntary Home Care,Lifeways Community Care (Gloucester) Ltd,10990, 12-May-2011
941,Revenue,CCHD,Supported Living - KH,Private & Voluntary Home Care,Lifeways Community Care (Gloucester) Ltd,8792, 17-May-2011
942,Revenue,CCHD,Under 65s PWLD - KD,Residential Homes,Littlecroft Residential Homes  Longcroft,6427.88, 17-May-2011
943,Revenue,CCHD,Supported Living - PS,Private & Voluntary Home Care,Lloyds TSB Commercial Finance Limited,3824.59, 16-May-2011
944,Revenue,CCHD,Supported Living - KD,Private & Voluntary Home Care,Lloyds TSB Commercial Finance Limited,2882.88, 18-May-2011
945,Revenue,CCHD,Supported Living - KD,Private & Voluntary Home Care,Lloyds TSB Commercial Finance Limited,3293.37, 18-May-2011
946,Revenue,CCHD,Supported Living - KD,Private & Voluntary Home Care,Lloyds TSB Commercial Finance Limited,961, 18-May-2011
947,Revenue,CCHD,Supported Living - KD,Private & Voluntary Home Care,Lloyds TSB Commercial Finance Limited,2927.13, 18-May-2011
948,Revenue,CCHD,Supported Living - PS,Private & Voluntary Home Care,Lloyds TSB Commercial Finance Limited,3605.03, 16-May-2011
949,Revenue,CCHD,Supported Living - PS,Private & Voluntary Home Care,Lloyds TSB Commercial Finance Limited,3433.65, 16-May-2011
950,Revenue,CCHD,Supported Living - KD,Private & Voluntary Home Care,Lloyds TSB Commercial Finance Limited,2867.3, 18-May-2011
951,Revenue,CCHD,Supported Living - KD,Private & Voluntary Home Care,Lloyds TSB Commercial Finance Limited,3054.66, 18-May-2011
952,Revenue,CCHD,Home Care Purch North,Other Small Contracts,Lloyds TSB Commercial Finance Limited,5046.23, 20-May-2011
953,Revenue,CCHD,Day Care - North,Private & Voluntary Day Care,Lloyds TSB Commercial Finance Limited,340.87, 20-May-2011
954,Revenue,CCHD,Elderly MH Home Care,Other Small Contracts,Lloyds TSB Commercial Finance Limited,68.94, 20-May-2011
955,Revenue,CCHD,Elderly MH non-res purchasing,Private & Voluntary Day Care,Lloyds TSB Commercial Finance Limited,122.56, 20-May-2011
956,Revenue,CCHD,Home Care Purch North,Other Small Contracts,Lloyds TSB Commercial Finance Limited,4884.02, 20-May-2011
957,Revenue,CCHD,Day Care - North,Private & Voluntary Day Care,Lloyds TSB Commercial Finance Limited,448.11, 20-May-2011
958,Revenue,CCHD,Elderly MH Home Care,Other Small Contracts,Lloyds TSB Commercial Finance Limited,22.98, 20-May-2011
959,Revenue,CCHD,Elderly MH non-res purchasing,Private & Voluntary Day Care,Lloyds TSB Commercial Finance Limited,34.47, 20-May-2011
960,Revenue,CCHD,Supported Living - PS,Private & Voluntary Home Care,Lloyds TSB Commercial Finance Limited,700.8, 17-May-2011
961,Revenue,CCHD,Under 65s PWLD - KH,Residential Homes,Lufton Manor College,4406.93, 17-May-2011
962,Revenue,CCHD,Southmead Hospital Purchasing,Nursing Homes,Majestic 3 Limited,1052.32, 17-May-2011
963,Revenue,CCHD,Younger MH non-res purchasing,Private & Voluntary Day Care,Maples Community Housing Limited,582.68, 09-May-2011
964,Revenue,CCHD,Elderly Mental Health,Nursing Homes,Meadow Care Home,1452.96, 17-May-2011
965,Revenue,CCHD,Elderly MH Home Care,Other Small Contracts,Mears Care,1043.4, 19-May-2011
966,Revenue,CCHD,Home Care Purch South,Other Small Contracts,Mears Care,1560.4, 18-May-2011
967,Revenue,CCHD,Home Care Purch North,Other Small Contracts,Mears Care,9573.9, 18-May-2011
968,Revenue,CCHD,Day Care - South,Private & Voluntary Day Care,Mears Care,230.3, 18-May-2011
969,Revenue,CCHD,Day Care - North,Private & Voluntary Day Care,Mears Care,319.6, 18-May-2011
970,Revenue,CCHD,Carer`s Grant - North,Carers Breaks & Services,Mears Care,37.6, 18-May-2011
971,Revenue,CCHD,Under 65s -MH  Home Care Purch,Other Small Contracts,Mears Care,141, 18-May-2011
972,Revenue,CCHD,Elderly MH Home Care,Other Small Contracts,Mears Care,37.6, 18-May-2011
973,Revenue,CCHD,Elderly MH non-res purchasing,Private & Voluntary Day Care,Mears Care,112.8, 18-May-2011
974,Revenue,CCHD,Home Care - Elderly LD - KH,Private & Voluntary Home Care,Mears Care,65.8, 18-May-2011
975,Revenue,CCHD,Elderly MH Home Care,Other Small Contracts,Mears Care,893, 19-May-2011
976,Revenue,CCHD,Home Care Purch South,Other Small Contracts,Mears Care,1466.4, 18-May-2011
977,Revenue,CCHD,Home Care Purch North,Other Small Contracts,Mears Care,9761.9, 18-May-2011
978,Revenue,CCHD,Day Care - South,Private & Voluntary Day Care,Mears Care,173.9, 18-May-2011
979,Revenue,CCHD,Day Care - North,Private & Voluntary Day Care,Mears Care,432.4, 18-May-2011
980,Revenue,CCHD,Carer`s Grant - North,Carers Breaks & Services,Mears Care,37.6, 18-May-2011
981,Revenue,CCHD,Under 65s -MH  Home Care Purch,Other Small Contracts,Mears Care,141, 18-May-2011
982,Revenue,CCHD,Elderly MH Home Care,Other Small Contracts,Mears Care,911.8, 18-May-2011
983,Revenue,CCHD,Elderly MH non-res purchasing,Private & Voluntary Day Care,Mears Care,112.8, 18-May-2011
984,Revenue,CCHD,Home Care - Elderly LD - KH,Private & Voluntary Home Care,Mears Care,65.8, 18-May-2011
985,Revenue,CCHD,Home Care Purch South,Other Small Contracts,Mears Care,1363, 20-May-2011
986,Revenue,CCHD,Home Care Purch North,Other Small Contracts,Mears Care,9667.9, 20-May-2011
987,Revenue,CCHD,Day Care - South,Private & Voluntary Day Care,Mears Care,206.8, 20-May-2011
988,Revenue,CCHD,Day Care - North,Private & Voluntary Day Care,Mears Care,517, 20-May-2011
989,Revenue,CCHD,Under 65s -MH  Home Care Purch,Other Small Contracts,Mears Care,126.9, 20-May-2011
990,Revenue,CCHD,Elderly MH Home Care,Other Small Contracts,Mears Care,893, 20-May-2011
991,Revenue,CCHD,Elderly MH non-res purchasing,Private & Voluntary Day Care,Mears Care,112.8, 20-May-2011
992,Revenue,CCHD,Home Care - Elderly LD - KH,Private & Voluntary Home Care,Mears Care,56.4, 20-May-2011
993,Revenue,CCHD,Home Care Purch South,Other Small Contracts,Mears Care,1381.8, 20-May-2011
994,Revenue,CCHD,Home Care Purch North,Other Small Contracts,Mears Care,9945.2, 20-May-2011
995,Revenue,CCHD,Day Care - South,Private & Voluntary Day Care,Mears Care,211.5, 20-May-2011
996,Revenue,CCHD,Day Care - North,Private & Voluntary Day Care,Mears Care,277.3, 20-May-2011
997,Revenue,CCHD,Carer`s Grant - North,Carers Breaks & Services,Mears Care,37.6, 20-May-2011
998,Revenue,CCHD,Under 65s -MH  Home Care Purch,Other Small Contracts,Mears Care,141, 20-May-2011
999,Revenue,CCHD,Elderly MH Home Care,Other Small Contracts,Mears Care,893, 20-May-2011
1000,Revenue,CCHD,Elderly MH non-res purchasing,Private & Voluntary Day Care,Mears Care,112.8, 20-May-2011
1001,Revenue,CCHD,Home Care Purch South,Other Small Contracts,Mears Care,1372.4, 20-May-2011
1002,Revenue,CCHD,Home Care Purch North,Other Small Contracts,Mears Care,9823, 20-May-2011
1003,Revenue,CCHD,Day Care - South,Private & Voluntary Day Care,Mears Care,202.1, 20-May-2011
1004,Revenue,CCHD,Day Care - North,Private & Voluntary Day Care,Mears Care,253.8, 20-May-2011
1005,Revenue,CCHD,Carer`s Grant - North,Carers Breaks & Services,Mears Care,37.6, 20-May-2011
1006,Revenue,CCHD,Under 65s -MH  Home Care Purch,Other Small Contracts,Mears Care,141, 20-May-2011
1007,Revenue,CCHD,Elderly MH Home Care,Other Small Contracts,Mears Care,878.9, 20-May-2011
1008,Revenue,CCHD,Elderly MH non-res purchasing,Private & Voluntary Day Care,Mears Care,112.8, 20-May-2011
1009,Revenue,CCHD,Home Care - Elderly LD - KH,Private & Voluntary Home Care,Mears Care,37.6, 20-May-2011
1010,Revenue,CCHD,Home Care Purch South,Other Small Contracts,Medacs Home Care,329.8, 06-May-2011
1011,Revenue,CCHD,Home Care Purch North,Other Small Contracts,Medacs Home Care,1088, 06-May-2011
1012,Revenue,CCHD,Day Care - North,Private & Voluntary Day Care,Medacs Home Care,57.8, 06-May-2011
1013,Revenue,CCHD,Elderly MH Home Care,Other Small Contracts,Medacs Home Care,193.8, 06-May-2011
1014,Revenue,CCHD,Elderly MH non-res purchasing,Private & Voluntary Day Care,Medacs Home Care,64.6, 06-May-2011
1015,Revenue,CCHD,NRS Contract,Daily Living Equipment,Medequip Assistive Technology Ltd,28720.29, 25-May-2011
1016,Revenue,CCHD,NRS Contract,Daily Living Equipment,Medequip Assistive Technology Ltd,37371.6, 25-May-2011
1017,Revenue,CCHD,NRS Contract,Other Supplies & Services,Medequip Assistive Technology Ltd,6488.7, 25-May-2011
1018,Revenue,CCHD,Contracts & Commissioning Team,Other Small Contracts,Medico Nursing & Homecare Ltd,18000, 06-May-2011
1019,Revenue,CCHD,Contracts & Commissioning Team,Other Small Contracts,Medico Nursing & Homecare Ltd,18000, 13-May-2011
1020,Revenue,CCHD,Contracts & Commissioning Team,Other Small Contracts,Medico Nursing & Homecare Ltd,18000, 20-May-2011
1021,Revenue,CCHD,Contracts & Commissioning Team,Other Small Contracts,Medico Nursing & Homecare Ltd,18000, 27-May-2011
1022,Revenue,CCHD,Home Care Purch North,Other Small Contracts,Medico Nursing & Homecare Ltd,1927.73, 03-May-2011
1023,Revenue,CCHD,Home Care Purch North,Other Small Contracts,Medico Nursing & Homecare Ltd,1927.73, 06-May-2011
1024,Revenue,CCHD,Home Care Purch North,Other Small Contracts,Medico Nursing & Homecare Ltd,1927.73, 20-May-2011
1025,Revenue,CCHD,Home Care Purch North,Other Small Contracts,Medico Nursing & Homecare Ltd,1927.73, 23-May-2011
1026,Revenue,CCHD,Home Care Purch North,Other Small Contracts,Medico Nursing & Homecare Ltd,1927.73, 31-May-2011
1027,Revenue,CCHD,Under 65s PWLD - KH,Residential Homes,Mencap,3804.15, 17-May-2011
1028,Revenue,CCHD,Intermediate Care Accommodation,Other Supplies & Services,Merlin Housing Society,1157.15, 26-May-2011
1029,Revenue,CCHD,Frenchay Hospital Purchasing,Residential Homes,Milburn Finance,2058.86, 17-May-2011
1030,Revenue,CCHD,Contracts & Commissioning Team,Other Small Contracts,Milestones Outreach Dementia Services,2000, 06-May-2011
1031,Revenue,CCHD,Contracts & Commissioning Team,Other Small Contracts,Milestones Outreach Dementia Services,2000, 13-May-2011
1032,Revenue,CCHD,Contracts & Commissioning Team,Other Small Contracts,Milestones Outreach Dementia Services,2000, 20-May-2011
1033,Revenue,CCHD,Contracts & Commissioning Team,Other Small Contracts,Milestones Outreach Dementia Services,2000, 27-May-2011
1034,Revenue,CCHD,Elderly MH non-res purchasing,Private & Voluntary Day Care,Milestones Trust,682.41, 11-May-2011
1035,Revenue,CCHD,Elderly MH non-res purchasing,Private & Voluntary Day Care,Milestones Trust,599.56, 11-May-2011
1036,Revenue,CCHD,Elderly MH non-res purchasing,Private & Voluntary Day Care,Milestones Trust,685.81, 11-May-2011
1037,Revenue,CCHD,Younger MH non-res purchasing,Private & Voluntary Day Care,Milestones Trust,539, 16-May-2011
1038,Revenue,CCHD,Section 117 Placements,Private & Voluntary Day Care,Milestones Trust,1164.25, 16-May-2011
1039,Revenue,CCHD,Elderly MH non-res purchasing,Private & Voluntary Day Care,Milestones Trust,731.97, 11-May-2011
1040,Revenue,CCHD,Elderly MH non-res purchasing,Private & Voluntary Day Care,Milestones Trust,2902.92, 11-May-2011
1041,Revenue,CCHD,Section 117 Placements,Private & Voluntary Day Care,Milestones Trust,681.66, 20-May-2011
1042,Revenue,CCHD,Younger MH non-res purchasing,Private & Voluntary Day Care,Milestones Trust,600.38, 16-May-2011
1043,Revenue,CCHD,Elderly MH non-res purchasing,Private & Voluntary Day Care,Milestones Trust,1212.96, 11-May-2011
1044,Revenue,CCHD,Supported Living (S28a),Private & Voluntary Home Care,Milestones Trust,1106.2, 11-May-2011
1045,Revenue,CCHD,Supported Living - PS,Private & Voluntary Home Care,Milestones Trust,580.86, 23-May-2011
1046,Revenue,CCHD,Supported Living (S28a),Private & Voluntary Home Care,Milestones Trust,792, 10-May-2011
1047,Revenue,CCHD,Supported Living (S28a),Private & Voluntary Home Care,Milestones Trust,970.2, 10-May-2011
1048,Revenue,CCHD,Supported Living - PS,Private & Voluntary Home Care,Milestones Trust,872.35, 10-May-2011
1049,Revenue,CCHD,Supported Living - PS,Private & Voluntary Home Care,Milestones Trust,829.17, 10-May-2011
1050,Revenue,CCHD,Supported Living (S28a),Private & Voluntary Home Care,Milestones Trust,1585.3, 10-May-2011
1051,Revenue,CCHD,Supported Living (S28a),Private & Voluntary Home Care,Milestones Trust,3844.71, 10-May-2011
1052,Revenue,CCHD,Supported Living (S28a),Private & Voluntary Home Care,Milestones Trust,3397.85, 10-May-2011
1053,Revenue,CCHD,Supported Living (S28a),Private & Voluntary Home Care,Milestones Trust,3501.85, 10-May-2011
1054,Revenue,CCHD,Supported Living - KH,Private & Voluntary Home Care,Milestones Trust,3557.85, 23-May-2011
1055,Revenue,CCHD,Supported Living (S28a),Private & Voluntary Home Care,Milestones Trust,3509.85, 10-May-2011
1056,Revenue,CCHD,Supported Living (S28a),Private & Voluntary Home Care,Milestones Trust,4883.26, 10-May-2011
1057,Revenue,CCHD,Supported Living (S28a),Private & Voluntary Home Care,Milestones Trust,4883.26, 10-May-2011
1058,Revenue,CCHD,Supported Living (S28a),Private & Voluntary Home Care,Milestones Trust,4316.32, 10-May-2011
1059,Revenue,CCHD,Supported Living (S28a),Private & Voluntary Home Care,Milestones Trust,4316.32, 10-May-2011
1060,Revenue,CCHD,Supported Living (S28a),Private & Voluntary Home Care,Milestones Trust,4316.32, 10-May-2011
1061,Revenue,CCHD,Supported Living (S28a),Private & Voluntary Home Care,Milestones Trust,7281.97, 12-May-2011
1062,Revenue,CCHD,Supported Living (S28a),Private & Voluntary Home Care,Milestones Trust,9689.14, 12-May-2011
1063,Revenue,CCHD,Supported Living (S28a),Private & Voluntary Home Care,Milestones Trust,10983.4, 11-May-2011
1064,Revenue,CCHD,Supported Living - PS,Private & Voluntary Home Care,Milestones Trust,1237.87, 10-May-2011
1065,Revenue,CCHD,Supported Living (S28a),Private & Voluntary Home Care,Milestones Trust,852.35, 19-May-2011
1066,Revenue,CCHD,Supported Living (S28a),Private & Voluntary Home Care,Milestones Trust,6150.1, 17-May-2011
1067,Revenue,CCHD,Elderly MH non-res purchasing,Private & Voluntary Day Care,Milestones Trust,693.44, 23-May-2011
1068,Revenue,CCHD,Elderly MH non-res purchasing,Private & Voluntary Day Care,Milestones Trust,755.43, 23-May-2011
1069,Revenue,CCHD,Elderly MH non-res purchasing,Private & Voluntary Day Care,Milestones Trust,552.16, 23-May-2011
1070,Revenue,CCHD,Elderly MH non-res purchasing,Private & Voluntary Day Care,Milestones Trust,504.28, 23-May-2011
1071,Revenue,CCHD,Supported Living (S28a),Private & Voluntary Home Care,Milestones Trust,1225.6, 31-May-2011
1072,Revenue,CCHD,Supported Living (S28a),Private & Voluntary Home Care,Milestones Trust,4439.32, 31-May-2011
1073,Revenue,CCHD,Supported Living (S28a),Private & Voluntary Home Care,Milestones Trust,4439.32, 31-May-2011
1074,Revenue,CCHD,Supported Living (S28a),Private & Voluntary Home Care,Milestones Trust,3923.92, 31-May-2011
1075,Revenue,CCHD,Supported Living (S28a),Private & Voluntary Home Care,Milestones Trust,3923.92, 31-May-2011
1076,Revenue,CCHD,Supported Living (S28a),Private & Voluntary Home Care,Milestones Trust,3923.92, 31-May-2011
1077,Revenue,CCHD,Supported Living (S28a),Private & Voluntary Home Care,Milestones Trust,1132.46, 31-May-2011
1078,Revenue,CCHD,Supported Living (S28a),Private & Voluntary Home Care,Milestones Trust,1478.04, 31-May-2011
1079,Revenue,CCHD,Supported Living (S28a),Private & Voluntary Home Care,Milestones Trust,3495.18, 31-May-2011
1080,Revenue,CCHD,Supported Living (S28a),Private & Voluntary Home Care,Milestones Trust,9376.62, 31-May-2011
1081,Revenue,CCHD,Supported Living (S28a),Private & Voluntary Home Care,Milestones Trust,10005.79, 31-May-2011
1082,Revenue,CCHD,Section 117 Placements,Nursing Homes,Mimosa Healthcare Holdings Ltd,1888, 17-May-2011
1083,Revenue,CCHD,Southmead Hospital Purchasing,Nursing Homes,Mimosa Healthcare Holdings Ltd,855.64, 17-May-2011
1084,Revenue,CCHD,Southmead Hospital Purchasing,Residential Homes,Mostyn Lodge Residential Home,1253, 17-May-2011
1085,Revenue,CCHD,Section 117 Placements,Residential Homes,Mostyn Lodge Residential Home,1848, 17-May-2011
1086,Revenue,CCHD,Under 65s PWLD - KH,Residential Homes,Mr J Davis & Mrs S Davis,1840, 24-May-2011
1087,Revenue,CCHD,Elderly MH non-res purchasing,Private & Voluntary Day Care,Mrs B Kimber,581.44, 04-May-2011
1088,Revenue,CCHD,Supported Living - PS,Private & Voluntary Home Care,Mrs B Kimber,8414.26, 23-May-2011
1089,Revenue,CCHD,Day Care - South,Private & Voluntary Day Care,Mrs B Kimber,926.64, 04-May-2011
1090,Revenue,CCHD,Day Care - South,Private & Voluntary Day Care,Mrs B Kimber,862.98, 04-May-2011
1091,Revenue,CCHD,Day Care - South,Private & Voluntary Day Care,Mrs B Kimber,563.27, 09-May-2011
1092,Revenue,CCHD,Day Care - South,Private & Voluntary Day Care,Mrs B Kimber,813.78, 09-May-2011
1093,Revenue,CCHD,Elderly MH non-res purchasing,Private & Voluntary Day Care,Mrs B Kimber,763.14, 09-May-2011
1094,Revenue,CCHD,Elderly MH non-res purchasing,Private & Voluntary Day Care,Mrs B Kimber,708.63, 09-May-2011
1095,Revenue,CCHD,Supported Living - PS,Private & Voluntary Home Care,Mrs B Kimber,2109.34, 10-May-2011
1096,Revenue,CCHD,Supported Living - KH,Private & Voluntary Home Care,Mrs B Kimber,1577.96, 19-May-2011
1097,Revenue,CCHD,Day Care - South,Private & Voluntary Day Care,Mrs B Kimber,545.1, 04-May-2011
1098,Revenue,CCHD,Supported Living - PS,Private & Voluntary Home Care,Mrs B Kimber,8219.7, 18-May-2011
1099,Revenue,CCHD,Supported Living - PS,Private & Voluntary Home Care,Mrs B Kimber,10991.52, 17-May-2011
1100,Revenue,CCHD,Day Care - North,Private & Voluntary Day Care,Mrs B Kimber,534.44, 18-May-2011
1101,Revenue,CCHD,Day Care - North,Private & Voluntary Day Care,Mrs B Kimber,1574.12, 18-May-2011
1102,Revenue,CCHD,Day Care - South,Private & Voluntary Day Care,Mrs B Kimber,899.39, 26-May-2011
1103,Revenue,CCHD,Elderly MH non-res purchasing,Private & Voluntary Day Care,Mrs B Kimber,648.62, 25-May-2011
1104,Revenue,CCHD,Elderly MH non-res purchasing,Private & Voluntary Day Care,Mrs B Kimber,514.62, 25-May-2011
1105,Revenue,CCHD,Elderly MH non-res purchasing,Private & Voluntary Day Care,Mrs B Kimber,599.61, 25-May-2011
1106,Revenue,CCHD,Elderly MH non-res purchasing,Private & Voluntary Day Care,Mrs B Kimber,545.1, 25-May-2011
1107,Revenue,CCHD,Purchase of Non-Res Care - KD,Private & Voluntary Day Care,Mrs B Kimber,545.1, 17-May-2011
1108,Revenue,CCHD,Contracts & Commissioning Team,Other Small Contracts,Mrs B Kimber,8000, 06-May-2011
1109,Revenue,CCHD,Contracts & Commissioning Team,Other Small Contracts,Mrs B Kimber,8000, 13-May-2011
1110,Revenue,CCHD,Contracts & Commissioning Team,Other Small Contracts,Mrs B Kimber,8000, 20-May-2011
1111,Revenue,CCHD,Contracts & Commissioning Team,Other Small Contracts,Mrs B Kimber,8000, 27-May-2011
1112,Revenue,CCHD,Elderly Purchasing - North,Residential Homes,Mrs Bairajba Jadeja,2458, 27-May-2011
1113,Revenue,CCHD,Younger MH non-res purchasing,Private & Voluntary Home Care,Mrs Felicity Cooksley,1676, 09-May-2011
1114,Revenue,CCHD,Purchase of Non-Res Care - KD,Private & Voluntary Home Care,Mrs W Thompson,554, 19-May-2011
1115,Revenue,CCHD,Purchase of Non-Res Care - KD,Private & Voluntary Day Care,Mrs W Thompson,1460, 19-May-2011
1116,Revenue,CCHD,Home Care - General,Uniforms & Clothing,Muzzell Healthcare,1490, 31-May-2011
1117,Revenue,CCHD,Younger MH non-res purchasing,Private & Voluntary Day Care,NAS Services Limited,591.19, 09-May-2011
1118,Revenue,CCHD,Younger MH non-res purchasing,Private & Voluntary Day Care,NAS Services Limited,585.91, 09-May-2011
1119,Revenue,CCHD,Younger MH non-res purchasing,Private & Voluntary Day Care,NAS Services Limited,999.04, 09-May-2011
1120,Revenue,CCHD,Younger MH non-res purchasing,Private & Voluntary Day Care,NAS Services Limited,1371.35, 03-May-2011
1121,Revenue,CCHD,Community Support ACM - South,Preventative Assistance,National Star College FDY Limited,5539.32, 23-May-2011
1122,Revenue,CCHD,Purchase of Non-Res Care - KD,Private & Voluntary Day Care,Natureworks Training Community Interest,919.85, 09-May-2011
1123,Revenue,CCHD,Contracts & Commissioning Team,Other Small Contracts,Network Health & Social Care,2500, 06-May-2011
1124,Revenue,CCHD,Contracts & Commissioning Team,Other Small Contracts,Network Health & Social Care,2500, 13-May-2011
1125,Revenue,CCHD,Contracts & Commissioning Team,Other Small Contracts,Network Health & Social Care,2500, 20-May-2011
1126,Revenue,CCHD,Contracts & Commissioning Team,Other Small Contracts,Network Health & Social Care,2500, 27-May-2011
1127,Revenue,CCHD,Elderly Purchasing - North,Residential Homes,Newton House,887.84, 17-May-2011
1128,Revenue,CCHD,Under 65s PWLD - KH,Residential Homes,Nightingale Nursing Home,3029.28, 17-May-2011
1129,Revenue,CCHD,Enabling Activities,Publicity & Promotions,Northcliffe Media Ltd,1006.4, 16-May-2011
1130,Revenue,CCHD,Home Care Purch South,Other Small Contracts,Nursing Solutions Limited,903.15, 18-May-2011
1131,Revenue,CCHD,Elderly MH Home Care,Other Small Contracts,Nursing Solutions Limited,396.9, 18-May-2011
1132,Revenue,CCHD,Elderly MH non-res purchasing,Private & Voluntary Day Care,Nursing Solutions Limited,303.75, 18-May-2011
1133,Revenue,CCHD,Home Care Purch South,Other Small Contracts,Nursing Solutions Limited,951.75, 18-May-2011
1134,Revenue,CCHD,Elderly MH Home Care,Other Small Contracts,Nursing Solutions Limited,372.6, 18-May-2011
1135,Revenue,CCHD,Elderly MH non-res purchasing,Private & Voluntary Day Care,Nursing Solutions Limited,206.55, 18-May-2011
1136,Revenue,CCHD,Woodleaze,Refuse Collection Charges,OCS Group UK Ltd,443.55, 31-May-2011
1137,Revenue,CCHD,Home Care Purch South,Other Small Contracts,On the Up,398.52, 09-May-2011
1138,Revenue,CCHD,Day Care - South,Private & Voluntary Day Care,On the Up,68.04, 09-May-2011
1139,Revenue,CCHD,Elderly MH non-res purchasing,Private & Voluntary Day Care,On the Up,72.9, 09-May-2011
1140,Revenue,CCHD,Home Care Purch South,Other Small Contracts,On the Up,398.52, 23-May-2011
1141,Revenue,CCHD,Day Care - South,Private & Voluntary Day Care,On the Up,68.04, 23-May-2011
1142,Revenue,CCHD,Elderly MH non-res purchasing,Private & Voluntary Day Care,On the Up,155.52, 23-May-2011
1143,Revenue,CCHD,Home Care Purch South,Other Small Contracts,On the Up,398.52, 31-May-2011
1144,Revenue,CCHD,Day Care - South,Private & Voluntary Day Care,On the Up,68.04, 31-May-2011
1145,Revenue,CCHD,Elderly MH non-res purchasing,Private & Voluntary Day Care,On the Up,155.52, 31-May-2011
1146,Revenue,CCHD,Housing Advice,Grants to Voluntary Bodies,Orchard & Shipman PLC,13333.25, 03-May-2011
1147,Revenue,CCHD,Housing Advice,Grants to Voluntary Bodies,Orchard & Shipman PLC,13333.25, 03-May-2011
1148,Revenue,CCHD,S28A - Under 65,Residential Homes,Orchard End Limited,7466.16, 17-May-2011
1149,Revenue,CCHD,Elderly Mental Health,Residential Homes,Osborne House,1404.12, 17-May-2011
1150,Revenue,CCHD,Elderly Mental Health,Residential Homes,Osbourne Court,1389, 17-May-2011
1151,Revenue,CCHD,Elderly Purchasing - North,Residential Homes,Osbourne Court,967.84, 17-May-2011
1152,Revenue,CCHD,Elderly Mental Health,Nursing Homes,Osbourne Court,1384.52, 17-May-2011
1153,Revenue,CCHD,Section 117 Placements,Residential Homes,Osbourne Court,1848, 17-May-2011
1154,Revenue,CCHD,Elderly Purchasing - North,Residential Homes,Osbourne Court,1053.48, 17-May-2011
1155,Revenue,CCHD,Elderly Mental Health,Residential Homes,Osbourne Court,1421, 17-May-2011
1156,Revenue,CCHD,Section 117 Placements,Residential Homes,Osbourne Court,1848, 17-May-2011
1157,Revenue,CCHD,Frenchay Hospital Purchasing,Residential Homes,Osbourne Court,1187.8, 17-May-2011
1158,Revenue,CCHD,Under 65s PWLD - PS,Residential Homes,Osprey Court,8046.68, 17-May-2011
1159,Revenue,CCHD,S28A - Under 65,Residential Homes,Osprey Court,4491.76, 17-May-2011
1160,Revenue,CCHD,S28A - Under 65,Residential Homes,Osprey Court,13360.4, 17-May-2011
1161,Revenue,CCHD,Research & Conferences,Membership Fees,Oxford Brookes University,3000, 27-May-2011
1162,Revenue,CCHD,Elderly Mental Health,Residential Homes,Park Farm House,1331.48, 17-May-2011
1163,Revenue,CCHD,Elderly Purchasing - South,Residential Homes,Park Farm House,1498.8, 17-May-2011
1164,Revenue,CCHD,Southmead Hospital Purchasing,Residential Homes,Park Farm House,1510.6, 17-May-2011
1165,Revenue,CCHD,Elderly Mental Health,Residential Homes,Park Farm House,1566.4, 17-May-2011
1166,Revenue,CCHD,Elderly Mental Health,Residential Homes,Park Farm House,1144.32, 17-May-2011
1167,Revenue,CCHD,Under 65s PWLD - KH,Residential Homes,Penleigh House Care Home,4389.32, 17-May-2011
1168,Revenue,CCHD,Elderly PWLD - KD,Residential Homes,Penleigh House Care Home,4162.72, 17-May-2011
1169,Revenue,CCHD,Elderly PWLD - KD,Residential Homes,Penleigh House Care Home,3122.04, 17-May-2011
1170,Revenue,CCHD,Elderly PWLD - KD,Residential Homes,Penleigh House Care Home,1642.35, 17-May-2011
1171,Revenue,CCHD,Under 65s PWLD - KD,Residential Homes,Penleigh House Care Home,4326.72, 17-May-2011
1172,Revenue,CCHD,Under 65s PWLD - KD,Residential Homes,Penleigh House Care Home,3245.04, 17-May-2011
1173,Revenue,CCHD,Under 65s PWLD - KD,Residential Homes,Penleigh House Care Home,1703.87, 17-May-2011
1174,Revenue,CCHD,S28A - Under 65,Residential Homes,Penleigh House Care Home,5288.92, 17-May-2011
1175,Revenue,CCHD,Section 117 Placements,Nursing Homes,Pennwood Lodge Nursing Home,1911.96, 17-May-2011
1176,Revenue,CCHD,Elderly Mental Health,Nursing Homes,Pennwood Lodge Nursing Home,961, 17-May-2011
1177,Revenue,CCHD,Elderly Purchasing - North,Residential Homes,Pennwood Lodge Nursing Home,1463.32, 17-May-2011
1178,Revenue,CCHD,Elderly Mental Health,Nursing Homes,Pennwood Lodge Nursing Home,1453, 17-May-2011
1179,Revenue,CCHD,Elderly Mental Health,Nursing Homes,Pennwood Lodge Nursing Home,1210.68, 17-May-2011
1180,Revenue,CCHD,Elderly Mental Health,Nursing Homes,Pennwood Lodge Nursing Home,1453, 17-May-2011
1181,Revenue,CCHD,Elderly Mental Health,Nursing Homes,Pennwood Lodge Nursing Home,1195, 17-May-2011
1182,Revenue,CCHD,Elderly Mental Health,Nursing Homes,Pennwood Lodge Nursing Home,905.48, 17-May-2011
1183,Revenue,CCHD,Home Care Purch North,Other Small Contracts,Premier Homecare Limited,7159.38, 20-May-2011
1184,Revenue,CCHD,Home Care Purch North,Other Small Contracts,Premier Homecare Limited,3468.72, 20-May-2011
1185,Revenue,CCHD,Home Care Purch North,Other Small Contracts,Premier Homecare Limited,7474.56, 05-May-2011
1186,Revenue,CCHD,Day Care - North,Private & Voluntary Day Care,Premier Homecare Limited,1088, 05-May-2011
1187,Revenue,CCHD,Elderly MH Home Care,Other Small Contracts,Premier Homecare Limited,179.52, 05-May-2011
1188,Revenue,CCHD,Elderly MH non-res purchasing,Private & Voluntary Day Care,Premier Homecare Limited,184.96, 05-May-2011
1189,Revenue,CCHD,Home Care Purch South,Other Small Contracts,Premier Homecare Limited,43.52, 06-May-2011
1190,Revenue,CCHD,Home Care Purch North,Other Small Contracts,Premier Homecare Limited,6794.56, 06-May-2011
1191,Revenue,CCHD,Day Care - North,Private & Voluntary Day Care,Premier Homecare Limited,1071.68, 06-May-2011
1192,Revenue,CCHD,Elderly MH Home Care,Other Small Contracts,Premier Homecare Limited,179.52, 06-May-2011
1193,Revenue,CCHD,Elderly MH non-res purchasing,Private & Voluntary Day Care,Premier Homecare Limited,184.96, 06-May-2011
1194,Revenue,CCHD,Home Care Purch North,Other Small Contracts,Premier Homecare Limited,7093.76, 18-May-2011
1195,Revenue,CCHD,Day Care - North,Private & Voluntary Day Care,Premier Homecare Limited,897.6, 18-May-2011
1196,Revenue,CCHD,Elderly MH Home Care,Other Small Contracts,Premier Homecare Limited,157.76, 18-May-2011
1197,Revenue,CCHD,Elderly MH non-res purchasing,Private & Voluntary Day Care,Premier Homecare Limited,250.24, 18-May-2011
1198,Revenue,CCHD,Home Care Purch North,Other Small Contracts,Premier Homecare Limited,7295.04, 23-May-2011
1199,Revenue,CCHD,Day Care - North,Private & Voluntary Day Care,Premier Homecare Limited,1000.96, 23-May-2011
1200,Revenue,CCHD,Elderly MH Home Care,Other Small Contracts,Premier Homecare Limited,157.76, 23-May-2011
1201,Revenue,CCHD,Elderly MH non-res purchasing,Private & Voluntary Day Care,Premier Homecare Limited,250.24, 23-May-2011
1202,Revenue,CCHD,Home Care Purch North,Other Small Contracts,Premier Homecare Limited,6821.75, 25-May-2011
1203,Revenue,CCHD,Day Care - North,Private & Voluntary Day Care,Premier Homecare Limited,816, 25-May-2011
1204,Revenue,CCHD,Elderly MH Home Care,Other Small Contracts,Premier Homecare Limited,179.52, 25-May-2011
1205,Revenue,CCHD,Elderly MH non-res purchasing,Private & Voluntary Day Care,Premier Homecare Limited,250.24, 25-May-2011
1206,Revenue,CCHD,Frenchay Hospital Purchasing,Residential Homes,Prestige Nursing,936.87, 31-May-2011
1207,Revenue,CCHD,Contracts & Commissioning Team,Other Small Contracts,Prestige Nursing,4500, 06-May-2011
1208,Revenue,CCHD,Contracts & Commissioning Team,Other Small Contracts,Prestige Nursing,4500, 13-May-2011
1209,Revenue,CCHD,Contracts & Commissioning Team,Other Small Contracts,Prestige Nursing,4500, 20-May-2011
1210,Revenue,CCHD,Contracts & Commissioning Team,Other Small Contracts,Prestige Nursing,4500, 27-May-2011
1211,Revenue,CCHD,Kingswood District Office,Postages,Purchase Power,513, 11-May-2011
1212,Revenue,CCHD,Frenchay Hospital Purchasing,Residential Homes,Quality Care Homes Ltd,770.6, 17-May-2011
1213,Revenue,CCHD,Elderly Purchasing - South,Residential Homes,Quality Care Homes Ltd,1238.96, 17-May-2011
1214,Revenue,CCHD,Elderly Purchasing - South,Residential Homes,Quality Care Homes Ltd,1250.8, 17-May-2011
1215,Revenue,CCHD,Elderly Purchasing - South,Residential Homes,Quality Care Homes Ltd,1396, 17-May-2011
1216,Revenue,CCHD,Elderly Purchasing - South,Residential Homes,Quality Care Homes Ltd,1138.56, 17-May-2011
1217,Revenue,CCHD,Frenchay Hospital Purchasing,Residential Homes,Quality Care Homes Ltd,1229, 17-May-2011
1218,Revenue,CCHD,Elderly Purchasing - South,Residential Homes,Quality Care Homes Ltd,1242.8, 17-May-2011
1219,Revenue,CCHD,Southmead Hospital Purchasing,Residential Homes,Quality Care Homes Ltd,1182.96, 17-May-2011
1220,Revenue,CCHD,Southmead Hospital Purchasing,Residential Homes,Quality Care Homes Ltd,1232.16, 17-May-2011
1221,Revenue,CCHD,Tenancy Start Up Scheme,Other Supplies & Services,Radford Residential Ltd - Client Account,1200, 17-May-2011
1222,Revenue,CCHD,Elderly Mental Health,Nursing Homes,Ravenswood,1159.06, 17-May-2011
1223,Revenue,CCHD,Section 117 Placements,Nursing Homes,Redholme Memory Care Limited,3824, 17-May-2011
1224,Revenue,CCHD,Elderly Purchasing - South,Nursing Homes,Regent House,1620.8, 17-May-2011
1225,Revenue,CCHD,South Glos Users in South Glos Homes,Nursing Homes,Regent House,1537.33, 17-May-2011
1226,Revenue,CCHD,Elderly Purchasing - South,Nursing Homes,Regent House,800.24, 17-May-2011
1227,Revenue,CCHD,Elderly Purchasing - South,Nursing Homes,Regent House,1620.8, 17-May-2011
1228,Revenue,CCHD,Southmead Hospital Purchasing,Nursing Homes,Regent House,1367, 17-May-2011
1229,Revenue,CCHD,Elderly Purchasing - South,Nursing Homes,Regent House,1782.04, 17-May-2011
1230,Revenue,CCHD,Elderly Purchasing - South,Nursing Homes,Regent House,1230.2, 17-May-2011
1231,Revenue,CCHD,Elderly Mental Health,Residential Homes,Regent House,6648.93, 17-May-2011
1232,Revenue,CCHD,Elderly Mental Health,Nursing Homes,Regent House,1906.2, 17-May-2011
1233,Revenue,CCHD,Elderly Mental Health,Nursing Homes,Regent House,1076.07, 17-May-2011
1234,Revenue,CCHD,Elderly Mental Health,Nursing Homes,Regent House,1444.2, 17-May-2011
1235,Revenue,CCHD,Elderly Mental Health,Nursing Homes,Regent House,1089.08, 17-May-2011
1236,Revenue,CCHD,Elderly Mental Health,Nursing Homes,Regent House,1906.2, 17-May-2011
1237,Revenue,CCHD,Elderly Mental Health,Nursing Homes,Regent House,1282.72, 17-May-2011
1238,Revenue,CCHD,Elderly PWLD - PS,Residential Homes,Renaissance,2143.25, 17-May-2011
1239,Revenue,CCHD,Under 65s PWLD - PS,Residential Homes,Ridgeway House,3365.52, 17-May-2011
1240,Revenue,CCHD,Elderly Purchasing - South,Nursing Homes,Riversway Nursing Home,1146.88, 17-May-2011
1241,Revenue,CCHD,Southmead Hospital Purchasing,Nursing Homes,Riversway Nursing Home,1334.52, 17-May-2011
1242,Revenue,CCHD,Southmead Hospital Purchasing,Nursing Homes,Riversway Nursing Home,1690.2, 17-May-2011
1243,Revenue,CCHD,Elderly Mental Health,Nursing Homes,Riversway Nursing Home,1025.39, 17-May-2011
1244,Revenue,CCHD,Elderly PWLD - PS,Residential Homes,Rockleaze,2134.16, 17-May-2011
1245,Revenue,CCHD,Elderly PWLD - PS,Residential Homes,Rockleaze,1386.56, 17-May-2011
1246,Revenue,CCHD,S28A - Over 65,Residential Homes,Rockleaze,2015.52, 17-May-2011
1247,Revenue,CCHD,Under 65s PWLD - PS,Residential Homes,Rockleaze,2335.08, 17-May-2011
1248,Revenue,CCHD,Elderly PWLD - PS,Residential Homes,Rockleaze,1386.56, 17-May-2011
1249,Revenue,CCHD,Under 65s PWLD - PS,Residential Homes,Rosewood Lodge & Brook House,7838.16, 17-May-2011
1250,Revenue,CCHD,Elderly Mental Health,Residential Homes,Ross Healthcare,1265.36, 17-May-2011
1251,Revenue,CCHD,Frenchay Hospital Purchasing,Residential Homes,Roundham Court,2462.45, 17-May-2011
1252,Revenue,CCHD,Day Care - North,Private & Voluntary Day Care,Royal National Institute For Deaf People,662.16, 16-May-2011
1253,Revenue,CCHD,LD - Kingswood PCT,Agency Staff (Operational)/PCT Pay,Ryeford Cleaning Services Limited,628.33, 10-May-2011
1254,Revenue,CCHD,Learning Difficulties PSL,Rent,Individual,1400, 03-May-2011
1255,Revenue,CCHD,Woodleaze,"Provisions (Food, etc)",School Milk Services Limited,757.56, 05-May-2011
1256,Revenue,CCHD,Charlton,"Provisions (Food, etc)",School Milk Services Limited,742.22, 03-May-2011
1257,Revenue,CCHD,Woodleaze,"Provisions (Food, etc)",School Milk Services Limited,754.32, 31-May-2011
1258,Revenue,CCHD,Under 65s PWLD - KH,Residential Homes,Scope   Accounts Dept,3008.48, 17-May-2011
1259,Revenue,CCHD,Frenchay Hospital Purchasing,Nursing Homes,Sedbury Park Care Centre,1247.12, 17-May-2011
1260,Revenue,CCHD,Purchase of Non-Res Care - KD,Private & Voluntary Day Care,Selborne Care Ltd,796.64, 19-May-2011
1261,Revenue,CCHD,Purchase of Non-Res Care - KD,Private & Voluntary Day Care,Selborne Care Ltd,1343.68, 19-May-2011
1262,Revenue,CCHD,Purchase of Non-Res Care - KD,Private & Voluntary Day Care,Selborne Care Ltd,816.64, 19-May-2011
1263,Revenue,CCHD,Purchase of Non-Res Care - KD,Private & Voluntary Day Care,Selborne Care Ltd,768.32, 19-May-2011
1264,Revenue,CCHD,Purchase of Non-Res Care - KD,Private & Voluntary Day Care,Selborne Care Ltd,824.64, 18-May-2011
1265,Revenue,CCHD,Supported Living - PS,Private & Voluntary Home Care,Selborne Care Ltd,1379.84, 18-May-2011
1266,Revenue,CCHD,Supported Living - PS,Private & Voluntary Home Care,Selborne Care Ltd,4904.5, 18-May-2011
1267,Revenue,CCHD,Supported Living - PS,Private & Voluntary Home Care,Selborne Care Ltd,564.48, 23-May-2011
1268,Revenue,CCHD,Supported Living - PS,Private & Voluntary Home Care,Selborne Care Ltd,4557, 23-May-2011
1269,Revenue,CCHD,Supported Living - PS,Private & Voluntary Home Care,Selborne Care Ltd,1842.82, 24-May-2011
1270,Revenue,CCHD,Under 65s PWLD - KD,Residential Homes,Sense,10341.6, 17-May-2011
1271,Revenue,CCHD,Elderly Mental Health,Nursing Homes,Shaw Healthcare Ltd,1231.84, 17-May-2011
1272,Revenue,CCHD,S117 Placements PCT,Residential Homes,Shaw Healthcare Ltd,15925.32, 17-May-2011
1273,Revenue,CCHD,Under 65s PWLD - PS,Nursing Homes,Shaw Healthcare Ltd,9886.84, 17-May-2011
1274,Revenue,CCHD,Under 65s PWLD - KD,Residential Homes,Shaw Healthcare Ltd,10321.36, 17-May-2011
1275,Revenue,CCHD,S28A - Under 65,Residential Homes,Shaw Healthcare Ltd,10944.96, 17-May-2011
1276,Revenue,CCHD,S28A - Under 65,Residential Homes,Shaw Healthcare Ltd,11746.04, 17-May-2011
1277,Revenue,CCHD,S28A - Under 65,Residential Homes,Shaw Healthcare Ltd,5048.8, 17-May-2011
1278,Revenue,CCHD,S28A - Over 65,Residential Homes,Shaw Healthcare Ltd,4858.4, 17-May-2011
1279,Revenue,CCHD,Under 65s PWLD - PS,Nursing Homes,Shaw Healthcare Ltd,9886.84, 17-May-2011
1280,Revenue,CCHD,S28A - Over 65,Residential Homes,Shaw Healthcare Ltd,4850.4, 17-May-2011
1281,Revenue,CCHD,S28A - Over 65,Residential Homes,Shaw Healthcare Ltd,4858.4, 17-May-2011
1282,Revenue,CCHD,S28A - Over 65,Residential Homes,Shaw Healthcare Ltd,4884.2, 17-May-2011
1283,Revenue,CCHD,S28A - Under 65,Residential Homes,Shaw Healthcare Ltd,9120.92, 17-May-2011
1284,Revenue,CCHD,S28A - Over 65,Nursing Homes,Shaw Healthcare Ltd,8956.92, 17-May-2011
1285,Revenue,CCHD,Supported Living - KH,Private & Voluntary Home Care,Silva Care Limited,4415.44, 23-May-2011
1286,Revenue,CCHD,Day Care - North,Private & Voluntary Day Care,Silva Care Limited,1182.81, 18-May-2011
1287,Revenue,CCHD,Elderly Purchasing - North,Residential Homes,Simeon Care For The Elderly,1395.29, 17-May-2011
1288,Revenue,CCHD,LD - Kingswood PCT,Refuse Collection Charges,SITA UK LTD,639.81, 12-May-2011
1289,Revenue,CCHD,Under 65s PWLD - KD,Residential Homes,Small House Homes Limited,17443.68, 17-May-2011
1290,Revenue,CCHD,Purchase of Non-Res Care - PS,Private & Voluntary Day Care,Smile Independent Living Support Limited,710.6, 24-May-2011
1291,Revenue,CCHD,Supported Living - PS,Private & Voluntary Home Care,Smile Independent Living Support Limited,576.6, 24-May-2011
1292,Revenue,CCHD,Purchase of Non-Res Care - KD,Private & Voluntary Day Care,Smile Independent Living Support Limited,1068.8, 17-May-2011
1293,Revenue,CCHD,Supported Living - KD,Private & Voluntary Home Care,Smile Independent Living Support Limited,956.88, 16-May-2011
1294,Revenue,CCHD,Purchase of Non-Res Care - KD,Private & Voluntary Day Care,Smile Independent Living Support Limited,568, 16-May-2011
1295,Revenue,CCHD,Purchase of Non-Res Care - KD,Private & Voluntary Day Care,Smile Independent Living Support Limited,549.8, 17-May-2011
1296,Revenue,CCHD,Purchase of Non-Res Care - KD,Private & Voluntary Day Care,Smile Independent Living Support Limited,837.63, 16-May-2011
1297,Revenue,CCHD,Purchase of Non-Res Care - KD,Private & Voluntary Day Care,Smile Independent Living Support Limited,923.45, 19-May-2011
1298,Revenue,CCHD,Purchase of Non-Res Care - KD,Private & Voluntary Day Care,Smile Independent Living Support Limited,1081.2, 17-May-2011
1299,Revenue,CCHD,Purchase of Non-Res Care - KD,Private & Voluntary Day Care,Smile Independent Living Support Limited,814.55, 16-May-2011
1300,Revenue,CCHD,Purchase of Non-Res Care - KD,Private & Voluntary Day Care,Smile Independent Living Support Limited,619.25, 16-May-2011
1301,Revenue,CCHD,Supported Living - KD,Private & Voluntary Home Care,Smile Independent Living Support Limited,4007.35, 19-May-2011
1302,Revenue,CCHD,Supported Living - KD,Private & Voluntary Home Care,Smile Independent Living Support Limited,2615.92, 19-May-2011
1303,Revenue,CCHD,Purchase of Non-Res Care - KD,Private & Voluntary Day Care,Smile Independent Living Support Limited,943.25, 16-May-2011
1304,Revenue,CCHD,Supported Living - KD,Private & Voluntary Home Care,Smile Independent Living Support Limited,606.64, 19-May-2011
1305,Revenue,CCHD,Under 65s PWLD - KD,Residential Homes,Somerset Court,82561.64, 17-May-2011
1306,Revenue,CCHD,Under 65s PWLD - KH,Nursing Homes,Somerset Hca Ltd,9500.83, 17-May-2011
1307,Revenue,CCHD,Day Care - South,Private & Voluntary Day Care,South Gloucestershire Crossroads,645.76, 23-May-2011
1308,Revenue,CCHD,Contracts & Commissioning Team,Other Small Contracts,South Gloucestershire Crossroads,5000, 06-May-2011
1309,Revenue,CCHD,Contracts & Commissioning Team,Other Small Contracts,South Gloucestershire Crossroads,5000, 13-May-2011
1310,Revenue,CCHD,Contracts & Commissioning Team,Other Small Contracts,South Gloucestershire Crossroads,5000, 20-May-2011
1311,Revenue,CCHD,Contracts & Commissioning Team,Other Small Contracts,South Gloucestershire Crossroads,5000, 27-May-2011
1312,Revenue,CCHD,Mental Health Grant Training,Training Expenses,South London and South West ASW,1510, 03-May-2011
1313,Revenue,CCHD,Southmead Hospital Purchasing,Nursing Homes,Southern Cross Healthcare,1572.85, 17-May-2011
1314,Revenue,CCHD,Under 65s PWLD - KH,Residential Homes,St Brigas,2014.4, 17-May-2011
1315,Revenue,CCHD,Under 65s PWLD - PS,Residential Homes,St Brigas,2907.24, 17-May-2011
1316,Revenue,CCHD,Under 65s PWLD - KH,Residential Homes,St Brigas,1963.52, 17-May-2011
1317,Revenue,CCHD,Elderly Purchasing - North,Residential Homes,St Davids Lodge,2979.56, 17-May-2011
1318,Revenue,CCHD,Elderly Purchasing - North,Residential Homes,St Davids Lodge,2234.67, 17-May-2011
1319,Revenue,CCHD,Elderly Purchasing - North,Residential Homes,St Davids Lodge,752.65, 17-May-2011
1320,Revenue,CCHD,Elderly PWLD - PS,Residential Homes,St Davids Lodge,2527.88, 17-May-2011
1321,Revenue,CCHD,Elderly PWLD - PS,Residential Homes,St Davids Lodge,1895.91, 17-May-2011
1322,Revenue,CCHD,Elderly PWLD - PS,Residential Homes,St Davids Lodge,636.42, 17-May-2011
1323,Revenue,CCHD,S28A - Over 65,Residential Homes,St Davids Lodge,3074.48, 17-May-2011
1324,Revenue,CCHD,S28A - Over 65,Residential Homes,St Davids Lodge,2305.86, 17-May-2011
1325,Revenue,CCHD,S28A - Over 65,Residential Homes,St Davids Lodge,773.07, 17-May-2011
1326,Revenue,CCHD,S28A - Over 65,Residential Homes,St Davids Lodge,3024.76, 17-May-2011
1327,Revenue,CCHD,S28A - Over 65,Residential Homes,St Davids Lodge,2268.57, 17-May-2011
1328,Revenue,CCHD,S28A - Over 65,Residential Homes,St Davids Lodge,760.64, 17-May-2011
1329,Revenue,CCHD,S28A - Over 65,Residential Homes,St Davids Lodge,3988.2, 17-May-2011
1330,Revenue,CCHD,Elderly PWLD - PS,Residential Homes,St Davids Lodge,7307.16, 17-May-2011
1331,Revenue,CCHD,Frenchay Hospital Purchasing,Nursing Homes,St George Nursing Home,1285, 17-May-2011
1332,Revenue,CCHD,Frenchay Hospital Purchasing,Nursing Homes,St George Nursing Home,1285, 17-May-2011
1333,Revenue,CCHD,Elderly Mental Health,Nursing Homes,St George Nursing Home,1198.8, 17-May-2011
1334,Revenue,CCHD,Elderly Purchasing - South,Nursing Homes,St George Nursing Home,1293, 17-May-2011
1335,Revenue,CCHD,Frenchay Hospital Purchasing,Nursing Homes,St George Nursing Home,1768.09, 17-May-2011
1336,Revenue,CCHD,Frenchay Hospital Purchasing,Nursing Homes,St George Nursing Home,1285, 17-May-2011
1337,Revenue,CCHD,Elderly Mental Health,Nursing Homes,St George Nursing Home,1285, 17-May-2011
1338,Revenue,CCHD,Southmead Hospital Purchasing,Nursing Homes,St George Nursing Home,1413.2, 17-May-2011
1339,Revenue,CCHD,Southmead Hospital Purchasing,Nursing Homes,St George Nursing Home,2200.27, 17-May-2011
1340,Revenue,CCHD,Southmead Hospital Purchasing,Nursing Homes,St George Nursing Home,1293, 17-May-2011
1341,Revenue,CCHD,Frenchay Hospital Purchasing,Residential Homes,St Monicas Trust,1232.16, 17-May-2011
1342,Revenue,CCHD,Community Support ACM - South,Preventative Assistance,St Roses School,2688, 04-May-2011
1343,Revenue,CCHD,Under 65s PWLD - PS,Residential Homes,Stepping Stones Re-Sett. Unit,8458.23, 17-May-2011
1344,Revenue,CCHD,Frenchay Hospital Purchasing,Residential Homes,Stonebow House Residential Home,1238.84, 17-May-2011
1345,Revenue,CCHD,Southmead Hospital Purchasing,Residential Homes,Stuart House,868.01, 17-May-2011
1346,Revenue,CCHD,Supporting People Programme,Grants to Voluntary Bodies,Supported Independance Ltd,2678.48, 20-May-2011
1347,Revenue,CCHD,Supporting People Programme,Grants to Voluntary Bodies,Supported Independance Ltd,2678.48, 20-May-2011
1348,Revenue,CCHD,Supporting People Programme,Grants to Voluntary Bodies,Supported Independance Ltd,5538.4, 20-May-2011
1349,Revenue,CCHD,Supporting People Programme,Grants to Voluntary Bodies,Supported Independance Ltd,5538.4, 20-May-2011
1350,Revenue,CCHD,Supporting People Programme,Grants to Voluntary Bodies,Supported Independance Ltd,2678.48, 20-May-2011
1351,Revenue,CCHD,Supporting People Programme,Grants to Voluntary Bodies,Supported Independance Ltd,2678.48, 20-May-2011
1352,Revenue,CCHD,Supporting People Programme,Grants to Voluntary Bodies,Supported Independance Ltd,2678.48, 20-May-2011
1353,Revenue,CCHD,Supporting People Programme,Grants to Voluntary Bodies,Supported Independance Ltd,2678.48, 20-May-2011
1354,Revenue,CCHD,Supporting People Programme,Grants to Voluntary Bodies,Supported Independance Ltd,2678.48, 20-May-2011
1355,Revenue,CCHD,Supporting People Programme,Grants to Voluntary Bodies,Supported Independance Ltd,2678.48, 20-May-2011
1356,Revenue,CCHD,Supporting People Programme,Grants to Voluntary Bodies,Supported Independance Ltd,2678.48, 20-May-2011
1357,Revenue,CCHD,Supporting People Programme,Grants to Voluntary Bodies,Supported Independance Ltd,2678.48, 20-May-2011
1358,Revenue,CCHD,Supporting People Programme,Grants to Voluntary Bodies,Supported Independance Ltd,2678.48, 20-May-2011
1359,Revenue,CCHD,Supporting People Programme,Grants to Voluntary Bodies,Supported Independance Ltd,2678.48, 20-May-2011
1360,Revenue,CCHD,Supporting People Programme,Grants to Voluntary Bodies,Supported Independance Ltd,2678.48, 20-May-2011
1361,Revenue,CCHD,Supporting People Programme,Grants to Voluntary Bodies,Supported Independance Ltd,2295.84, 20-May-2011
1362,Revenue,CCHD,Supporting People Programme,Grants to Voluntary Bodies,Supported Independance Ltd,4747.2, 20-May-2011
1363,Revenue,CCHD,Supporting People Programme,Grants to Voluntary Bodies,Supported Independance Ltd,2391.5, 20-May-2011
1364,Revenue,CCHD,Supporting People Programme,Grants to Voluntary Bodies,Supported Independance Ltd,2678.48, 20-May-2011
1365,Revenue,CCHD,Supporting People Programme,Grants to Voluntary Bodies,Supported Independent Living Schemes,4465.92, 10-May-2011
1366,Revenue,CCHD,Supporting People Programme,Grants to Voluntary Bodies,Supported Independent Living Schemes,4465.92, 10-May-2011
1367,Revenue,CCHD,Supporting People Programme,Grants to Voluntary Bodies,Supported Independent Living Schemes,5388.32, 10-May-2011
1368,Revenue,CCHD,Supporting People Programme,Grants to Voluntary Bodies,Supported Independent Living Schemes,5388.32, 10-May-2011
1369,Revenue,CCHD,Supporting People Programme,Grants to Voluntary Bodies,Supported Independent Living Schemes,3827.93, 10-May-2011
1370,Revenue,CCHD,Supporting People Programme,Grants to Voluntary Bodies,Supported Independent Living Schemes,4618.56, 10-May-2011
1371,Revenue,CCHD,Housing Needs,Agency Staff (Admin/Support Staff) Pay,SWIM Recruitment,544.13, 23-May-2011
1372,Revenue,CCHD,Housing Needs,Agency Staff (Admin/Support Staff) Pay,SWIM Recruitment,420.79, 23-May-2011
1373,Revenue,CCHD,Elderly Purchasing - South,Residential Homes,The Beeches,750, 17-May-2011
1374,Revenue,CCHD,Elderly Purchasing - South,Residential Homes,The Beeches,1120.64, 17-May-2011
1375,Revenue,CCHD,Elderly Mental Health,Residential Homes,The Beeches,1848, 17-May-2011
1376,Revenue,CCHD,Supported Living - KD,Private & Voluntary Home Care,The Brandon Trust,9151.46, 19-May-2011
1377,Revenue,CCHD,Purchase of Non-Res Care - KH,Private & Voluntary Day Care,The Brandon Trust,773.88, 23-May-2011
1378,Revenue,CCHD,Purchase of Non-Res Care - PS,Private & Voluntary Day Care,The Brandon Trust,922.5, 09-May-2011
1379,Revenue,CCHD,Purchase of Non-Res Care - KH,Private & Voluntary Day Care,The Brandon Trust,1019.9, 23-May-2011
1380,Revenue,CCHD,Day Care - South,Private & Voluntary Day Care,The Brandon Trust,622.2, 19-May-2011
1381,Revenue,CCHD,Purchase of Non-Res Care - KH,Private & Voluntary Day Care,The Brandon Trust,4448.5, 23-May-2011
1382,Revenue,CCHD,Purchase of Non-Res Care - KH,Private & Voluntary Day Care,The Brandon Trust,3510.18, 23-May-2011
1383,Revenue,CCHD,Purchase of Non-Res Care - PS,Private & Voluntary Day Care,The Brandon Trust,1108, 24-May-2011
1384,Revenue,CCHD,Purchase of Non-Res Care - KH,Private & Voluntary Day Care,The Brandon Trust,812.08, 19-May-2011
1385,Revenue,CCHD,Supported Living - PS,Private & Voluntary Home Care,The Brandon Trust,819.25, 19-May-2011
1386,Revenue,CCHD,Brandon Day Care,Private & Voluntary Day Care,The Brandon Trust,24078, 11-May-2011
1387,Revenue,CCHD,Day Care - North,Private & Voluntary Day Care,The Brandon Trust,652.84, 17-May-2011
1388,Revenue,CCHD,Purchase of Non-Res Care - PS,Private & Voluntary Day Care,The Brandon Trust,866.13, 10-May-2011
1389,Revenue,CCHD,Purchase of Non-Res Care - PS,Private & Voluntary Day Care,The Brandon Trust,1108, 10-May-2011
1390,Revenue,CCHD,Purchase of Non-Res Care - PS,Private & Voluntary Day Care,The Brandon Trust,686.75, 10-May-2011
1391,Revenue,CCHD,Younger MH non-res purchasing,Private & Voluntary Day Care,The Brandon Trust,1182.18, 19-May-2011
1392,Revenue,CCHD,Purchase of Non-Res Care - PS,Private & Voluntary Day Care,The Brandon Trust,684.42, 10-May-2011
1393,Revenue,CCHD,Purchase of Non-Res Care - PS,Private & Voluntary Day Care,The Brandon Trust,1514.67, 10-May-2011
1394,Revenue,CCHD,Younger MH non-res purchasing,Private & Voluntary Day Care,The Brandon Trust,1057.74, 18-May-2011
1395,Revenue,CCHD,Day Care - South,Private & Voluntary Day Care,The Brandon Trust,622.2, 26-May-2011
1396,Revenue,CCHD,Purchase of Non-Res Care - PS,Private & Voluntary Day Care,The Brandon Trust,684.42, 23-May-2011
1397,Revenue,CCHD,S28A - Under 65,Residential Homes,The Brandon Trust,46677.47, 19-May-2011
1398,Revenue,CCHD,Under 65s PWLD - PS,Nursing Homes,The Brandon Trust  Olympus House,5641, 17-May-2011
1399,Revenue,CCHD,S28A - Over 65,Residential Homes,The Brandon Trust  Olympus House,3524.61, 17-May-2011
1400,Revenue,CCHD,Under 65s PWLD - PS,Residential Homes,The Brandon Trust  Olympus House,11149.88, 17-May-2011
1401,Revenue,CCHD,Under 65s PWLD - KD,Residential Homes,The Brandon Trust  Olympus House,3220, 17-May-2011
1402,Revenue,CCHD,Under 65s PWLD - KD,Residential Homes,The Brandon Trust  Olympus House,5108.24, 17-May-2011
1403,Revenue,CCHD,Elderly PWLD - PS,Residential Homes,The Brandon Trust  Olympus House,3324.81, 17-May-2011
1404,Revenue,CCHD,Under 65s PWLD - KD,Nursing Homes,The Brandon Trust  Olympus House,5698.96, 17-May-2011
1405,Revenue,CCHD,Under 65s PWLD - KH,Residential Homes,The Brandon Trust  Olympus House,3768.33, 17-May-2011
1406,Revenue,CCHD,S28A - Over 65,Residential Homes,The Brandon Trust  Olympus House,3788.72, 17-May-2011
1407,Revenue,CCHD,Under 65s PWLD - PS,Nursing Homes,The Brandon Trust  Olympus House,5054.2, 17-May-2011
1408,Revenue,CCHD,S28A - Under 65,Residential Homes,The Brandon Trust  Olympus House,5944.52, 17-May-2011
1409,Revenue,CCHD,S28A - Under 65,Residential Homes,The Brandon Trust  Olympus House,4543.48, 17-May-2011
1410,Revenue,CCHD,S28A - Under 65,Residential Homes,The Brandon Trust  Olympus House,5944.52, 17-May-2011
1411,Revenue,CCHD,Swift Dump Code,Residential Homes,The Brandon Trust  Olympus House,4033.65, 17-May-2011
1412,Revenue,CCHD,S28A - Under 65,Residential Homes,The Brandon Trust  Olympus House,5780.52, 17-May-2011
1413,Revenue,CCHD,S28A - Over 65,Nursing Homes,The Brandon Trust  Olympus House,5386.84, 17-May-2011
1414,Revenue,CCHD,S28A - Over 65,Nursing Homes,The Brandon Trust  Olympus House,5720.76, 17-May-2011
1415,Revenue,CCHD,S28A - Under 65,Residential Homes,The Brandon Trust  Olympus House,5189.52, 17-May-2011
1416,Revenue,CCHD,S28A - Under 65,Residential Homes,The Brandon Trust  Olympus House,5262.04, 17-May-2011
1417,Revenue,CCHD,S28A - Over 65,Residential Homes,The Brandon Trust  Olympus House,7104.36, 17-May-2011
1418,Revenue,CCHD,S28A - Under 65,Residential Homes,The Brandon Trust  Olympus House,5944.52, 17-May-2011
1419,Revenue,CCHD,S28A - Under 65,Residential Homes,The Brandon Trust  Olympus House,5944.48, 17-May-2011
1420,Revenue,CCHD,S28A - Under 65,Residential Homes,The Brandon Trust  Olympus House,4595.28, 17-May-2011
1421,Revenue,CCHD,S28A - Under 65,Residential Homes,The Brandon Trust  Olympus House,5262.08, 17-May-2011
1422,Revenue,CCHD,S28A - Over 65,Residential Homes,The Brandon Trust  Olympus House,4662.84, 17-May-2011
1423,Revenue,CCHD,Elderly Mental Health,Nursing Homes,The Cidermill,890, 17-May-2011
1424,Revenue,CCHD,Elderly Mental Health,Nursing Homes,The Cidermill,1316.88, 17-May-2011
1425,Revenue,CCHD,Elderly Mental Health,Residential Homes,The Cidermill,7977.77, 17-May-2011
1426,Revenue,CCHD,Woodleaze,Furniture & Fittings Loose,The Consortium,476.8, 05-May-2011
1427,Revenue,CCHD,Elderly Purchasing - South,Residential Homes,The Gables Residential Home,1221, 17-May-2011
1428,Revenue,CCHD,Elderly Purchasing - South,Residential Homes,The Gables Residential Home,1285.04, 17-May-2011
1429,Revenue,CCHD,Elderly Purchasing - South,Residential Homes,The Gables Residential Home,941.48, 17-May-2011
1430,Revenue,CCHD,Frenchay Hospital Purchasing,Residential Homes,The Gables Residential Home,1229, 17-May-2011
1431,Revenue,CCHD,Elderly Purchasing - South,Residential Homes,The Gables Residential Home,1084.28, 17-May-2011
1432,Revenue,CCHD,Elderly Mental Health,Residential Homes,The Gables Residential Home,1172.52, 17-May-2011
1433,Revenue,CCHD,Section 117 Placements,Residential Homes,The Gables Residential Home,2156.84, 17-May-2011
1434,Revenue,CCHD,Elderly Mental Health,Residential Homes,The Grove,1582.4, 17-May-2011
1435,Revenue,CCHD,Frenchay Hospital Purchasing,Residential Homes,The Grove,899.52, 17-May-2011
1436,Revenue,CCHD,Elderly Mental Health,Residential Homes,The Grove,1566.4, 17-May-2011
1437,Revenue,CCHD,Elderly Mental Health,Residential Homes,The Grove,612.04, 17-May-2011
1438,Revenue,CCHD,Section 117 Placements,Residential Homes,The Grove,2040, 17-May-2011
1439,Revenue,CCHD,Elderly Mental Health,Residential Homes,The Grove,514.14, 17-May-2011
1440,Revenue,CCHD,Elderly Mental Health,Residential Homes,The Grove,1475.92, 17-May-2011
1441,Revenue,CCHD,Elderly Mental Health,Residential Homes,The Grove,1738.6, 17-May-2011
1442,Revenue,CCHD,Southmead Hospital Purchasing,Residential Homes,The Grove,1318.76, 17-May-2011
1443,Revenue,CCHD,Elderly Mental Health,Residential Homes,The Grove,1480.48, 17-May-2011
1444,Revenue,CCHD,Frenchay Hospital Purchasing,Residential Homes,The Grove,814.32, 17-May-2011
1445,Revenue,CCHD,Supporting People Programme,Grants to Voluntary Bodies,The Hatch Camphill Community,1126.56, 23-May-2011
1446,Revenue,CCHD,Supporting People Programme,Grants to Voluntary Bodies,The Hatch Camphill Community,1126.56, 23-May-2011
1447,Revenue,CCHD,Supporting People Programme,Grants to Voluntary Bodies,The Hatch Camphill Community,1126.56, 23-May-2011
1448,Revenue,CCHD,Supporting People Programme,Grants to Voluntary Bodies,The Hatch Camphill Community,1126.56, 23-May-2011
1449,Revenue,CCHD,Supporting People Programme,Grants to Voluntary Bodies,The Hatch Camphill Community,1126.56, 23-May-2011
1450,Revenue,CCHD,Supporting People Programme,Grants to Voluntary Bodies,The Hatch Camphill Community,1126.56, 23-May-2011
1451,Revenue,CCHD,Supporting People Programme,Grants to Voluntary Bodies,The Hatch Camphill Community,1126.56, 23-May-2011
1452,Revenue,CCHD,Supporting People Programme,Grants to Voluntary Bodies,The Hatch Camphill Community,1126.56, 23-May-2011
1453,Revenue,CCHD,Supporting People Programme,Grants to Voluntary Bodies,The Hatch Camphill Community,1126.56, 23-May-2011
1454,Revenue,CCHD,Frenchay Hospital Purchasing,Nursing Homes,The Heathers,1861.14, 17-May-2011
1455,Revenue,CCHD,Frenchay Hospital Purchasing,Nursing Homes,The Heathers,1285, 17-May-2011
1456,Revenue,CCHD,Elderly Mental Health,Nursing Homes,The Heathers,1262.52, 17-May-2011
1457,Revenue,CCHD,Elderly Purchasing - South,Nursing Homes,The Heathers,1285, 17-May-2011
1458,Revenue,CCHD,Frenchay Hospital Purchasing,Nursing Homes,The Heathers,718.6, 17-May-2011
1459,Revenue,CCHD,Southmead Hospital Purchasing,Nursing Homes,The Heathers,996.6, 17-May-2011
1460,Revenue,CCHD,Frenchay Hospital Purchasing,Nursing Homes,The Heathers,1288.24, 17-May-2011
1461,Revenue,CCHD,Elderly Mental Health,Nursing Homes,The Heathers,1267.12, 17-May-2011
1462,Revenue,CCHD,Frenchay Hospital Purchasing,Nursing Homes,The Heathers,1215.84, 17-May-2011
1463,Revenue,CCHD,Elderly Purchasing - North,Nursing Homes,The Heathers,1109.84, 17-May-2011
1464,Revenue,CCHD,Southmead Hospital Purchasing,Nursing Homes,The Heathers,738.32, 17-May-2011
1465,Revenue,CCHD,Frenchay Hospital Purchasing,Nursing Homes,The Heathers,1285, 17-May-2011
1466,Revenue,CCHD,Elderly Purchasing - North,Nursing Homes,The Heathers,1169.56, 17-May-2011
1467,Revenue,CCHD,Southmead Hospital Purchasing,Residential Homes,The Manor Cottage,878.88, 17-May-2011
1468,Revenue,CCHD,Elderly Purchasing - South,Residential Homes,The Manor Cottage,1825.68, 17-May-2011
1469,Revenue,CCHD,Elderly Purchasing - South,Residential Homes,The Manor Cottage,1229, 17-May-2011
1470,Revenue,CCHD,Elderly Purchasing - South,Residential Homes,The Manor Cottage,765.36, 17-May-2011
1471,Revenue,CCHD,Elderly Purchasing - South,Residential Homes,The Manor Cottage,1389, 17-May-2011
1472,Revenue,CCHD,Elderly Purchasing - North,Residential Homes,The Manor Cottage,1173, 17-May-2011
1473,Revenue,CCHD,Elderly Purchasing - South,Residential Homes,The Manor Cottage,1421.44, 17-May-2011
1474,Revenue,CCHD,Elderly Purchasing - South,Residential Homes,The Manor Cottage,928.12, 17-May-2011
1475,Revenue,CCHD,Under 65s PWLD - KH,Residential Homes,The Manor House,2825.2, 17-May-2011
1476,Revenue,CCHD,Under 65s PWLD - KD,Residential Homes,The Manor House,598.98, 17-May-2011
1477,Revenue,CCHD,Under 65s PWLD - KH,Residential Homes,The Manor House,5069, 17-May-2011
1478,Revenue,CCHD,Under 65s PWLD - KH,Residential Homes,The Manor House,3614.36, 17-May-2011
1479,Revenue,CCHD,Under 65s PWLD - KH,Residential Homes,The Manor House,2780.92, 17-May-2011
1480,Revenue,CCHD,Under 65s PWLD - PS,Residential Homes,The Manor House,3345.84, 17-May-2011
1481,Revenue,CCHD,Under 65s PWLD - KD,Residential Homes,The Manor House,2745, 17-May-2011
1482,Revenue,CCHD,Under 65s PWLD - KH,Residential Homes,The Manor House,2775.52, 17-May-2011
1483,Revenue,CCHD,Under 65s PWLD - KH,Residential Homes,The Manor House,3433, 17-May-2011
1484,Revenue,CCHD,Under 65s PWLD - KH,Residential Homes,The Manor House,6230.32, 17-May-2011
1485,Revenue,CCHD,S28A - Under 65,Residential Homes,The Manor House,5013, 17-May-2011
1486,Revenue,CCHD,Under 65s PWLD - KH,Residential Homes,The Manor House,2822.32, 17-May-2011
1487,Revenue,CCHD,Under 65s PWLD - KH,Residential Homes,The Manor House,3519.16, 17-May-2011
1488,Revenue,CCHD,Under 65s PWLD - KH,Residential Homes,The Manor House,3091.56, 17-May-2011
1489,Revenue,CCHD,Under 65s PWLD - KH,Residential Homes,The Manor House,3431.96, 17-May-2011
1490,Revenue,CCHD,Under 65s PWLD - KH,Residential Homes,The Manor House,4333.24, 17-May-2011
1491,Revenue,CCHD,Under 65s PWLD - PS,Residential Homes,The Manor House,3202.12, 17-May-2011
1492,Revenue,CCHD,Under 65s PWLD - PS,Residential Homes,The Manor House,3008.12, 17-May-2011
1493,Revenue,CCHD,Under 65s PWLD - KH,Residential Homes,The Manor House,2822.32, 17-May-2011
1494,Revenue,CCHD,Under 65s PWLD - KH,Residential Homes,The Manor House,4474.8, 17-May-2011
1495,Revenue,CCHD,Under 65s PWLD - KD,Residential Homes,The Manor House,3355.24, 17-May-2011
1496,Revenue,CCHD,Under 65s PWLD - KD,Residential Homes,The Manor House,1247.66, 17-May-2011
1497,Revenue,CCHD,Elderly PWLD - KH,Residential Homes,The Manor House,2382.24, 17-May-2011
1498,Revenue,CCHD,Under 65s PWLD - PS,Residential Homes,The Manor House,3339.16, 17-May-2011
1499,Revenue,CCHD,Under 65s PWLD - KD,Residential Homes,The Manor House,1015.28, 17-May-2011
1500,Revenue,CCHD,Under 65s PWLD - KH,Residential Homes,The Manor House,4993.04, 17-May-2011
1501,Revenue,CCHD,Under 65s PWLD - KH,Residential Homes,The Manor House,2822.32, 17-May-2011
1502,Revenue,CCHD,Elderly Mental Health,Residential Homes,The Old Vicarage Residential Home,1398, 17-May-2011
1503,Revenue,CCHD,Under 65s PWLD - KD,Residential Homes,The Red House Residential Home,2008.36, 17-May-2011
1504,Revenue,CCHD,Under 65s PWLD - KD,Residential Homes,The Red House Residential Home,1920.8, 17-May-2011
1505,Revenue,CCHD,Elderly PWLD - KD,Residential Homes,The Red House Residential Home,1844.36, 17-May-2011
1506,Revenue,CCHD,Under 65s PWLD - KD,Residential Homes,The Red House Residential Home,2008.36, 17-May-2011
1507,Revenue,CCHD,Under 65s PWLD - KD,Residential Homes,The Red House Residential Home,1844.36, 17-May-2011
1508,Revenue,CCHD,Contracts & Commissioning Team,Other Small Contracts,The Royal Bank of Scotland Commercial,5000, 06-May-2011
1509,Revenue,CCHD,Contracts & Commissioning Team,Other Small Contracts,The Royal Bank of Scotland Commercial,5000, 13-May-2011
1510,Revenue,CCHD,Contracts & Commissioning Team,Other Small Contracts,The Royal Bank of Scotland Commercial,5000, 20-May-2011
1511,Revenue,CCHD,Contracts & Commissioning Team,Other Small Contracts,The Royal Bank of Scotland Commercial,5000, 27-May-2011
1512,Revenue,CCHD,Home Care Purch North,Other Small Contracts,The Royal Bank of Scotland Commercial,1095, 06-May-2011
1513,Revenue,CCHD,Home Care Purch North,Other Small Contracts,The Royal Bank of Scotland Commercial,1095, 06-May-2011
1514,Revenue,CCHD,Home Care Purch North,Other Small Contracts,The Royal Bank of Scotland Commercial,1095, 06-May-2011
1515,Revenue,CCHD,Home Care Purch North,Other Small Contracts,The Royal Bank of Scotland Commercial,1095, 23-May-2011
1516,Revenue,CCHD,Under 65s PWLD - PS,Residential Homes,The Stanstead Centre,3470.08, 17-May-2011
1517,Revenue,CCHD,Under 65s PWLD - KD,Residential Homes,The Thomas Moore Project,1599.52, 17-May-2011
1518,Revenue,CCHD,Under 65s PWLD - PS,Residential Homes,The Turrets,865.12, 17-May-2011
1519,Revenue,CCHD,Elderly PWLD - PS,Residential Homes,The Turrets,3134.56, 17-May-2011
1520,Revenue,CCHD,Elderly PWLD - KH,Residential Homes,The Turrets,1481.4, 17-May-2011
1521,Revenue,CCHD,Elderly Mental Health,Residential Homes,The Worthies,2110.2, 17-May-2011
1522,Revenue,CCHD,Elderly Mental Health,Residential Homes,The Worthies,1389, 17-May-2011
1523,Revenue,CCHD,Turnberries,Rent,Thornbury Community Building Trust,16447, 03-May-2011
1524,Revenue,CCHD,Learning Difficulties PSL,Rent,Individual,650, 20-May-2011
1525,Revenue,CCHD,Learning Difficulties PSL,Rent,Individual,750, 20-May-2011
1526,Revenue,CCHD,Learning Difficulties PSL,Rent,Individual,488, 20-May-2011
1527,Revenue,CCHD,Under 65s PWLD - KH,Residential Homes,Tomlen,6381.04, 17-May-2011
1528,Revenue,CCHD,Tenancy Start Up Scheme,Other Supplies & Services,Total Lettings Limited,1200, 23-May-2011
1529,Revenue,CCHD,Purchasing Phys Dis - North,Residential Homes,Tracs Group Ltd,6112.4, 17-May-2011
1530,Revenue,CCHD,Purchasing Phys Dis - North,Residential Homes,Tracs Group Ltd,4459.88, 17-May-2011
1531,Revenue,CCHD,Under 65s PWLD - PS,Residential Homes,Tracs Group Ltd,6406.56, 17-May-2011
1532,Revenue,CCHD,Elderly Purchasing - South,Residential Homes,Tracs Group Ltd,6835.76, 17-May-2011
1533,Revenue,CCHD,Preventative Technology Grant,Other Supplies & Services,Tunstall Healthcare (UK) Limited,432, 24-May-2011
1534,Revenue,CCHD,Preventative Technology Grant,Other Supplies & Services,Tunstall Telecom Limited DO NOT USE?,600, 03-May-2011
1535,Revenue,CCHD,Preventative Technology Grant,Other Supplies & Services,Tunstall Telecom Limited DO NOT USE?,750, 03-May-2011
1536,Revenue,CCHD,Minor Adaptations Service,Daily Living Equipment,TVM Cheltenham Limited,977, 12-May-2011
1537,Revenue,CCHD,Minor Adaptations Service,Daily Living Equipment,TVM Cheltenham Limited,833.5, 12-May-2011
1538,Revenue,CCHD,Minor Adaptations Service,Daily Living Equipment,TVM Cheltenham Limited,837.5, 12-May-2011
1539,Revenue,CCHD,Minor Adaptations Service,Daily Living Equipment,TVM Cheltenham Limited,1470, 12-May-2011
1540,Revenue,CCHD,Minor Adaptations Service,Daily Living Equipment,TVM Cheltenham Limited,1627, 12-May-2011
1541,Revenue,CCHD,Minor Adaptations Service,Daily Living Equipment,TVM Cheltenham Limited,833.5, 18-May-2011
1542,Revenue,CCHD,Minor Adaptations Service,Daily Living Equipment,TVM Cheltenham Limited,875, 18-May-2011
1543,Revenue,CCHD,Minor Adaptations Service,Maintenance by Contractor,TVM Cheltenham Limited,881.5, 18-May-2011
1544,Revenue,CCHD,Under 65s PWLD - KD,Residential Homes,Ty Hafod Tudor,3787.16, 17-May-2011
1545,Revenue,CCHD,PWLD S 117 Placements,Residential Homes,Unit 2,7341.4, 17-May-2011
1546,Revenue,CCHD,S28A - Under 65,Residential Homes,United Response,400816, 26-May-2011
1547,Revenue,CCHD,S28A - Under 65,Residential Homes,United Response,196528.8, 24-May-2011
1548,Revenue,CCHD,Supported Living - KH,Private & Voluntary Home Care,United Response,2591.56, 03-May-2011
1549,Revenue,CCHD,S28A - Under 65,Residential Homes,Urmston House,10446.72, 17-May-2011
1550,Revenue,CCHD,S28A - Under 65,Residential Homes,Urmston House,10446.72, 17-May-2011
1551,Revenue,CCHD,S28A - Under 65,Residential Homes,Urmston House,10446.72, 17-May-2011
1552,Revenue,CCHD,Southmead Hospital Purchasing,Residential Homes,Vaughan Lee House,1162.2, 17-May-2011
1553,Revenue,CCHD,Homelessness Grant,Agency Staff (Admin/Support Staff) Pay,Venn Group Limited,669.33, 12-May-2011
1554,Revenue,CCHD,Homelessness Grant,Agency Staff (Admin/Support Staff) Pay,Venn Group Limited,542.7, 12-May-2011
1555,Revenue,CCHD,Elderly Mental Health,Residential Homes,Ventura Residential Care Home,1215.65, 17-May-2011
1556,Revenue,CCHD,Under 65s PWLD - PS,Residential Homes,Victoria Court,11023.36, 17-May-2011
1557,Revenue,CCHD,Elderly PWLD - KD,Residential Homes,Victoria Court,8521.97, 17-May-2011
1558,Revenue,CCHD,Information Systems - Software,Telephones,Virgin Media Payments Ltd,4800, 13-May-2011
1559,Revenue,CCHD,Old Long Stay Deaths,Telephones,Virgin Media Payments Ltd,2400, 13-May-2011
1560,Revenue,CCHD,Elderly PWLD - PS,Residential Homes,Visions,3542.56, 17-May-2011
1561,Revenue,CCHD,Kerr House NRC,Radio Pager/Mobile Phones,Vodafone Corporate Limited,459.06, 25-May-2011
1562,Revenue,CCHD,Kingswood District Office,Telephones,Vodafone Corporate Limited,494.2, 24-May-2011
1563,Revenue,CCHD,Kingswood District Office,Telephones,Vodafone Corporate Limited,780.77, 18-May-2011
1564,Revenue,CCHD,Mental Capacity Act - Advocacy,Radio Pager/Mobile Phones,Vodafone Corporate Limited,119.58, 25-May-2011
1565,Revenue,CCHD,Preventative Technology Grant,Radio Pager/Mobile Phones,Vodafone Corporate Limited,54, 25-May-2011
1566,Revenue,CCHD,Home Care - General,Radio Pager/Mobile Phones,Vodafone Corporate Limited,21.27, 25-May-2011
1567,Revenue,CCHD,Directorate,Radio Pager/Mobile Phones,Vodafone Corporate Limited,146.66, 25-May-2011
1568,Revenue,CCHD,Finance,Radio Pager/Mobile Phones,Vodafone Corporate Limited,119.68, 25-May-2011
1569,Revenue,CCHD,Finance - FAB,Radio Pager/Mobile Phones,Vodafone Corporate Limited,230.04, 25-May-2011
1570,Revenue,CCHD,Contracts & Commissioning Team,Radio Pager/Mobile Phones,Vodafone Corporate Limited,97.91, 25-May-2011
1571,Revenue,CCHD,Performance Management Support,Radio Pager/Mobile Phones,Vodafone Corporate Limited,54, 25-May-2011
1572,Revenue,CCHD,Communications Service,Radio Pager/Mobile Phones,Vodafone Corporate Limited,36.57, 25-May-2011
1573,Revenue,CCHD,Planning and Partnerships Team,Radio Pager/Mobile Phones,Vodafone Corporate Limited,44.94, 25-May-2011
1574,Revenue,CCHD,Information Systems Team,Radio Pager/Mobile Phones,Vodafone Corporate Limited,80.69, 25-May-2011
1575,Revenue,CCHD,Senior Management,Radio Pager/Mobile Phones,Vodafone Corporate Limited,88.31, 25-May-2011
1576,Revenue,CCHD,Housing Needs,Radio Pager/Mobile Phones,Vodafone Corporate Limited,82.81, 25-May-2011
1577,Revenue,CCHD,Under 65s PWLD - PS,Residential Homes,Voyage Ltd,2913.24, 17-May-2011
1578,Revenue,CCHD,Under 65s PWLD - KD,Residential Homes,Voyage Ltd,8036.16, 17-May-2011
1579,Revenue,CCHD,S28A - Under 65,Residential Homes,Voyage Ltd,6709.84, 17-May-2011
1580,Revenue,CCHD,Under 65s PWLD - PS,Residential Homes,Voyage Ltd,7254.36, 17-May-2011
1581,Revenue,CCHD,Under 65s PWLD - PS,Residential Homes,Voyage Ltd,5782.64, 17-May-2011
1582,Revenue,CCHD,Under 65s PWLD - PS,Residential Homes,Voyage Ltd,6346.64, 17-May-2011
1583,Revenue,CCHD,Under 65s PWLD - PS,Residential Homes,Voyage Ltd,7504.68, 17-May-2011
1584,Revenue,CCHD,Purchasing Phys Dis - South,Residential Homes,Voyage Ltd,5352, 17-May-2011
1585,Revenue,CCHD,Under 65s PWLD - KH,Residential Homes,Voyage Ltd,5098.2, 17-May-2011
1586,Revenue,CCHD,Frenchay Hospital Purchasing,Residential Homes,Walton-On-Thames Charity,2471.2, 17-May-2011
1587,Revenue,CCHD,Elderly Mental Health,Residential Homes,Wayside Residential Care Home,1389, 17-May-2011
1588,Revenue,CCHD,Elderly Mental Health,Residential Homes,Wayside Residential Care Home,1105.34, 17-May-2011
1589,Revenue,CCHD,Elderly Mental Health,Residential Homes,Wayside Residential Care Home,1322.32, 17-May-2011
1590,Revenue,CCHD,Frenchay Hospital Purchasing,Residential Homes,Wayside Residential Care Home,1305.84, 17-May-2011
1591,Revenue,CCHD,Southmead Hospital Purchasing,Residential Homes,Wayside Residential Care Home,1389, 17-May-2011
1592,Revenue,CCHD,Southmead Hospital Purchasing,Residential Homes,Wayside Residential Care Home,843.32, 17-May-2011
1593,Revenue,CCHD,Elderly Mental Health,Residential Homes,Wayside Residential Care Home,1203.56, 17-May-2011
1594,Revenue,CCHD,Southmead Hospital Purchasing,Residential Homes,Wayside Residential Care Home,1264.56, 17-May-2011
1595,Revenue,CCHD,Elderly Purchasing - South,Residential Homes,Wayside Residential Care Home,1231.52, 17-May-2011
1596,Revenue,CCHD,PWLD S 117 Placements,Residential Homes,West Court,7773.44, 17-May-2011
1597,Revenue,CCHD,Elderly Purchasing - North,Residential Homes,Wickwar Nursing Home  Castle House,1157.16, 17-May-2011
1598,Revenue,CCHD,Southmead Hospital Purchasing,Nursing Homes,Wickwar Nursing Home  Castle House,710.32, 17-May-2011
1599,Revenue,CCHD,Elderly Purchasing - North,Residential Homes,Wickwar Nursing Home  Castle House,1201.88, 17-May-2011
1600,Revenue,CCHD,Elderly Purchasing - North,Nursing Homes,Wickwar Nursing Home  Castle House,5186.54, 17-May-2011
1601,Revenue,CCHD,Frenchay Hospital Purchasing,Nursing Homes,Wickwar Nursing Home  Castle House,969.24, 17-May-2011
1602,Revenue,CCHD,South Glos Users in South Glos Homes,Nursing Homes,Wickwar Nursing Home  Castle House,5435, 17-May-2011
1603,Revenue,CCHD,Elderly Purchasing - North,Nursing Homes,Wickwar Nursing Home  Castle House,1395.6, 17-May-2011
1604,Revenue,CCHD,Elderly Purchasing - North,Residential Homes,Wickwar Nursing Home  Castle House,1339.48, 17-May-2011
1605,Revenue,CCHD,Elderly Purchasing - North,Nursing Homes,Wickwar Nursing Home  Castle House,1285, 17-May-2011
1606,Revenue,CCHD,Elderly Purchasing - North,Nursing Homes,Wickwar Nursing Home  Castle House,1361.6, 17-May-2011
1607,Revenue,CCHD,Elderly Purchasing - North,Nursing Homes,Wickwar Nursing Home  Castle House,1424.32, 17-May-2011
1608,Revenue,CCHD,Elderly Purchasing - North,Residential Homes,Wickwar Nursing Home  Castle House,1216.04, 17-May-2011
1609,Revenue,CCHD,Frenchay Hospital Purchasing,Nursing Homes,Wickwar Nursing Home  Castle House,1501.44, 17-May-2011
1610,Revenue,CCHD,Southmead Hospital Purchasing,Nursing Homes,Wickwar Nursing Home  Castle House,1133.2, 17-May-2011
1611,Revenue,CCHD,Elderly Purchasing - North,Residential Homes,Wickwar Nursing Home  Castle House,1363.76, 17-May-2011
1612,Revenue,CCHD,Elderly Purchasing - North,Nursing Homes,Wickwar Nursing Home  Castle House,1378.44, 17-May-2011
1613,Revenue,CCHD,Purchasing Phys Dis - North,Nursing Homes,Wickwar Nursing Home  Castle House,1104.84, 17-May-2011
1614,Revenue,CCHD,Elderly Mental Health,Residential Homes,Willow Cottage,1383.08, 17-May-2011
1615,Revenue,CCHD,Southmead Hospital Purchasing,Residential Homes,Willow Cottage,1501, 17-May-2011
1616,Revenue,CCHD,Frenchay Hospital Purchasing,Residential Homes,Willow Cottage,1055.12, 17-May-2011
1617,Revenue,CCHD,Southmead Hospital Purchasing,Residential Homes,Willow Cottage,1403.08, 17-May-2011
1618,Revenue,CCHD,Elderly Purchasing - North,Residential Homes,Willow Cottage,1354.68, 17-May-2011
1619,Revenue,CCHD,Southmead Hospital Purchasing,Residential Homes,Willow Cottage,1383.32, 17-May-2011
1620,Revenue,CCHD,Frenchay Hospital Purchasing,Residential Homes,Willow Cottage,1292.04, 17-May-2011
1621,Revenue,CCHD,Frenchay Hospital Purchasing,Nursing Homes,Willow Cottage,1016.8, 17-May-2011
1622,Revenue,CCHD,Southmead Hospital Purchasing,Nursing Homes,Willow Cottage,1486.2, 17-May-2011
1623,Revenue,CCHD,Southmead Hospital Purchasing,Nursing Homes,Willow Cottage,636.95, 17-May-2011
1624,Revenue,CCHD,Elderly Purchasing - North,Nursing Homes,Willow Cottage,1945.44, 17-May-2011
1625,Revenue,CCHD,Frenchay Hospital Purchasing,Nursing Homes,Willow Cottage,1636.2, 17-May-2011
1626,Revenue,CCHD,Frenchay Hospital Purchasing,Nursing Homes,Willow Cottage,1320.72, 17-May-2011
1627,Revenue,CCHD,Southmead Hospital Purchasing,Nursing Homes,Willow Cottage,1442.72, 17-May-2011
1628,Revenue,CCHD,Purchasing Phys Dis - North,Nursing Homes,Willow Cottage,1652.08, 17-May-2011
1629,Revenue,CCHD,Elderly Purchasing - North,Nursing Homes,Willow Cottage,1215.44, 17-May-2011
1630,Revenue,CCHD,Elderly Purchasing - South,Residential Homes,Willow Cottage,1741, 17-May-2011
1631,Revenue,CCHD,Southmead Hospital Purchasing,Nursing Homes,Willow Cottage,1294.68, 17-May-2011
1632,Revenue,CCHD,Supporting People Programme,Grants to Voluntary Bodies,Willowbank Care Limited,2516.14, 31-May-2011
1633,Revenue,CCHD,Supporting People Programme,Grants to Voluntary Bodies,Willowbank Care Limited,1281.81, 31-May-2011
1634,Revenue,CCHD,Supported Living - KD,Private & Voluntary Home Care,Willowbank Care Limited,2039.28, 17-May-2011
1635,Revenue,CCHD,Supported Living - KD,Private & Voluntary Home Care,Willowbank Care Limited,4091.56, 17-May-2011
1636,Revenue,CCHD,Supported Living - KD,Private & Voluntary Home Care,Willowbank Care Limited,2092.3, 17-May-2011
1637,Revenue,CCHD,Supported Living - KD,Private & Voluntary Home Care,Willowbank Care Limited,917.42, 17-May-2011
1638,Revenue,CCHD,Supported Living - KD,Private & Voluntary Home Care,Willowbank Care Limited,2598.36, 17-May-2011
1639,Revenue,CCHD,Supported Living (S28a),Private & Voluntary Home Care,Willowbank Care Limited,4371.02, 11-May-2011
1640,Revenue,CCHD,Supported Living (S28a),Private & Voluntary Home Care,Willowbank Care Limited,4371.02, 24-May-2011
1641,Revenue,CCHD,Supported Living (S28a),Private & Voluntary Home Care,Willowbank Care Limited,4371.02, 24-May-2011
1642,Revenue,CCHD,Supported Living (S28a),Private & Voluntary Home Care,Willowbank Care Limited,4616.5, 11-May-2011
1643,Revenue,CCHD,Supported Living (S28a),Private & Voluntary Home Care,Willowbank Care Limited,4616.5, 24-May-2011
1644,Revenue,CCHD,Supported Living (S28a),Private & Voluntary Home Care,Willowbank Care Limited,4616.5, 24-May-2011
1645,Revenue,CCHD,Supported Living - KD,Private & Voluntary Home Care,Willowbank Care Limited,2999.98, 17-May-2011
1646,Revenue,CCHD,Supported Living - KD,Private & Voluntary Home Care,Willowbank Care Limited,3024.78, 17-May-2011
1647,Revenue,CCHD,Supported Living - KD,Private & Voluntary Home Care,Willowbank Care Limited,2251.48, 17-May-2011
1648,Revenue,CCHD,Day Care - North,Private & Voluntary Day Care,Windmill Care Limited,680, 25-May-2011
1649,Revenue,CCHD,Day Care - North,Private & Voluntary Day Care,Windmill Care Limited,840, 17-May-2011
1650,Revenue,CCHD,Day Care - North,Private & Voluntary Day Care,Windmill Care Limited,920, 18-May-2011
1651,Revenue,CCHD,Elderly MH non-res purchasing,Private & Voluntary Day Care,Windmill Care Limited,573.3, 18-May-2011
1652,Revenue,CCHD,Southmead Hospital Purchasing,Nursing Homes,Wisteria House,1246.8, 23-May-2011
1653,Revenue,CCHD,Elderly Purchasing - North,Nursing Homes,Woodlands Manor,1604.96, 17-May-2011
1654,Revenue,CCHD,Elderly Purchasing - North,Nursing Homes,Woodlands Manor,1617.44, 17-May-2011
1655,Revenue,CCHD,Elderly Purchasing - North,Nursing Homes,Woodlands Manor,2248.75, 17-May-2011
1656,Revenue,CCHD,Day Care - South,Private & Voluntary Day Care,Woodlands Manor Care Home Ltd,780, 24-May-2011
1657,Revenue,CCHD,Wessex Loans,Membership Fees,WRT Core Company Ltd,18566, 12-May-2011
,,,,,,5117951.38,
1658,Revenue,CECR,PSD Building Surveyors,Other Premises Costs,Apre Surfacing Limited,1383, 16-May-2011
1659,Revenue,CECR,Surplus Property,Other Premises Costs,Apre Surfacing Limited,800, 27-May-2011
1660,Revenue,CECR,Design Materials,Printing & Stationery,Arien Signs,1660, 31-May-2011
1661,Revenue,CECR,PSD Information Management,Software Support & Maintenance,Asta Development Plc,480, 24-May-2011
1662,Revenue,CECR,Buildings Holding a/c,Fees - General,Atkins Limited,11456.26, 20-May-2011
1663,Revenue,CECR,District Audit Fees,Audit Fees,Audit Commision,28495, 06-May-2011
1664,Revenue,CECR,Service Reviews Prog - ICT Costs,Computer Equipment - Purchase,Autodata Products Plc,5229, 04-May-2011
1665,Revenue,CECR,Infrastructure - Comm,Software Support & Maintenance,B2Net Ltd,8097.38, 03-May-2011
1666,Revenue,CECR,Infrastructure - Comm,Computer Equipment - Maintenance,B2Net Ltd,3408.3, 19-May-2011
1667,Revenue,CECR,Pre 1996 Pensions,Annual Pension,Bath & North East Somerset Dist Council,9243.05, 12-May-2011
1668,Revenue,CECR,Pre 1996 Pensions,Annual Pension,Bath & North East Somerset Dist Council,9130.8, 12-May-2011
1669,Revenue,CECR,Pre 1996 Pensions,Annual Pension,Bath & North East Somerset Dist Council,15876.57, 12-May-2011
1670,Revenue,CECR,Pre 1996 Pensions,Annual Pension,Bath & North East Somerset Dist Council,33613.56, 12-May-2011
1671,Revenue,CECR,Fees incurred on sale of fixed assets,Other Premises Costs,Bath Demolition Limited,20000, 05-May-2011
1672,Revenue,CECR,General Fund Land Account,Fees - General,Bevan Brittan LLP,1022.8, 19-May-2011
1673,Revenue,CECR,Chipping Sodbury Offices,Rent,Blake Lapthorn,754, 18-May-2011
1674,Revenue,CECR,Customer Relations,Consultants Fees,BMG Research,2975, 10-May-2011
1675,Revenue,CECR,Customer Relations,Consultants Fees,BMG Research,2915, 23-May-2011
1676,Revenue,CECR,Exchequer Payments,Printing & Stationery,Bristol Business Forms Limited,2961.5, 05-May-2011
1677,Revenue,CECR,Exchequer Payments,Printing & Stationery,Bristol Business Forms Limited,888.45, 05-May-2011
1678,Revenue,CECR,Benefits Administration,Printing & Stationery,Bristol Business Forms Limited,296.15, 05-May-2011
1679,Revenue,CECR,Benefits Fraud,Legal Fees,Bristol City Council,59353.79, 23-May-2011
1680,Revenue,CECR,Coroners Service,Levies,Bristol City Council,35130, 27-May-2011
1681,Revenue,CECR,Badminton Road Offices,Maintenance by Contractor,C M B Maintenance Services Limited,8774.41, 20-May-2011
1682,Revenue,CECR,Infrastructure - Comm,Software Support & Maintenance,Cable & Wireless,11882.6, 23-May-2011
1683,Revenue,CECR,QSD Controls,Software Purchase,Capita Business Services Ltd,1990, 13-May-2011
1684,Revenue,CECR,Service Reviews Prog - ICT Costs,Agency Staff (Admin/Support Staff) Pay,Cash Friday at Lloyds TSB,1520, 03-May-2011
1685,Revenue,CECR,Service Reviews Prog - ICT Costs,Agency Staff (Admin/Support Staff) Pay,Cash Friday at Lloyds TSB,1425, 03-May-2011
1686,Revenue,CECR,Service Reviews Prog - ICT Costs,Agency Staff (Admin/Support Staff) Pay,Cash Friday at Lloyds TSB,1634, 06-May-2011
1687,Revenue,CECR,Service Reviews Prog - ICT Costs,Agency Staff (Admin/Support Staff) Pay,Cash Friday at Lloyds TSB,1425, 06-May-2011
1688,Revenue,CECR,Service Reviews Prog - ICT Costs,Agency Staff (Admin/Support Staff) Pay,Cash Friday at Lloyds TSB,2090, 13-May-2011
1689,Revenue,CECR,Service Reviews Prog - ICT Costs,Agency Staff (Admin/Support Staff) Pay,Cash Friday at Lloyds TSB,1140, 13-May-2011
1690,Revenue,CECR,Service Reviews Prog - ICT Costs,Agency Staff (Admin/Support Staff) Pay,Cash Friday at Lloyds TSB,570, 19-May-2011
1691,Revenue,CECR,Service Reviews Prog - ICT Costs,Agency Staff (Admin/Support Staff) Pay,Cash Friday at Lloyds TSB,1140, 26-May-2011
1692,Revenue,CECR,Service Reviews Prog - ICT Costs,Agency Staff (Admin/Support Staff) Pay,Cash Friday at Lloyds TSB,855, 26-May-2011
1693,Revenue,CECR,PSD Mech Engineers,Agency Staff (Operational)/PCT Pay,CDI Anders Elite Limited,602, 04-May-2011
1694,Revenue,CECR,PSD Mech Engineers,Agency Staff (Operational)/PCT Pay,CDI Anders Elite Limited,714, 18-May-2011
1695,Revenue,CECR,PSD Mech Engineers,Agency Staff (Operational)/PCT Pay,CDI Anders Elite Limited,1008, 23-May-2011
1696,Revenue,CECR,PSD Mech Engineers,Agency Staff (Operational)/PCT Pay,CDI Anders Elite Limited,770, 24-May-2011
1697,Revenue,CECR,Member Development,Books & Publications,Central Books Limited,820, 26-May-2011
1698,Revenue,CECR,Corporate Communications,Advertising for Recruitment,Chapple Ltd,7500, 20-May-2011
1699,Revenue,CECR,Internal Audit,Membership Fees,CIPFA Business Limited,1465, 03-May-2011
1700,Revenue,CECR,Service Review Team,Other Supplies & Services,CIPFA Business Limited,500, 16-May-2011
1701,Revenue,CECR,Financial Reporting,Membership Fees,CIPFA Business Limited,4255, 23-May-2011
1702,Revenue,CECR,Corporate Financial Services,Membership Fees,CIPFA Business Limited,3300, 20-May-2011
1703,Revenue,CECR,Infrastructure - Discr,Other Consumable Materials,Complete Office Solutions (UK) Ltd,6620, 10-May-2011
1704,Revenue,CECR,Service Reviews Prog - ICT Costs,Computer Services,Computacenter (UK) Ltd,5876, 04-May-2011
1705,Revenue,CECR,Service Reviews Prog - ICT Costs,Consultants Fees,Computacenter (UK) Ltd,6152, 19-May-2011
1706,Revenue,CECR,Service Reviews Prog - ICT Costs,Computer Services,Computacenter (UK) Ltd,7351, 19-May-2011
1707,Revenue,CECR,Service Reviews Prog - ICT Costs,Software Purchase,Computacenter (UK) Ltd,12957.45, 19-May-2011
1708,Revenue,CECR,Service Reviews Prog - ICT Costs,Computer Services,Computacenter (UK) Ltd,8956, 27-May-2011
1709,Revenue,CECR,Badminton Road Offices,Gas,Corona Energy Retail 3 Limited,2557.44, 11-May-2011
1710,Revenue,CECR,Old Park School,Gas,Corona Energy Retail 3 Limited,2365.64, 11-May-2011
1711,Revenue,CECR,Thornbury Council Offices,Gas,Corona Energy Retail 3 Limited,1576.22, 11-May-2011
1712,Revenue,CECR,Broad Lane Depot,Gas,Corona Energy Retail 3 Limited,2289.2, 11-May-2011
1713,Revenue,CECR,Badminton Road Offices,Gas,Corona Energy Retail 3 Limited,1188.25, 31-May-2011
1714,Revenue,CECR,Thornbury Council Offices,Gas,Corona Energy Retail 3 Limited,686.32, 31-May-2011
1715,Revenue,CECR,Broad Lane Depot,Gas,Corona Energy Retail 3 Limited,581.76, 31-May-2011
1716,Revenue,CECR,Infrastructure - Comm,Software Support & Maintenance,Data Integration,6316.88, 03-May-2011
1717,Revenue,CECR,Design Materials,Printing & Stationery,Datafiler.co.uk,1157.5, 03-May-2011
1718,Revenue,CECR,One Stop Shop - Kingswood,Uniforms & Clothing,DCC Direct,110.2, 24-May-2011
1719,Revenue,CECR,One Stop Shops - Thornbury and Yate,Uniforms & Clothing,DCC Direct,495.6, 24-May-2011
1720,Revenue,CECR,One Stop Shop - Kingswood,Uniforms & Clothing,DCC Direct,284.77, 18-May-2011
1721,Revenue,CECR,One Stop Shops - Thornbury and Yate,Uniforms & Clothing,DCC Direct,237.23, 18-May-2011
1722,Revenue,CECR,One Stop Shop - Kingswood,Uniforms & Clothing,DCC Direct,276.57, 24-May-2011
1723,Revenue,CECR,One Stop Shops - Thornbury and Yate,Uniforms & Clothing,DCC Direct,142.63, 24-May-2011
1724,Revenue,CECR,One Stop Shop - Kingswood,Uniforms & Clothing,DCC Direct,276, 24-May-2011
1725,Revenue,CECR,One Stop Shops - Thornbury and Yate,Uniforms & Clothing,DCC Direct,238, 24-May-2011
1726,Revenue,CECR,One Stop Shop - Kingswood,Uniforms & Clothing,DCC Direct,214.2, 24-May-2011
1727,Revenue,CECR,One Stop Shops - Thornbury and Yate,Uniforms & Clothing,DCC Direct,390.8, 24-May-2011
1728,Revenue,CECR,One Stop Shop - Kingswood,Uniforms & Clothing,DCC Direct,176.74, 18-May-2011
1729,Revenue,CECR,One Stop Shops - Thornbury and Yate,Uniforms & Clothing,DCC Direct,389.46, 18-May-2011
1730,Revenue,CECR,One Stop Shop - Kingswood,Uniforms & Clothing,DCC Direct,185.4, 24-May-2011
1731,Revenue,CECR,One Stop Shops - Thornbury and Yate,Uniforms & Clothing,DCC Direct,309, 24-May-2011
1732,Revenue,CECR,Spending ex - HRA Balances,Grants to Voluntary Bodies,Dodington Parish Council,525, 20-May-2011
1733,Revenue,CECR,Internal Audit,Membership Fees,Dun & Bradstreet Limited,814, 19-May-2011
1734,Revenue,CECR,Franking and Postage Costs,Membership Fees,DX Network Services Limited,5732.76, 03-May-2011
1735,Revenue,CECR,Benefits Administration,Agency Staff (Admin/Support Staff) Pay,Eden Brown Limited,1027, 04-May-2011
1736,Revenue,CECR,Benefits Administration,Agency Staff (Admin/Support Staff) Pay,Eden Brown Limited,1027, 11-May-2011
1737,Revenue,CECR,Benefits Administration,Agency Staff (Admin/Support Staff) Pay,Eden Brown Limited,832, 19-May-2011
1738,Revenue,CECR,Benefits Administration,Agency Staff (Admin/Support Staff) Pay,Eden Brown Limited,1027, 26-May-2011
1739,Revenue,CECR,Nibley Court Offices,Electricity,EDF Energy 1 Limited,1821.02, 16-May-2011
1740,Revenue,CECR,Almondsbury Depot,Electricity,EDF Energy 1 Limited,1444.67, 13-May-2011
1741,Revenue,CECR,Broad Lane Depot,Electricity,EDF Energy 1 Limited,2054.85, 16-May-2011
1742,Revenue,CECR,Vinney Green Offices,Electricity,EDF Energy 1 Limited,439.65, 13-May-2011
1743,Revenue,CECR,Badminton Road Offices,Electricity,EDF Energy 1 Limited,7182.91, 16-May-2011
1744,Revenue,CECR,Thornbury Council Offices,Electricity,EDF Energy 1 Limited,8869.96, 16-May-2011
1745,Revenue,CECR,Kingswood Civic Centre,Electricity,EDF Energy 1 Limited,3853.13, 16-May-2011
1746,Revenue,CECR,PSD Valuation & Property Management,Fees & Charges Income - General,Environment Agency,500, 06-May-2011
1747,Revenue,CECR,Almondsbury Depot,Water Charges,Environment Agency,684, 13-May-2011
1748,Revenue,CECR,Applications - Comm,Computer Equipment - Maintenance,Esteem Systems Plc,4651.94, 26-May-2011
1749,Revenue,CECR,Applications - Comm,Computer Equipment - Maintenance,Esteem Systems Plc,6098.09, 26-May-2011
1750,Revenue,CECR,Applications - Comm,Computer Equipment - Maintenance,Esteem Systems Plc,4701.81, 26-May-2011
1751,Revenue,CECR,Applications - Comm,Computer Equipment - Maintenance,Esteem Systems Plc,6287.94, 26-May-2011
1752,Revenue,CECR,Improvement Fund,Books & Publications,Fairplace,15000, 03-May-2011
1753,Revenue,CECR,Travellers Site - Winterbourne,Prop.Serv. General Repairs,Frank Bowtell Limited,498.4, 12-May-2011
1754,Revenue,CECR,Travellers Site - Winterbourne,Vandalism,Frank Bowtell Limited,14125, 18-May-2011
1755,Revenue,CECR,PSD Clerk of Works,Agency Staff (Admin/Support Staff) Pay,Franklyn Recruitment Limited,471.75, 03-May-2011
1756,Revenue,CECR,PSD Clerk of Works,Agency Staff (Admin/Support Staff) Pay,Franklyn Recruitment Limited,489.44, 06-May-2011
1757,Revenue,CECR,PSD Clerk of Works,Agency Staff (Admin/Support Staff) Pay,Franklyn Recruitment Limited,553.84, 13-May-2011
1758,Revenue,CECR,Benefits Administration,Agency Staff (Admin/Support Staff) Pay,Giant Group Plc,884.25, 17-May-2011
1759,Revenue,CECR,Benefits Administration,Agency Staff (Admin/Support Staff) Pay,Giant Group Plc,803.25, 13-May-2011
1760,Revenue,CECR,Benefits Administration,Agency Staff (Admin/Support Staff) Pay,Giant Group Plc,985.5, 17-May-2011
1761,Revenue,CECR,Corp. Accomodation - Dilapidations,Other Premises Costs,Gilwern Investments Limited,111312.5, 31-May-2011
1762,Revenue,CECR,Infrastructure - Comm,Software Support & Maintenance,GMAC Commercial Credit Limited,2223.25, 25-May-2011
1763,Revenue,CECR,Corporate Legal Section,Fees - General,H M Land Registry,3011, 10-May-2011
1764,Revenue,CECR,Corporate Legal Section,Fees - General,H M Land Registry,1300, 24-May-2011
1765,Revenue,CECR,C&RS Streetcare Helpdesk,Public Transport - Staff,Hanham Taxis,720, 16-May-2011
1766,Revenue,CECR,Improvement Fund,External Lecturers Fees,Harrison Hall Associates,1950, 13-May-2011
1767,Revenue,CECR,Improvement Fund,External Lecturers Fees,Harrison Hall Associates,1950, 03-May-2011
1768,Revenue,CECR,Corporate Training Growth,External Lecturers Fees,Harrison Hall Associates,1950, 03-May-2011
1769,Revenue,CECR,Improvement Fund,External Lecturers Fees,Harrison Hall Associates,1950, 03-May-2011
1770,Revenue,CECR,C&RS Streetcare Helpdesk,Agency Staff (Admin/Support Staff) Pay,Hays Specialist Recruitment,495.95, 10-May-2011
1771,Revenue,CECR,PSD Quantity Surveyors,Agency Staff (Admin/Support Staff) Pay,Hays Specialist Recruitment,837.9, 10-May-2011
1772,Revenue,CECR,C&RS Streetcare Helpdesk,Agency Staff (Admin/Support Staff) Pay,Hays Specialist Recruitment,507, 13-May-2011
1773,Revenue,CECR,PSD Quantity Surveyors,Agency Staff (Admin/Support Staff) Pay,Hays Specialist Recruitment,790.02, 24-May-2011
1774,Revenue,CECR,PSD Quantity Surveyors,Agency Staff (Admin/Support Staff) Pay,Hays Specialist Recruitment,766.08, 24-May-2011
1775,Revenue,CECR,PSD Quantity Surveyors,Agency Staff (Admin/Support Staff) Pay,Hays Specialist Recruitment,877.8, 26-May-2011
1776,Revenue,CECR,Infrastructure - Comm,Agency Staff (Admin/Support Staff) Pay,Huxley Assoc Ltd,1551, 18-May-2011
1777,Revenue,CECR,Service Reviews Prog - ICT Costs,Agency Staff (Admin/Support Staff) Pay,Huxley Assoc Ltd,2232.5, 18-May-2011
1778,Revenue,CECR,Service Reviews Prog - ICT Costs,Agency Staff (Admin/Support Staff) Pay,Huxley Assoc Ltd,11115, 18-May-2011
1779,Revenue,CECR,Service Reviews Prog - ICT Costs,Agency Staff (Admin/Support Staff) Pay,Huxley Assoc Ltd,1254, 19-May-2011
1780,Revenue,CECR,Service Reviews Prog - ICT Costs,Agency Staff (Admin/Support Staff) Pay,Huxley Assoc Ltd,2016.6, 20-May-2011
1781,Revenue,CECR,Staff Health & Welfare,Occupational Health Fees,IMASS Group,5000, 24-May-2011
1782,Revenue,CECR,Staff Health & Welfare,Occupational Health Fees,IMASS Group,12176.17, 25-May-2011
1783,Revenue,CECR,Corporate Training Growth,External Lecturers Fees,Inspired2learn,1800, 04-May-2011
1784,Revenue,CECR,Corporate Training Growth,External Lecturers Fees,Inspired2learn,4050, 10-May-2011
1785,Revenue,CECR,Staff Health & Welfare,Medical Fees,Interchange,1408, 23-May-2011
1786,Revenue,CECR,Smallholdings,Prop.Serv. General Repairs,J & R Hopkins,862.5, 04-May-2011
1787,Revenue,CECR,Service Reviews Prog - ICT Costs,Other Supplies & Services,Kirona,9000, 26-May-2011
1788,Revenue,CECR,Service Reviews Prog - ICT Costs,Software Purchase,Kirona,9387.5, 17-May-2011
1789,Revenue,CECR,Service Reviews Prog - ICT Costs,Software Purchase,Kirona,10625, 17-May-2011
1790,Revenue,CECR,Service Reviews Prog - ICT Costs,Software Support & Maintenance,Kirona,7725, 17-May-2011
1791,Revenue,CECR,Service Reviews Prog - ICT Costs,Software Support & Maintenance,Kirona,6112.5, 17-May-2011
1792,Revenue,CECR,Badminton Road Offices,Maintenance by Contractor,Kone Plc,871.44, 27-May-2011
1793,Revenue,CECR,PC Software Recharges,Software Purchase,Laser Life,1900, 13-May-2011
1794,Revenue,CECR,Corporate Subscriptions,Membership Fees,Local Government Association,56735.25, 13-May-2011
1795,Revenue,CECR,Mail Processing Team,Security Systems,Loomis UK Limited,561.1, 12-May-2011
1796,Revenue,CECR,Electoral Expenses,Printing & Stationery,Mail & Print Services Limited,4884.6, 03-May-2011
1797,Revenue,CECR,Electoral Expenses,Other Supplies & Services,Mail & Print Services Limited,1777.65, 25-May-2011
1798,Revenue,CECR,Electoral Expenses,Other Supplies & Services,Mail & Print Services Limited,18159.93, 27-May-2011
1799,Revenue,CECR,Garages (ex Housing),Prop.Serv. General Repairs,Merlin Housing Society,1093.56, 11-May-2011
1800,Revenue,CECR,Garages (ex Housing),Fees - General,Merlin Housing Society,7210.45, 11-May-2011
1801,Revenue,CECR,Benefits Administration,Agency Staff (Admin/Support Staff) Pay,Morgan Hunt Public Sector Limited,888, 03-May-2011
1802,Revenue,CECR,Benefits Administration,Agency Staff (Admin/Support Staff) Pay,Morgan Hunt Public Sector Limited,960, 03-May-2011
1803,Revenue,CECR,Benefits Administration,Agency Staff (Admin/Support Staff) Pay,Morgan Hunt Public Sector Limited,960, 10-May-2011
1804,Revenue,CECR,Benefits Administration,Agency Staff (Admin/Support Staff) Pay,Morgan Hunt Public Sector Limited,960, 13-May-2011
1805,Revenue,CECR,Benefits Administration,Agency Staff (Admin/Support Staff) Pay,Morgan Hunt Public Sector Limited,812.04, 13-May-2011
1806,Revenue,CECR,Benefits Administration,Agency Staff (Admin/Support Staff) Pay,Morgan Hunt Public Sector Limited,960, 20-May-2011
1807,Revenue,CECR,Benefits Administration,Agency Staff (Admin/Support Staff) Pay,Morgan Hunt Public Sector Limited,812.04, 20-May-2011
1808,Revenue,CECR,Benefits Administration,Agency Staff (Admin/Support Staff) Pay,Morgan Hunt Public Sector Limited,960, 20-May-2011
1809,Revenue,CECR,Benefits Administration,Agency Staff (Admin/Support Staff) Pay,Morgan Hunt Public Sector Limited,960, 20-May-2011
1810,Revenue,CECR,Benefits Administration,Agency Staff (Admin/Support Staff) Pay,Morgan Hunt Public Sector Limited,960, 27-May-2011
1811,Revenue,CECR,Paper,Equipment Maintenance,Morgana Systems Limited,936, 25-May-2011
1812,Revenue,CECR,Electoral Expenses,Advertising - General,Northcliffe Media Ltd,603.9, 25-May-2011
1813,Revenue,CECR,Benefits Administration,Software Purchase,Northgate Information Solutions UK Limited,950, 03-May-2011
1814,Revenue,CECR,Benefits Administration,Software Purchase,Northgate Information Solutions UK Limited,12700, 03-May-2011
1815,Revenue,CECR,Benefits Administration,Software Purchase,Northgate Information Solutions UK Limited,2920, 03-May-2011
1816,Revenue,CECR,Benefits Administration,Software Support & Maintenance,Northgate Information Solutions UK Limited,1021.3, 03-May-2011
1817,Revenue,CECR,Service Reviews Prog - ICT Costs,Software Support & Maintenance,Northgate Information Solutions UK Limited,6250, 27-May-2011
1818,Revenue,CECR,Service Reviews Prog - ICT Costs,Software Purchase,Northgate Information Solutions UK Limited,27500, 27-May-2011
1819,Revenue,CECR,Revenues and Benefits Management,Software Support & Maintenance,Northgate Information Solutions UK Limited,500, 27-May-2011
1820,Revenue,CECR,HROD`s Pooled Budgets,Software Purchase,NorthgateArinso UK Limited,900, 04-May-2011
1821,Revenue,CECR,Tormarton Depot,Electricity,npower Business Services,1038.66, 09-May-2011
1822,Revenue,CECR,Broad Lane Depot,Security Systems,NSG Associates Ltd,504.17, 25-May-2011
1823,Revenue,CECR,Badminton Road Offices,Security Systems,NSG Associates Ltd,1418.66, 25-May-2011
1824,Revenue,CECR,Kingswood Civic Centre,Security Systems,NSG Associates Ltd,553.2, 24-May-2011
1825,Revenue,CECR,Broad Lane Depot,Security Systems,NSG Associates Ltd,1592.06, 24-May-2011
1826,Revenue,CECR,Badminton Road Offices,Security Systems,NSG Associates Ltd,1474.41, 24-May-2011
1827,Revenue,CECR,Kingswood Civic Centre,Security Systems,NSG Associates Ltd,553.2, 24-May-2011
1828,Revenue,CECR,Broad Lane Depot,Security Systems,NSG Associates Ltd,506.92, 06-May-2011
1829,Revenue,CECR,Badminton Road Offices,Security Systems,NSG Associates Ltd,1523.97, 06-May-2011
1830,Revenue,CECR,Thornbury Council Offices,Security Systems,NSG Associates Ltd,450.2, 27-May-2011
1831,Revenue,CECR,Broad Lane Depot,Security Systems,NSG Associates Ltd,493.14, 09-May-2011
1832,Revenue,CECR,Badminton Road Offices,Security Systems,NSG Associates Ltd,1654.07, 09-May-2011
1833,Revenue,CECR,Broad Lane Depot,Security Systems,NSG Associates Ltd,1509.41, 09-May-2011
1834,Revenue,CECR,Badminton Road Offices,Security Systems,NSG Associates Ltd,1462.02, 09-May-2011
1835,Revenue,CECR,Broad Lane Depot,Security Systems,NSG Associates Ltd,2094.6, 11-May-2011
1836,Revenue,CECR,Badminton Road Offices,Security Systems,NSG Associates Ltd,1015.98, 11-May-2011
1837,Revenue,CECR,Broad Lane Depot,Security Systems,NSG Associates Ltd,2078.07, 27-May-2011
1838,Revenue,CECR,Kingswood Civic Centre,Security Systems,NSG Associates Ltd,419.76, 27-May-2011
1839,Revenue,CECR,Thornbury Council Offices,Security Systems,NSG Associates Ltd,468.78, 27-May-2011
1840,Revenue,CECR,Nibley Court Offices,Security Systems,NSG Installations Ltd,550.54, 24-May-2011
1841,Revenue,CECR,Nibley Court Offices,Security Systems,NSG Installations Ltd,522.72, 06-May-2011
1842,Revenue,CECR,Ridgewood Site,Other Premises Costs,NSG Monitoring Ltd,512.44, 10-May-2011
1843,Revenue,CECR,Fees incurred on sale of fixed assets,Other Premises Costs,NSG Monitoring Ltd,762.6, 10-May-2011
1844,Revenue,CECR,"Oaklands, Almondsbury Site",Fuel Oil,Pace Petroleum Limited,2024.1, 11-May-2011
1845,Revenue,CECR,Mailroom Equipment,Equipment Maintenance,Pitney Bowes Limited,604, 03-May-2011
1846,Revenue,CECR,Self-Service Printing & Copying,Equipment Maintenance,Portrayal Limited,948.56, 20-May-2011
1847,Revenue,CECR,Self-Service Printing & Copying,Equipment Maintenance,Portrayal Limited,922.53, 20-May-2011
1848,Revenue,CECR,Self-Service Printing & Copying,Equipment Maintenance,Portrayal Limited,1034.13, 20-May-2011
1849,Revenue,CECR,High Volume - Thornbury,Equipment Maintenance,Portrayal Limited,636.37, 20-May-2011
1850,Revenue,CECR,High Volume - Kingswood,Equipment Maintenance,Portrayal Limited,286.16, 20-May-2011
1851,Revenue,CECR,Colour,Equipment Maintenance,Portrayal Limited,948.56, 20-May-2011
1852,Revenue,CECR,Self-Service Printing & Copying,Equipment Maintenance,Portrayal Limited,943.12, 20-May-2011
1853,Revenue,CECR,Self-Service Printing & Copying,Equipment Maintenance,Portrayal Limited,2929.53, 20-May-2011
1854,Revenue,CECR,Self-Service Printing & Copying,Office Supplies & Equipment,Portrayal Limited,2464, 11-May-2011
1855,Revenue,CECR,Franking and Postage Costs,Postages,Postage By Phone-Pitney Bowes Ltd,3000, 03-May-2011
1856,Revenue,CECR,Franking and Postage Costs,Postages,Postage By Phone-Pitney Bowes Ltd,6009, 12-May-2011
1857,Revenue,CECR,Franking and Postage Costs,Postages,Postage By Phone-Pitney Bowes Ltd,5008, 11-May-2011
1858,Revenue,CECR,Franking and Postage Costs,Postages,Postage By Phone-Pitney Bowes Ltd,3000, 23-May-2011
1859,Revenue,CECR,Paper,Printing & Stationery,Premier Paper Group Limited,730.8, 13-May-2011
1860,Revenue,CECR,Print Service Overheads,Printing & Stationery,Premier Paper Group Limited,699.45, 13-May-2011
1861,Revenue,CECR,Badminton Road Offices,Cleaning & Domestic Supplies,Professional Hygiene Ltd,1085.61, 17-May-2011
1862,Revenue,CECR,Payroll,Printing & Stationery,Prolog Print Media,1582.7, 19-May-2011
1863,Revenue,CECR,QSD Controls,Consultants Fees,Richard Ward,2700, 13-May-2011
1864,Revenue,CECR,QSD Controls,Consultants Fees,Richard Ward,2700, 31-May-2011
1865,Revenue,CECR,Outgoing Mail,Postages,Royal Mail Group Plc,759.96, 27-May-2011
1866,Revenue,CECR,Revenues Recovery Division,Other Private Contractors,Rundle & Co Limited,498.5, 10-May-2011
1867,Revenue,CECR,Revenues Recovery Division,Other Private Contractors,Rundle & Co Limited,173.5, 17-May-2011
1868,Revenue,CECR,Revenues Recovery Division,Other Private Contractors,Rundle & Co Limited,20, 24-May-2011
1869,Revenue,CECR,Service Reviews Prog - ICT Costs,Agency Staff (Admin/Support Staff) Pay,Sanderson Recruitment PLC,2475, 04-May-2011
1870,Revenue,CECR,Infrastructure - Discr,Administrative & Support Staff Pay,Sanderson Recruitment PLC,2562.8, 10-May-2011
1871,Revenue,CECR,Customer Services - Comm,Agency Staff (Admin/Support Staff) Pay,Sanderson Recruitment PLC,2386.4, 06-May-2011
1872,Revenue,CECR,Customer Services - Discr,Agency Staff (Admin/Support Staff) Pay,Sanderson Recruitment PLC,1873.75, 06-May-2011
1873,Revenue,CECR,Customer Services - Comm,Agency Staff (Admin/Support Staff) Pay,Sanderson Recruitment PLC,2390.33, 11-May-2011
1874,Revenue,CECR,Infrastructure - Discr,Administrative & Support Staff Pay,Sanderson Recruitment PLC,3289, 11-May-2011
1875,Revenue,CECR,Infrastructure - Discr,Administrative & Support Staff Pay,Sanderson Recruitment PLC,3333, 11-May-2011
1876,Revenue,CECR,Customer Services - Comm,Agency Staff (Admin/Support Staff) Pay,Sanderson Recruitment PLC,2284.35, 11-May-2011
1877,Revenue,CECR,Customer Services - Comm,Agency Staff (Admin/Support Staff) Pay,Sanderson Recruitment PLC,2237.25, 12-May-2011
1878,Revenue,CECR,Broad Lane Depot,Refuse Collection Charges,SITA UK LTD,829.7, 24-May-2011
1879,Revenue,CECR,Spending ex - HRA Balances,Grants to Voluntary Bodies,Sodbury Town Council,10530, 12-May-2011
1880,Revenue,CECR,Corporate Subscriptions,Membership Fees,South West Regional Board,8076, 04-May-2011
1881,Revenue,CECR,Spending ex - HRA Balances,Grants to Voluntary Bodies,Stoke Gifford Parish Council,8406.24, 03-May-2011
1882,Revenue,CECR,Corporate Legal Section,Books & Publications,Sweet & Maxwell,5732, 25-May-2011
1883,Revenue,CECR,Payroll,Miscellaneous Income,T G W U,-29.97, 11-May-2011
1884,Revenue,CECR,Corporate Training Growth,Rent,The Park Hotel,491.67, 06-May-2011
1885,Revenue,CECR,Corporate Recruitment,Software Purchase,TMP (UK) Limited,10300, 03-May-2011
1886,Revenue,CECR,Access to Employment (PSA),Software Purchase,TMP (UK) Limited,19565, 03-May-2011
1887,Revenue,CECR,Commons Registration Authority,Fees - General,TMP (UK) Limited,406.27, 03-May-2011
1888,Revenue,CECR,Outgoing Mail,Postages,TNT Post South West Limited,99.92, 09-May-2011
